Workbook

Sheet 基本項目 (hidden)
B2: 年度 | C2: 今日現在 | D2: 年金所得 基準日 | E2: 年齢基準日 | G2: 納期 | H2: 納期限 | I2: 国保加入の届出月 | L2: 該当 | M2: =SUM(入力!$CN$153) -> 0 | O2: 国保加入の届出月
B3: 8 | C3: =TODAY() -> 2026-06-26 | D3: =VALUE("R"&基本項目!$B$3&".1.1") -> 2026-01-01 | E3: =VALUE("R"&基本項目!$B$3+1&".4.1") -> 2027-04-01 | G3: 第１期 | H3: 2026-07-31 | I3: 4 | J3: 5 | K3: 6 | L3: =IF($O$3="","",IF(OR($O$3=I3,$O$3=J3,$O$3=K3),"〇","")) ->  | M3: =IF(L3="〇",SUM($P$5),"") ->  | O3: =IF(入力!$CP$8="","",入力!$CP$8) ->  | P3: 月
G4: 第２期 | H4: 2026-08-31 | I4: 7 | L4: =IF($O$3="","",IF(L3="〇","〇",IF(OR($O$3=I4,$O$3=J4,$O$3=K4),"〇",""))) ->  | M4: =IF(L4="","",IF(AND(L4="〇",COUNTIF(L$3:L4,"〇")=1),SUM($P$5),SUM($P$6))) -> 
G5: 第３期 | H5: 2026-09-30 | I5: 8 | M5: =IF(L5="","",IF(AND(L5="〇",COUNTIF(L$3:L5,"〇")=1),SUM($P$5),SUM($P$6))) ->  | O5: 当初金額 | P5: =IF(COUNTIF($L$3:$L$10,"〇")=0,"",SUM($M$2)-ROUNDDOWN(SUM($M$2)/COUNTIF($L$3:$L$10,"〇"),-2)*(COUNTIF($L$3:$L$10,"〇")-1)) -> 
G6: 第４期 | H6: 2026-11-02 | I6: 9 | M6: =IF(L6="","",IF(AND(L6="〇",COUNTIF(L$3:L6,"〇")=1),SUM($P$5),SUM($P$6))) ->  | O6: それ以外 | P6: =IF(COUNTIF($L$3:$L$10,"〇")=0,"",ROUNDDOWN(SUM($M$2)/COUNTIF($L$3:$L$10,"〇"),-2)) -> 
G7: 第５期 | H7: 2026-11-30 | I7: 10 | M7: =IF(L7="","",IF(AND(L7="〇",COUNTIF(L$3:L7,"〇")=1),SUM($P$5),SUM($P$6))) -> 
G8: 第６期 | H8: 2026-12-25 | I8: 11 | M8: =IF($O$3="","",IF(L8="","",IF(AND(L8="〇",COUNTIF(L$3:L8,"〇")=1),SUM($P$5),SUM($P$6)))) -> 
G9: 第７期 | H9: 2027-02-01 | I9: 12 | M9: =IF(L9="","",IF(AND(L9="〇",COUNTIF(L$3:L9,"〇")=1),SUM($P$5),SUM($P$6))) -> 
G10: 第８期 | H10: 2027-03-01 | I10: 1 | M10: =IF(L10="","",IF(AND(L10="〇",COUNTIF(L$3:L10,"〇")=1),SUM($P$5),SUM($P$6))) -> 
G11: 随時期１ | H11: 2027-03-31 | I11: 2 | L11: =IF($O$3="","",IF(OR($O$3=I11,$O$3=J11,$O$3=K11),"〇","")) ->  | M11: =IF(L11="〇",SUM($M$2),"") -> 
G12: 随時期２ | H12: 2027-05-31 | I12: 3 | L12: =IF($O$3="","",IF(OR($O$3=I12,$O$3=J12,$O$3=K12),"〇","")) ->  | M12: =IF(L12="〇",SUM($M$2),"") -> 
G13: 注：４月末納期限は減額のみなので，３月に新規加入届出の納期限は５月末となる。

Sheet 入力
B1: ="令和"&DBCS(基本項目!$B$3)&"年度 国民健康保険税 簡易計算（概算）" -> 令和８年度 国民健康保険税 簡易計算（概算）
D2: 下の被保険者に入っていない擬主及び特定同一世帯所属者の総所得金額
D3: 下の被保険者に入っていない特定同一世帯所属者の人数 | AL3: =IF(AU2="","",IF(AU3="","人数→","")) -> 
D4: 世帯の軽減判定所得合計 ＝ 擬主 ＋ 被保険者 ＋ 特定同一世帯所属者 | AU4: =SUM(GE26) -> 0
D5: 軽減判定人数 | P5: =IF(SUM($AU$3,$GE$27)=0,0,SUM($AU$3,$GE$27)) -> 0 | W5: 軽減判定結果 ⇒ | AU5: =IF(国民健康保険税軽減早見表H26から!$AN$20="","",国民健康保険税軽減早見表H26から!$AN$20) -> 
D7: 平等割額の軽減特例措置 国保被保険者が後期高齢者医療への移行により，残る世帯員が国保単身世帯になった場合，世帯にかかる平等割額を減額する。 H24まで：1/2減額(5年間)，H25から：1/2減額(5年間)，6年目から1/4減額(3年間延長) | CP7: 国保加入の届出月 | DC7: 月割をする場合は右へスクロール | DJ7: =IF(SUM(AY13:BE22)=0,"","該当あれば 入力") ->  | DY7: この下の「所得金額調整控除不要？」のエラーで，自分，同一生計配偶者，扶養親族のいずれかが特別障害者，又は２３歳未満の扶養親族がいる。という条件が無い場合は，エラーのままでＯＫ
CX8: 月
CP9: ↑期別を表示する場合は加入月を入力すること | DJ9: =IF(DJ7="","","⇓") ->  | EU9: １２カ月すべての場合「○」は入力しなくてＯＫ 注：該当月数を指定する場合のみ「○」を入力
C10: 【被保険者の入力】
D11: 氏 名 | K11: 生年月日 | R11: 年齢 | U11: 年齢 直接 入力 | X11: 給与収入 | AE11: 給与所得 | AL11: 所得 金額 調整 控除 | AO11: 非自発的失業 | AR11: 非自発的失業 該当 30/100所得 | AY11: 公的年金収入 | BF11: 公的年金所得 | BM11: その他所得 | BT11: 給与収入の内 専従者 給与分収入額 | CA11: 純繰越 ﾏｲﾅｽ入力 | CH11: 雑繰越 ﾏｲﾅｽ入力 | CO11: 分離所得 特別控除前 | CV11: 分離所得 特別控除額 ﾌﾟﾗｽ入力 | DC11: 国保税 総所得金額 | DJ11: 年金所得に係る雑所得以外の 合計所得金額 | EO11: 給与 OR 年金 | EU11: 月途中の加入は該当するが，月途中に抜ける場合はその月は非該当 | GE11: 該当 月数 | GI11: 世帯 月数 | GM11: 障害 | GU11: 該当月判定用（介護） | IE11: 介護 該当 | II11: 国保 該当 | IO11: 該当月判定用（後期） | JY11: 後期 該当 | KC11: 国保 該当 | KI11: 該当月判定用（子ども） | LS11: 子ども 該当 | LW11: 国保 該当 | MC11: 該当月判定用（修正後）介護 | NM11: 介護 該当 | NQ11: 国保 該当 | NU11: 障害 | NZ11: 該当月判定用（修正後）後期 | PJ11: 後期 該当 | PN11: 国保 該当 | PR11: 障害 | PW11: 軽減判定用所得計算
DY12: ↓↓↓↓↓↓ | EU12: 4 | EX12: 5 | FA12: 6 | FD12: 7 | FG12: 8 | FJ12: 9 | FM12: 10 | FP12: 11 | FS12: 12 | FV12: 1 | FY12: 2 | GB12: 3 | GU12: 4 | GX12: 5 | HA12: 6 | HD12: 7 | HG12: 8 | HJ12: 9 | HM12: 10 | HP12: 11 | HS12: 12 | HV12: 1 | HY12: 2 | IB12: 3 | IE12: 月数計 | II12: 月数計 | IO12: 4 | IR12: 5 | IU12: 6 | IX12: 7 | JA12: 8 | JD12: 9 | JG12: 10 | JJ12: 11 | JM12: 12 | JP12: 1 | JS12: 2 | JV12: 3 | JY12: 月数計 | KC12: 月数計 | KI12: 4 | KL12: 5 | KO12: 6 | KR12: 7 | KU12: 8 | KX12: 9 | LA12: 10 | LD12: 11 | LG12: 12 | LJ12: 1 | LM12: 2 | LP12: 3 | LS12: 月数計 | LW12: 月数計 | MC12: 4 | MF12: 5 | MI12: 6 | ML12: 7 | MO12: 8 | MR12: 9 | MU12: 10 | MX12: 11 | NA12: 12 | ND12: 1 | NG12: 2 | NJ12: 3 | NM12: 月数計 | NQ12: 月数計 | NZ12: 4 | OC12: 5 | OF12: 6 | OI12: 7 | OL12: 8 | OO12: 9 | OR12: 10 | OU12: 11 | OX12: 12 | PA12: 1 | PD12: 2 | PG12: 3 | PJ12: 月数計 | PN12: 月数計 | PW12: 4 | PZ12: 5 | QC12: 6 | QF12: 7 | QI12: 8 | QL12: 9 | QO12: 10 | QR12: 11 | QU12: 12 | QX12: 1 | RA12: 2 | RD12: 3
B13: 1 | R13: =IF(AND($U13="",$K13=""),"",IF($U13="",所得計算!$I6,$U13)) ->  | AE13: =IF(所得計算!AI$4="","",所得計算!AI$4) ->  | AR13: =IF($AE13="","",IF($AO13=1,ROUNDDOWN(SUM($AE13)*0.3,0),"")) ->  | BF13: =IF(所得計算!AI$23="","",所得計算!AI$23) ->  | DC13: =IF(R13="","",IF(AO13=1,SUM(AR13,BF13,BM13,CA13,CO13)-SUM(CV13),SUM(AE13,BF13,BM13,CA13,CO13)-SUM(CV13))) ->  | DQ13: =IF(AND(D13<>"",K13="",U13=""),"生年月日又は年齢",IF(AND(D13="",OR(K13<>"",U13<>"")),"氏名は必要","")) ->  | DY13: =IF(OR(AND(SUM($AL13)=1,SUM($X13)<=8500000),AND(SUM($AL13)=1,SUM($X13)>8500000,SUM($BF13)>0)),"所得金額調整控除１？",IF(OR(AND(SUM($AL13)=2,OR(SUM(所得計算!$BE$5:$BE$15)=0,SUM($BF13)=0)),AND(SUM($AL13)=2,OR(SUM($X13)>8500000,SUM($BF13)=0))),"所得金額調整控除２？",IF(AND(SUM($AL13)=3,OR(SUM($X13)<=8500000,SUM($BF13)=0)),"所得金額調整控除３？",IF(AND($AL13="",OR(SUM($X13)>8500000,AND(SUM(所得計算!$BE$5:$BE$15)>0,SUM($BF13)>0))),"所得金額調整控除サイン不要？","")))) ->  | EL13: =IF(SUM(DC13,CH13,CV13)=0,0,SUM(DC13,CH13,CV13)-SUM(所得計算!$AT$4)-SUM(所得計算!$AI$36)) -> 0 | EO13: =IF(OR(SUM(AE13)>0,SUM(BF13)>0),1,"") ->  | ES13: 1 | GE13: =IF(D13="","",IF(COUNTIF(EU13:GD13,"○")=0,12,COUNTIF(EU13:GD13,"○"))) ->  | GI13: =IF(SUM(GE13:GH22)=0,"",IF(MAX(GE13:GH22)>=12,12,SUM(EU23:GD23))) ->  | GP13: =IF($GM13="","",IF(HLOOKUP($GM13,$GU$12:$ID$22,2,FALSE)>=65,"","65未到達")) ->  | GU13: =IF($R13="","",IF($U13="",IF(EOMONTH(VALUE("R"&基本項目!$B$3&"."&EU$12&".1"),0)<$K13,"",DATEDIF($K13-1,EOMONTH(VALUE("R"&基本項目!$B$3&"."&EU$12&".1")-1,1),"Y")),$U13)) ->  | GX13: =IF($R13="","",IF($U13="",IF(EOMONTH(VALUE("R"&基本項目!$B$3&"."&EX$12&".1"),0)<$K13,"",DATEDIF($K13-1,EOMONTH(VALUE("R"&基本項目!$B$3&"."&EX$12&".1")-1,1),"Y")),$U13)) ->  | HA13: =IF($R13="","",IF($U13="",IF(EOMONTH(VALUE("R"&基本項目!$B$3&"."&FA$12&".1"),0)<$K13,"",DATEDIF($K13-1,EOMONTH(VALUE("R"&基本項目!$B$3&"."&FA$12&".1")-1,1),"Y")),$U13)) ->  | HD13: =IF($R13="","",IF($U13="",IF(EOMONTH(VALUE("R"&基本項目!$B$3&"."&FD$12&".1"),0)<$K13,"",DATEDIF($K13-1,EOMONTH(VALUE("R"&基本項目!$B$3&"."&FD$12&".1")-1,1),"Y")),$U13)) ->  | HG13: =IF($R13="","",IF($U13="",IF(EOMONTH(VALUE("R"&基本項目!$B$3&"."&FG$12&".1"),0)<$K13,"",DATEDIF($K13-1,EOMONTH(VALUE("R"&基本項目!$B$3&"."&FG$12&".1")-1,1),"Y")),$U13)) ->  | HJ13: =IF($R13="","",IF($U13="",IF(EOMONTH(VALUE("R"&基本項目!$B$3&"."&FJ$12&".1"),0)<$K13,"",DATEDIF($K13-1,EOMONTH(VALUE("R"&基本項目!$B$3&"."&FJ$12&".1")-1,1),"Y")),$U13)) ->  | HM13: =IF($R13="","",IF($U13="",IF(EOMONTH(VALUE("R"&基本項目!$B$3&"."&FM$12&".1"),0)<$K13,"",DATEDIF($K13-1,EOMONTH(VALUE("R"&基本項目!$B$3&"."&FM$12&".1")-1,1),"Y")),$U13)) ->  | HP13: =IF($R13="","",IF($U13="",IF(EOMONTH(VALUE("R"&基本項目!$B$3&"."&FP$12&".1"),0)<$K13,"",DATEDIF($K13-1,EOMONTH(VALUE("R"&基本項目!$B$3&"."&FP$12&".1")-1,1),"Y")),$U13)) ->  | HS13: =IF($R13="","",IF($U13="",IF(EOMONTH(VALUE("R"&基本項目!$B$3&"."&FS$12&".1"),0)<$K13,"",DATEDIF($K13-1,EOMONTH(VALUE("R"&基本項目!$B$3&"."&FS$12&".1")-1,1),"Y")),$U13)) ->  | HV13: =IF($R13="","",IF($U13="",IF(EOMONTH(VALUE("R"&基本項目!$B$3+1&"."&FV$12&".1"),0)<$K13,"",DATEDIF($K13-1,EOMONTH(VALUE("R"&基本項目!$B$3+1&"."&FV$12&".1")-1,1),"Y")),$U13)) ->  | HY13: =IF($R13="","",IF($U13="",IF(EOMONTH(VALUE("R"&基本項目!$B$3+1&"."&FY$12&".1"),0)<$K13,"",DATEDIF($K13-1,EOMONTH(VALUE("R"&基本項目!$B$3+1&"."&FY$12&".1")-1,1),"Y")),$U13)) ->  | IB13: =IF($R13="","",IF($U13="",IF(EOMONTH(VALUE("R"&基本項目!$B$3+1&"."&GB$12&".1"),0)<$K13,"",DATEDIF($K13-1,EOMONTH(VALUE("R"&基本項目!$B$3+1&"."&GB$12&".1")-1,1),"Y")),$U13)) ->  | IE13: =IF($R13="","",SUMPRODUCT(($GU13:$ID13<65)*($GU13:$ID13>=40))) ->  | II13: =IF($R13="","",COUNTIF($GU13:$ID13,"<75")) ->  | IO13: =IF($R13="","",IF($U13="",IF(EOMONTH(VALUE("R"&基本項目!$B$3&"."&EU$12&".1"),0)<$K13,"",DATEDIF($K13,EOMONTH(VALUE("R"&基本項目!$B$3&"."&EU$12&".1")-1,1),"Y")),$U13)) ->  | IR13: =IF($R13="","",IF($U13="",IF(EOMONTH(VALUE("R"&基本項目!$B$3&"."&EX$12&".1"),0)<$K13,"",DATEDIF($K13,EOMONTH(VALUE("R"&基本項目!$B$3&"."&EX$12&".1")-1,1),"Y")),$U13)) ->  | IU13: =IF($R13="","",IF($U13="",IF(EOMONTH(VALUE("R"&基本項目!$B$3&"."&FA$12&".1"),0)<$K13,"",DATEDIF($K13,EOMONTH(VALUE("R"&基本項目!$B$3&"."&FA$12&".1")-1,1),"Y")),$U13)) ->  | IX13: =IF($R13="","",IF($U13="",IF(EOMONTH(VALUE("R"&基本項目!$B$3&"."&FD$12&".1"),0)<$K13,"",DATEDIF($K13,EOMONTH(VALUE("R"&基本項目!$B$3&"."&FD$12&".1")-1,1),"Y")),$U13)) ->  | JA13: =IF($R13="","",IF($U13="",IF(EOMONTH(VALUE("R"&基本項目!$B$3&"."&FG$12&".1"),0)<$K13,"",DATEDIF($K13,EOMONTH(VALUE("R"&基本項目!$B$3&"."&FG$12&".1")-1,1),"Y")),$U13)) ->  | JD13: =IF($R13="","",IF($U13="",IF(EOMONTH(VALUE("R"&基本項目!$B$3&"."&FJ$12&".1"),0)<$K13,"",DATEDIF($K13,EOMONTH(VALUE("R"&基本項目!$B$3&"."&FJ$12&".1")-1,1),"Y")),$U13)) ->  | JG13: =IF($R13="","",IF($U13="",IF(EOMONTH(VALUE("R"&基本項目!$B$3&"."&FM$12&".1"),0)<$K13,"",DATEDIF($K13,EOMONTH(VALUE("R"&基本項目!$B$3&"."&FM$12&".1")-1,1),"Y")),$U13)) ->  | JJ13: =IF($R13="","",IF($U13="",IF(EOMONTH(VALUE("R"&基本項目!$B$3&"."&FP$12&".1"),0)<$K13,"",DATEDIF($K13,EOMONTH(VALUE("R"&基本項目!$B$3&"."&FP$12&".1")-1,1),"Y")),$U13)) ->  | JM13: =IF($R13="","",IF($U13="",IF(EOMONTH(VALUE("R"&基本項目!$B$3&"."&FS$12&".1"),0)<$K13,"",DATEDIF($K13,EOMONTH(VALUE("R"&基本項目!$B$3&"."&FS$12&".1")-1,1),"Y")),$U13)) ->  | JP13: =IF($R13="","",IF($U13="",IF(EOMONTH(VALUE("R"&基本項目!$B$3+1&"."&FV$12&".1"),0)<$K13,"",DATEDIF($K13,EOMONTH(VALUE("R"&基本項目!$B$3+1&"."&FV$12&".1")-1,1),"Y")),$U13)) ->  | JS13: =IF($R13="","",IF($U13="",IF(EOMONTH(VALUE("R"&基本項目!$B$3+1&"."&FY$12&".1"),0)<$K13,"",DATEDIF($K13,EOMONTH(VALUE("R"&基本項目!$B$3+1&"."&FY$12&".1")-1,1),"Y")),$U13)) ->  | JV13: =IF($R13="","",IF($U13="",IF(EOMONTH(VALUE("R"&基本項目!$B$3+1&"."&GB$12&".1"),0)<$K13,"",DATEDIF($K13,EOMONTH(VALUE("R"&基本項目!$B$3+1&"."&GB$12&".1")-1,1),"Y")),$U13)) ->  | JY13: =IF($R13="","",COUNTIF($IO13:$JX13,">=75")) ->  | KC13: =IF($R13="","",COUNTIF($IO13:$JX13,"<75")) ->  | KI13: =IF($R13="","",IF($U13="",IF(EOMONTH(VALUE("R"&基本項目!$B$3&"."&EU$12&".1"),0)<$K13,"",DATEDIF($K13,EOMONTH(VALUE("R"&基本項目!$B$3&"."&EU$12&".1")-1,1),"Y")),$U13)) ->  | KL13: =IF($R13="","",IF($U13="",IF(EOMONTH(VALUE("R"&基本項目!$B$3&"."&EX$12&".1"),0)<$K13,"",DATEDIF($K13,EOMONTH(VALUE("R"&基本項目!$B$3&"."&EX$12&".1")-1,1),"Y")),$U13)) ->  | KO13: =IF($R13="","",IF($U13="",IF(EOMONTH(VALUE("R"&基本項目!$B$3&"."&FA$12&".1"),0)<$K13,"",DATEDIF($K13,EOMONTH(VALUE("R"&基本項目!$B$3&"."&FA$12&".1")-1,1),"Y")),$U13)) ->  | KR13: =IF($R13="","",IF($U13="",IF(EOMONTH(VALUE("R"&基本項目!$B$3&"."&FD$12&".1"),0)<$K13,"",DATEDIF($K13,EOMONTH(VALUE("R"&基本項目!$B$3&"."&FD$12&".1")-1,1),"Y")),$U13)) ->  | KU13: =IF($R13="","",IF($U13="",IF(EOMONTH(VALUE("R"&基本項目!$B$3&"."&FG$12&".1"),0)<$K13,"",DATEDIF($K13,EOMONTH(VALUE("R"&基本項目!$B$3&"."&FG$12&".1")-1,1),"Y")),$U13)) ->  | KX13: =IF($R13="","",IF($U13="",IF(EOMONTH(VALUE("R"&基本項目!$B$3&"."&FJ$12&".1"),0)<$K13,"",DATEDIF($K13,EOMONTH(VALUE("R"&基本項目!$B$3&"."&FJ$12&".1")-1,1),"Y")),$U13)) ->  | LA13: =IF($R13="","",IF($U13="",IF(EOMONTH(VALUE("R"&基本項目!$B$3&"."&FM$12&".1"),0)<$K13,"",DATEDIF($K13,EOMONTH(VALUE("R"&基本項目!$B$3&"."&FM$12&".1")-1,1),"Y")),$U13)) ->  | LD13: =IF($R13="","",IF($U13="",IF(EOMONTH(VALUE("R"&基本項目!$B$3&"."&FP$12&".1"),0)<$K13,"",DATEDIF($K13,EOMONTH(VALUE("R"&基本項目!$B$3&"."&FP$12&".1")-1,1),"Y")),$U13)) ->  | LG13: =IF($R13="","",IF($U13="",IF(EOMONTH(VALUE("R"&基本項目!$B$3&"."&FS$12&".1"),0)<$K13,"",DATEDIF($K13,EOMONTH(VALUE("R"&基本項目!$B$3&"."&FS$12&".1")-1,1),"Y")),$U13)) ->  | LJ13: =IF($R13="","",IF($U13="",IF(EOMONTH(VALUE("R"&基本項目!$B$3+1&"."&FV$12&".1"),0)<$K13,"",DATEDIF($K13,EOMONTH(VALUE("R"&基本項目!$B$3+1&"."&FV$12&".1")-1,1),"Y")),$U13)) ->  | LM13: =IF($R13="","",IF($U13="",IF(EOMONTH(VALUE("R"&基本項目!$B$3+1&"."&FY$12&".1"),0)<$K13,"",DATEDIF($K13,EOMONTH(VALUE("R"&基本項目!$B$3+1&"."&FY$12&".1")-1,1),"Y")),$U13)) ->  | LP13: =IF($R13="","",IF($U13="",IF(EOMONTH(VALUE("R"&基本項目!$B$3+1&"."&GB$12&".1"),0)<$K13,"",DATEDIF($K13,EOMONTH(VALUE("R"&基本項目!$B$3+1&"."&GB$12&".1")-1,1),"Y")),$U13)) ->  | LS13: =IF($R13="","",COUNTIF($KI13:$LR13,"<=18")) ->  | LW13: =IF($R13="","",COUNTIF($KI13:$LR13,"<75")) ->  | MC13: =IF(SUM($GE13)=12,GU13,IF(SUM($GE13)=0,"",IF(EU13="","",GU13))) ->  | MF13: =IF(SUM($GE13)=12,GX13,IF(SUM($GE13)=0,"",IF(EX13="","",GX13))) ->  | MI13: =IF(SUM($GE13)=12,HA13,IF(SUM($GE13)=0,"",IF(FA13="","",HA13))) ->  | ML13: =IF(SUM($GE13)=12,HD13,IF(SUM($GE13)=0,"",IF(FD13="","",HD13))) ->  | MO13: =IF(SUM($GE13)=12,HG13,IF(SUM($GE13)=0,"",IF(FG13="","",HG13))) ->  | MR13: =IF(SUM($GE13)=12,HJ13,IF(SUM($GE13)=0,"",IF(FJ13="","",HJ13))) ->  | MU13: =IF(SUM($GE13)=12,HM13,IF(SUM($GE13)=0,"",IF(FM13="","",HM13))) ->  | MX13: =IF(SUM($GE13)=12,HP13,IF(SUM($GE13)=0,"",IF(FP13="","",HP13))) ->  | NA13: =IF(SUM($GE13)=12,HS13,IF(SUM($GE13)=0,"",IF(FS13="","",HS13))) ->  | ND13: =IF(SUM($GE13)=12,HV13,IF(SUM($GE13)=0,"",IF(FV13="","",HV13))) ->  | NG13: =IF(SUM($GE13)=12,HY13,IF(SUM($GE13)=0,"",IF(FY13="","",HY13))) ->  | NJ13: =IF(SUM($GE13)=12,IB13,IF(SUM($GE13)=0,"",IF(GB13="","",IB13))) ->  | NM13: =IF($R13="","",SUMPRODUCT(($MC13:$NL13<65)*($MC13:$NL13>=40))) ->  | NQ13: =IF($R13="","",COUNTIF($MC13:$NL13,"<75")) ->  | NU13: =IF(GM13="","",IF(AND(GM13>=1,GM13<=3),GM13+12,GM13)) ->  | NZ13: =IF(SUM($GE13)=12,IO13,IF(SUM($GE13)=0,"",IF(EU13="","",IO13))) ->  | OC13: =IF(SUM($GE13)=12,IR13,IF(SUM($GE13)=0,"",IF(EX13="","",IR13))) ->  | OF13: =IF(SUM($GE13)=12,IU13,IF(SUM($GE13)=0,"",IF(FA13="","",IU13))) ->  | OI13: =IF(SUM($GE13)=12,IX13,IF(SUM($GE13)=0,"",IF(FD13="","",IX13))) ->  | OL13: =IF(SUM($GE13)=12,JA13,IF(SUM($GE13)=0,"",IF(FG13="","",JA13))) ->  | OO13: =IF(SUM($GE13)=12,JD13,IF(SUM($GE13)=0,"",IF(FJ13="","",JD13))) ->  | OR13: =IF(SUM($GE13)=12,JG13,IF(SUM($GE13)=0,"",IF(FM13="","",JG13))) ->  | OU13: =IF(SUM($GE13)=12,JJ13,IF(SUM($GE13)=0,"",IF(FP13="","",JJ13))) ->  | OX13: =IF(SUM($GE13)=12,JM13,IF(SUM($GE13)=0,"",IF(FS13="","",JM13))) ->  | PA13: =IF(SUM($GE13)=12,JP13,IF(SUM($GE13)=0,"",IF(FV13="","",JP13))) ->  | PD13: =IF(SUM($GE13)=12,JS13,IF(SUM($GE13)=0,"",IF(FY13="","",JS13))) ->  | PG13: =IF(SUM($GE13)=12,JV13,IF(SUM($GE13)=0,"",IF(GB13="","",JV13))) ->  | PJ13: =IF($R13="","",COUNTIF($NZ13:$PI13,">=75")) ->  | PN13: =IF($R13="","",COUNTIF($NZ13:$PI13,"<75")) ->  | PR13: =IF(GM13="","",IF(AND(GM13>=1,GM13<=3),GM13+12,GM13)) ->  | PV13: =IF(SUM($GE13)=12,SUM($EL13),"") ->  | PW13: =IF(OR(GE13=12,EU13="○"),SUM($EL13),"") ->  | PZ13: =IF(EX13="○",SUM($EL13),"") ->  | QC13: =IF(FA13="○",SUM($EL13),"") ->  | QF13: =IF(FD13="○",SUM($EL13),"") ->  | QI13: =IF(FG13="○",SUM($EL13),"") ->  | QL13: =IF(FJ13="○",SUM($EL13),"") ->  | QO13: =IF(FM13="○",SUM($EL13),"") ->  | QR13: =IF(FP13="○",SUM($EL13),"") ->  | QU13: =IF(FS13="○",SUM($EL13),"") ->  | QX13: =IF(FV13="○",SUM($EL13),"") ->  | RA13: =IF(FY13="○",SUM($EL13),"") ->  | RD13: =IF(GB13="○",SUM($EL13),"") -> 
B14: 2 | R14: =IF(AND($U14="",$K14=""),"",IF($U14="",所得計算!$I7,$U14)) ->  | AE14: =IF(所得計算!AJ$4="","",所得計算!AJ$4) ->  | BF14: =IF(所得計算!AJ$23="","",所得計算!AJ$23) ->  | DY14: =IF(OR(AND(SUM($AL14)=1,SUM($X14)<=8500000),AND(SUM($AL14)=1,SUM($X14)>8500000,SUM($BF14)>0)),"所得金額調整控除１？",IF(OR(AND(SUM($AL14)=2,OR(SUM(所得計算!$BF$5:$BF$15)=0,SUM($BF14)=0)),AND(SUM($AL14)=2,OR(SUM($X14)>8500000,SUM($BF14)=0))),"所得金額調整控除２？",IF(AND(SUM($AL14)=3,OR(SUM($X14)<=8500000,SUM($BF14)=0)),"所得金額調整控除３？",IF(AND($AL14="",OR(SUM($X14)>8500000,AND(SUM(所得計算!$BF$5:$BF$15)>0,SUM($BF14)>0))),"所得金額調整控除サイン不要？","")))) ->  | EL14: =IF(SUM(DC14,CH14,CV14)=0,0,SUM(DC14,CH14,CV14)-SUM(所得計算!$AU$4)-SUM(所得計算!$AJ$36)) -> 0 | EO14: =IF(OR(SUM(AE14)>0,SUM(BF14)>0),1,"") ->  | ES14: 2 | GP14: =IF($GM14="","",IF(HLOOKUP($GM14,$GU$12:$ID$22,3,FALSE)>=65,"","65未到達")) ->  | GU14: =IF($R14="","",IF($U14="",IF(EOMONTH(VALUE("R"&基本項目!$B$3&"."&EU$12&".1"),0)<$K14,"",DATEDIF($K14-1,EOMONTH(VALUE("R"&基本項目!$B$3&"."&EU$12&".1")-1,1),"Y")),$U14)) ->  | GX14: =IF($R14="","",IF($U14="",IF(EOMONTH(VALUE("R"&基本項目!$B$3&"."&EX$12&".1"),0)<$K14,"",DATEDIF($K14-1,EOMONTH(VALUE("R"&基本項目!$B$3&"."&EX$12&".1")-1,1),"Y")),$U14)) ->  | HA14: =IF($R14="","",IF($U14="",IF(EOMONTH(VALUE("R"&基本項目!$B$3&"."&FA$12&".1"),0)<$K14,"",DATEDIF($K14-1,EOMONTH(VALUE("R"&基本項目!$B$3&"."&FA$12&".1")-1,1),"Y")),$U14)) ->  | HD14: =IF($R14="","",IF($U14="",IF(EOMONTH(VALUE("R"&基本項目!$B$3&"."&FD$12&".1"),0)<$K14,"",DATEDIF($K14-1,EOMONTH(VALUE("R"&基本項目!$B$3&"."&FD$12&".1")-1,1),"Y")),$U14)) ->  | HG14: =IF($R14="","",IF($U14="",IF(EOMONTH(VALUE("R"&基本項目!$B$3&"."&FG$12&".1"),0)<$K14,"",DATEDIF($K14-1,EOMONTH(VALUE("R"&基本項目!$B$3&"."&FG$12&".1")-1,1),"Y")),$U14)) ->  | HJ14: =IF($R14="","",IF($U14="",IF(EOMONTH(VALUE("R"&基本項目!$B$3&"."&FJ$12&".1"),0)<$K14,"",DATEDIF($K14-1,EOMONTH(VALUE("R"&基本項目!$B$3&"."&FJ$12&".1")-1,1),"Y")),$U14)) ->  | HM14: =IF($R14="","",IF($U14="",IF(EOMONTH(VALUE("R"&基本項目!$B$3&"."&FM$12&".1"),0)<$K14,"",DATEDIF($K14-1,EOMONTH(VALUE("R"&基本項目!$B$3&"."&FM$12&".1")-1,1),"Y")),$U14)) ->  | HP14: =IF($R14="","",IF($U14="",IF(EOMONTH(VALUE("R"&基本項目!$B$3&"."&FP$12&".1"),0)<$K14,"",DATEDIF($K14-1,EOMONTH(VALUE("R"&基本項目!$B$3&"."&FP$12&".1")-1,1),"Y")),$U14)) ->  | HS14: =IF($R14="","",IF($U14="",IF(EOMONTH(VALUE("R"&基本項目!$B$3&"."&FS$12&".1"),0)<$K14,"",DATEDIF($K14-1,EOMONTH(VALUE("R"&基本項目!$B$3&"."&FS$12&".1")-1,1),"Y")),$U14)) ->  | HV14: =IF($R14="","",IF($U14="",IF(EOMONTH(VALUE("R"&基本項目!$B$3+1&"."&FV$12&".1"),0)<$K14,"",DATEDIF($K14-1,EOMONTH(VALUE("R"&基本項目!$B$3+1&"."&FV$12&".1")-1,1),"Y")),$U14)) ->  | HY14: =IF($R14="","",IF($U14="",IF(EOMONTH(VALUE("R"&基本項目!$B$3+1&"."&FY$12&".1"),0)<$K14,"",DATEDIF($K14-1,EOMONTH(VALUE("R"&基本項目!$B$3+1&"."&FY$12&".1")-1,1),"Y")),$U14)) ->  | IB14: =IF($R14="","",IF($U14="",IF(EOMONTH(VALUE("R"&基本項目!$B$3+1&"."&GB$12&".1"),0)<$K14,"",DATEDIF($K14-1,EOMONTH(VALUE("R"&基本項目!$B$3+1&"."&GB$12&".1")-1,1),"Y")),$U14)) ->  | IO14: =IF($R14="","",IF($U14="",IF(EOMONTH(VALUE("R"&基本項目!$B$3&"."&EU$12&".1"),0)<$K14,"",DATEDIF($K14,EOMONTH(VALUE("R"&基本項目!$B$3&"."&EU$12&".1")-1,1),"Y")),$U14)) ->  | IR14: =IF($R14="","",IF($U14="",IF(EOMONTH(VALUE("R"&基本項目!$B$3&"."&EX$12&".1"),0)<$K14,"",DATEDIF($K14,EOMONTH(VALUE("R"&基本項目!$B$3&"."&EX$12&".1")-1,1),"Y")),$U14)) ->  | IU14: =IF($R14="","",IF($U14="",IF(EOMONTH(VALUE("R"&基本項目!$B$3&"."&FA$12&".1"),0)<$K14,"",DATEDIF($K14,EOMONTH(VALUE("R"&基本項目!$B$3&"."&FA$12&".1")-1,1),"Y")),$U14)) ->  | IX14: =IF($R14="","",IF($U14="",IF(EOMONTH(VALUE("R"&基本項目!$B$3&"."&FD$12&".1"),0)<$K14,"",DATEDIF($K14,EOMONTH(VALUE("R"&基本項目!$B$3&"."&FD$12&".1")-1,1),"Y")),$U14)) ->  | JA14: =IF($R14="","",IF($U14="",IF(EOMONTH(VALUE("R"&基本項目!$B$3&"."&FG$12&".1"),0)<$K14,"",DATEDIF($K14,EOMONTH(VALUE("R"&基本項目!$B$3&"."&FG$12&".1")-1,1),"Y")),$U14)) ->  | JD14: =IF($R14="","",IF($U14="",IF(EOMONTH(VALUE("R"&基本項目!$B$3&"."&FJ$12&".1"),0)<$K14,"",DATEDIF($K14,EOMONTH(VALUE("R"&基本項目!$B$3&"."&FJ$12&".1")-1,1),"Y")),$U14)) ->  | JG14: =IF($R14="","",IF($U14="",IF(EOMONTH(VALUE("R"&基本項目!$B$3&"."&FM$12&".1"),0)<$K14,"",DATEDIF($K14,EOMONTH(VALUE("R"&基本項目!$B$3&"."&FM$12&".1")-1,1),"Y")),$U14)) ->  | JJ14: =IF($R14="","",IF($U14="",IF(EOMONTH(VALUE("R"&基本項目!$B$3&"."&FP$12&".1"),0)<$K14,"",DATEDIF($K14,EOMONTH(VALUE("R"&基本項目!$B$3&"."&FP$12&".1")-1,1),"Y")),$U14)) ->  | JM14: =IF($R14="","",IF($U14="",IF(EOMONTH(VALUE("R"&基本項目!$B$3&"."&FS$12&".1"),0)<$K14,"",DATEDIF($K14,EOMONTH(VALUE("R"&基本項目!$B$3&"."&FS$12&".1")-1,1),"Y")),$U14)) ->  | JP14: =IF($R14="","",IF($U14="",IF(EOMONTH(VALUE("R"&基本項目!$B$3+1&"."&FV$12&".1"),0)<$K14,"",DATEDIF($K14,EOMONTH(VALUE("R"&基本項目!$B$3+1&"."&FV$12&".1")-1,1),"Y")),$U14)) ->  | JS14: =IF($R14="","",IF($U14="",IF(EOMONTH(VALUE("R"&基本項目!$B$3+1&"."&FY$12&".1"),0)<$K14,"",DATEDIF($K14,EOMONTH(VALUE("R"&基本項目!$B$3+1&"."&FY$12&".1")-1,1),"Y")),$U14)) ->  | JV14: =IF($R14="","",IF($U14="",IF(EOMONTH(VALUE("R"&基本項目!$B$3+1&"."&GB$12&".1"),0)<$K14,"",DATEDIF($K14,EOMONTH(VALUE("R"&基本項目!$B$3+1&"."&GB$12&".1")-1,1),"Y")),$U14)) ->  | KI14: =IF($R14="","",IF($U14="",IF(EOMONTH(VALUE("R"&基本項目!$B$3&"."&EU$12&".1"),0)<$K14,"",DATEDIF($K14,EOMONTH(VALUE("R"&基本項目!$B$3&"."&EU$12&".1")-1,1),"Y")),$U14)) ->  | KL14: =IF($R14="","",IF($U14="",IF(EOMONTH(VALUE("R"&基本項目!$B$3&"."&EX$12&".1"),0)<$K14,"",DATEDIF($K14,EOMONTH(VALUE("R"&基本項目!$B$3&"."&EX$12&".1")-1,1),"Y")),$U14)) ->  | KO14: =IF($R14="","",IF($U14="",IF(EOMONTH(VALUE("R"&基本項目!$B$3&"."&FA$12&".1"),0)<$K14,"",DATEDIF($K14,EOMONTH(VALUE("R"&基本項目!$B$3&"."&FA$12&".1")-1,1),"Y")),$U14)) ->  | KR14: =IF($R14="","",IF($U14="",IF(EOMONTH(VALUE("R"&基本項目!$B$3&"."&FD$12&".1"),0)<$K14,"",DATEDIF($K14,EOMONTH(VALUE("R"&基本項目!$B$3&"."&FD$12&".1")-1,1),"Y")),$U14)) ->  | KU14: =IF($R14="","",IF($U14="",IF(EOMONTH(VALUE("R"&基本項目!$B$3&"."&FG$12&".1"),0)<$K14,"",DATEDIF($K14,EOMONTH(VALUE("R"&基本項目!$B$3&"."&FG$12&".1")-1,1),"Y")),$U14)) ->  | KX14: =IF($R14="","",IF($U14="",IF(EOMONTH(VALUE("R"&基本項目!$B$3&"."&FJ$12&".1"),0)<$K14,"",DATEDIF($K14,EOMONTH(VALUE("R"&基本項目!$B$3&"."&FJ$12&".1")-1,1),"Y")),$U14)) ->  | LA14: =IF($R14="","",IF($U14="",IF(EOMONTH(VALUE("R"&基本項目!$B$3&"."&FM$12&".1"),0)<$K14,"",DATEDIF($K14,EOMONTH(VALUE("R"&基本項目!$B$3&"."&FM$12&".1")-1,1),"Y")),$U14)) ->  | LD14: =IF($R14="","",IF($U14="",IF(EOMONTH(VALUE("R"&基本項目!$B$3&"."&FP$12&".1"),0)<$K14,"",DATEDIF($K14,EOMONTH(VALUE("R"&基本項目!$B$3&"."&FP$12&".1")-1,1),"Y")),$U14)) ->  | LG14: =IF($R14="","",IF($U14="",IF(EOMONTH(VALUE("R"&基本項目!$B$3&"."&FS$12&".1"),0)<$K14,"",DATEDIF($K14,EOMONTH(VALUE("R"&基本項目!$B$3&"."&FS$12&".1")-1,1),"Y")),$U14)) ->  | LJ14: =IF($R14="","",IF($U14="",IF(EOMONTH(VALUE("R"&基本項目!$B$3+1&"."&FV$12&".1"),0)<$K14,"",DATEDIF($K14,EOMONTH(VALUE("R"&基本項目!$B$3+1&"."&FV$12&".1")-1,1),"Y")),$U14)) ->  | LM14: =IF($R14="","",IF($U14="",IF(EOMONTH(VALUE("R"&基本項目!$B$3+1&"."&FY$12&".1"),0)<$K14,"",DATEDIF($K14,EOMONTH(VALUE("R"&基本項目!$B$3+1&"."&FY$12&".1")-1,1),"Y")),$U14)) ->  | LP14: =IF($R14="","",IF($U14="",IF(EOMONTH(VALUE("R"&基本項目!$B$3+1&"."&GB$12&".1"),0)<$K14,"",DATEDIF($K14,EOMONTH(VALUE("R"&基本項目!$B$3+1&"."&GB$12&".1")-1,1),"Y")),$U14)) ->  | LS14: =IF($R14="","",COUNTIF($KI14:$LR14,"<=18")) ->  | LW14: =IF($R14="","",COUNTIF($KI14:$LR14,"<75")) ->  | PW14: =IF(OR(GE14=12,EU14="○"),SUM($EL14),"") ->  | PZ14: =IF(EX14="○",SUM($EL14),"") -> 
B15: 3 | R15: =IF(AND($U15="",$K15=""),"",IF($U15="",所得計算!$I8,$U15)) ->  | AE15: =IF(所得計算!AK$4="","",所得計算!AK$4) ->  | BF15: =IF(所得計算!AK$23="","",所得計算!AK$23) ->  | DY15: =IF(OR(AND(SUM($AL15)=1,SUM($X15)<=8500000),AND(SUM($AL15)=1,SUM($X15)>8500000,SUM($BF15)>0)),"所得金額調整控除１？",IF(OR(AND(SUM($AL15)=2,OR(SUM(所得計算!$BG$5:$BG$15)=0,SUM($BF15)=0)),AND(SUM($AL15)=2,OR(SUM($X15)>8500000,SUM($BF15)=0))),"所得金額調整控除２？",IF(AND(SUM($AL15)=3,OR(SUM($X15)<=8500000,SUM($BF15)=0)),"所得金額調整控除３？",IF(AND($AL15="",OR(SUM($X15)>8500000,AND(SUM(所得計算!$BG$5:$BG$15)>0,SUM($BF15)>0))),"所得金額調整控除サイン不要？","")))) ->  | EL15: =IF(SUM(DC15,CH15,CV15)=0,0,SUM(DC15,CH15,CV15)-SUM(所得計算!$AV$4)-SUM(所得計算!$AK$36)) -> 0 | ES15: 3 | GP15: =IF($GM15="","",IF(HLOOKUP($GM15,$GU$12:$ID$22,4,FALSE)>=65,"","65未到達")) ->  | GU15: =IF($R15="","",IF($U15="",IF(EOMONTH(VALUE("R"&基本項目!$B$3&"."&EU$12&".1"),0)<$K15,"",DATEDIF($K15-1,EOMONTH(VALUE("R"&基本項目!$B$3&"."&EU$12&".1")-1,1),"Y")),$U15)) ->  | GX15: =IF($R15="","",IF($U15="",IF(EOMONTH(VALUE("R"&基本項目!$B$3&"."&EX$12&".1"),0)<$K15,"",DATEDIF($K15-1,EOMONTH(VALUE("R"&基本項目!$B$3&"."&EX$12&".1")-1,1),"Y")),$U15)) ->  | HA15: =IF($R15="","",IF($U15="",IF(EOMONTH(VALUE("R"&基本項目!$B$3&"."&FA$12&".1"),0)<$K15,"",DATEDIF($K15-1,EOMONTH(VALUE("R"&基本項目!$B$3&"."&FA$12&".1")-1,1),"Y")),$U15)) ->  | HD15: =IF($R15="","",IF($U15="",IF(EOMONTH(VALUE("R"&基本項目!$B$3&"."&FD$12&".1"),0)<$K15,"",DATEDIF($K15-1,EOMONTH(VALUE("R"&基本項目!$B$3&"."&FD$12&".1")-1,1),"Y")),$U15)) ->  | HG15: =IF($R15="","",IF($U15="",IF(EOMONTH(VALUE("R"&基本項目!$B$3&"."&FG$12&".1"),0)<$K15,"",DATEDIF($K15-1,EOMONTH(VALUE("R"&基本項目!$B$3&"."&FG$12&".1")-1,1),"Y")),$U15)) ->  | HJ15: =IF($R15="","",IF($U15="",IF(EOMONTH(VALUE("R"&基本項目!$B$3&"."&FJ$12&".1"),0)<$K15,"",DATEDIF($K15-1,EOMONTH(VALUE("R"&基本項目!$B$3&"."&FJ$12&".1")-1,1),"Y")),$U15)) ->  | HM15: =IF($R15="","",IF($U15="",IF(EOMONTH(VALUE("R"&基本項目!$B$3&"."&FM$12&".1"),0)<$K15,"",DATEDIF($K15-1,EOMONTH(VALUE("R"&基本項目!$B$3&"."&FM$12&".1")-1,1),"Y")),$U15)) ->  | HP15: =IF($R15="","",IF($U15="",IF(EOMONTH(VALUE("R"&基本項目!$B$3&"."&FP$12&".1"),0)<$K15,"",DATEDIF($K15-1,EOMONTH(VALUE("R"&基本項目!$B$3&"."&FP$12&".1")-1,1),"Y")),$U15)) ->  | HS15: =IF($R15="","",IF($U15="",IF(EOMONTH(VALUE("R"&基本項目!$B$3&"."&FS$12&".1"),0)<$K15,"",DATEDIF($K15-1,EOMONTH(VALUE("R"&基本項目!$B$3&"."&FS$12&".1")-1,1),"Y")),$U15)) ->  | HV15: =IF($R15="","",IF($U15="",IF(EOMONTH(VALUE("R"&基本項目!$B$3+1&"."&FV$12&".1"),0)<$K15,"",DATEDIF($K15-1,EOMONTH(VALUE("R"&基本項目!$B$3+1&"."&FV$12&".1")-1,1),"Y")),$U15)) ->  | HY15: =IF($R15="","",IF($U15="",IF(EOMONTH(VALUE("R"&基本項目!$B$3+1&"."&FY$12&".1"),0)<$K15,"",DATEDIF($K15-1,EOMONTH(VALUE("R"&基本項目!$B$3+1&"."&FY$12&".1")-1,1),"Y")),$U15)) ->  | IB15: =IF($R15="","",IF($U15="",IF(EOMONTH(VALUE("R"&基本項目!$B$3+1&"."&GB$12&".1"),0)<$K15,"",DATEDIF($K15-1,EOMONTH(VALUE("R"&基本項目!$B$3+1&"."&GB$12&".1")-1,1),"Y")),$U15)) ->  | IO15: =IF($R15="","",IF($U15="",IF(EOMONTH(VALUE("R"&基本項目!$B$3&"."&EU$12&".1"),0)<$K15,"",DATEDIF($K15,EOMONTH(VALUE("R"&基本項目!$B$3&"."&EU$12&".1")-1,1),"Y")),$U15)) ->  | IR15: =IF($R15="","",IF($U15="",IF(EOMONTH(VALUE("R"&基本項目!$B$3&"."&EX$12&".1"),0)<$K15,"",DATEDIF($K15,EOMONTH(VALUE("R"&基本項目!$B$3&"."&EX$12&".1")-1,1),"Y")),$U15)) ->  | IU15: =IF($R15="","",IF($U15="",IF(EOMONTH(VALUE("R"&基本項目!$B$3&"."&FA$12&".1"),0)<$K15,"",DATEDIF($K15,EOMONTH(VALUE("R"&基本項目!$B$3&"."&FA$12&".1")-1,1),"Y")),$U15)) ->  | IX15: =IF($R15="","",IF($U15="",IF(EOMONTH(VALUE("R"&基本項目!$B$3&"."&FD$12&".1"),0)<$K15,"",DATEDIF($K15,EOMONTH(VALUE("R"&基本項目!$B$3&"."&FD$12&".1")-1,1),"Y")),$U15)) ->  | JA15: =IF($R15="","",IF($U15="",IF(EOMONTH(VALUE("R"&基本項目!$B$3&"."&FG$12&".1"),0)<$K15,"",DATEDIF($K15,EOMONTH(VALUE("R"&基本項目!$B$3&"."&FG$12&".1")-1,1),"Y")),$U15)) ->  | JD15: =IF($R15="","",IF($U15="",IF(EOMONTH(VALUE("R"&基本項目!$B$3&"."&FJ$12&".1"),0)<$K15,"",DATEDIF($K15,EOMONTH(VALUE("R"&基本項目!$B$3&"."&FJ$12&".1")-1,1),"Y")),$U15)) ->  | JG15: =IF($R15="","",IF($U15="",IF(EOMONTH(VALUE("R"&基本項目!$B$3&"."&FM$12&".1"),0)<$K15,"",DATEDIF($K15,EOMONTH(VALUE("R"&基本項目!$B$3&"."&FM$12&".1")-1,1),"Y")),$U15)) ->  | JJ15: =IF($R15="","",IF($U15="",IF(EOMONTH(VALUE("R"&基本項目!$B$3&"."&FP$12&".1"),0)<$K15,"",DATEDIF($K15,EOMONTH(VALUE("R"&基本項目!$B$3&"."&FP$12&".1")-1,1),"Y")),$U15)) ->  | JM15: =IF($R15="","",IF($U15="",IF(EOMONTH(VALUE("R"&基本項目!$B$3&"."&FS$12&".1"),0)<$K15,"",DATEDIF($K15,EOMONTH(VALUE("R"&基本項目!$B$3&"."&FS$12&".1")-1,1),"Y")),$U15)) ->  | JP15: =IF($R15="","",IF($U15="",IF(EOMONTH(VALUE("R"&基本項目!$B$3+1&"."&FV$12&".1"),0)<$K15,"",DATEDIF($K15,EOMONTH(VALUE("R"&基本項目!$B$3+1&"."&FV$12&".1")-1,1),"Y")),$U15)) ->  | JS15: =IF($R15="","",IF($U15="",IF(EOMONTH(VALUE("R"&基本項目!$B$3+1&"."&FY$12&".1"),0)<$K15,"",DATEDIF($K15,EOMONTH(VALUE("R"&基本項目!$B$3+1&"."&FY$12&".1")-1,1),"Y")),$U15)) ->  | JV15: =IF($R15="","",IF($U15="",IF(EOMONTH(VALUE("R"&基本項目!$B$3+1&"."&GB$12&".1"),0)<$K15,"",DATEDIF($K15,EOMONTH(VALUE("R"&基本項目!$B$3+1&"."&GB$12&".1")-1,1),"Y")),$U15)) ->  | KI15: =IF($R15="","",IF($U15="",IF(EOMONTH(VALUE("R"&基本項目!$B$3&"."&EU$12&".1"),0)<$K15,"",DATEDIF($K15,EOMONTH(VALUE("R"&基本項目!$B$3&"."&EU$12&".1")-1,1),"Y")),$U15)) ->  | KL15: =IF($R15="","",IF($U15="",IF(EOMONTH(VALUE("R"&基本項目!$B$3&"."&EX$12&".1"),0)<$K15,"",DATEDIF($K15,EOMONTH(VALUE("R"&基本項目!$B$3&"."&EX$12&".1")-1,1),"Y")),$U15)) ->  | KO15: =IF($R15="","",IF($U15="",IF(EOMONTH(VALUE("R"&基本項目!$B$3&"."&FA$12&".1"),0)<$K15,"",DATEDIF($K15,EOMONTH(VALUE("R"&基本項目!$B$3&"."&FA$12&".1")-1,1),"Y")),$U15)) ->  | KR15: =IF($R15="","",IF($U15="",IF(EOMONTH(VALUE("R"&基本項目!$B$3&"."&FD$12&".1"),0)<$K15,"",DATEDIF($K15,EOMONTH(VALUE("R"&基本項目!$B$3&"."&FD$12&".1")-1,1),"Y")),$U15)) ->  | KU15: =IF($R15="","",IF($U15="",IF(EOMONTH(VALUE("R"&基本項目!$B$3&"."&FG$12&".1"),0)<$K15,"",DATEDIF($K15,EOMONTH(VALUE("R"&基本項目!$B$3&"."&FG$12&".1")-1,1),"Y")),$U15)) ->  | KX15: =IF($R15="","",IF($U15="",IF(EOMONTH(VALUE("R"&基本項目!$B$3&"."&FJ$12&".1"),0)<$K15,"",DATEDIF($K15,EOMONTH(VALUE("R"&基本項目!$B$3&"."&FJ$12&".1")-1,1),"Y")),$U15)) ->  | LA15: =IF($R15="","",IF($U15="",IF(EOMONTH(VALUE("R"&基本項目!$B$3&"."&FM$12&".1"),0)<$K15,"",DATEDIF($K15,EOMONTH(VALUE("R"&基本項目!$B$3&"."&FM$12&".1")-1,1),"Y")),$U15)) ->  | LD15: =IF($R15="","",IF($U15="",IF(EOMONTH(VALUE("R"&基本項目!$B$3&"."&FP$12&".1"),0)<$K15,"",DATEDIF($K15,EOMONTH(VALUE("R"&基本項目!$B$3&"."&FP$12&".1")-1,1),"Y")),$U15)) ->  | LG15: =IF($R15="","",IF($U15="",IF(EOMONTH(VALUE("R"&基本項目!$B$3&"."&FS$12&".1"),0)<$K15,"",DATEDIF($K15,EOMONTH(VALUE("R"&基本項目!$B$3&"."&FS$12&".1")-1,1),"Y")),$U15)) ->  | LJ15: =IF($R15="","",IF($U15="",IF(EOMONTH(VALUE("R"&基本項目!$B$3+1&"."&FV$12&".1"),0)<$K15,"",DATEDIF($K15,EOMONTH(VALUE("R"&基本項目!$B$3+1&"."&FV$12&".1")-1,1),"Y")),$U15)) ->  | LM15: =IF($R15="","",IF($U15="",IF(EOMONTH(VALUE("R"&基本項目!$B$3+1&"."&FY$12&".1"),0)<$K15,"",DATEDIF($K15,EOMONTH(VALUE("R"&基本項目!$B$3+1&"."&FY$12&".1")-1,1),"Y")),$U15)) ->  | LP15: =IF($R15="","",IF($U15="",IF(EOMONTH(VALUE("R"&基本項目!$B$3+1&"."&GB$12&".1"),0)<$K15,"",DATEDIF($K15,EOMONTH(VALUE("R"&基本項目!$B$3+1&"."&GB$12&".1")-1,1),"Y")),$U15)) -> 
B16: 4 | R16: =IF(AND($U16="",$K16=""),"",IF($U16="",所得計算!$I9,$U16)) ->  | AE16: =IF(所得計算!AL$4="","",所得計算!AL$4) ->  | BF16: =IF(所得計算!AL$23="","",所得計算!AL$23) ->  | DY16: =IF(OR(AND(SUM($AL16)=1,SUM($X16)<=8500000),AND(SUM($AL16)=1,SUM($X16)>8500000,SUM($BF16)>0)),"所得金額調整控除１？",IF(OR(AND(SUM($AL16)=2,OR(SUM(所得計算!$BH$5:$BH$15)=0,SUM($BF16)=0)),AND(SUM($AL16)=2,OR(SUM($X16)>8500000,SUM($BF16)=0))),"所得金額調整控除２？",IF(AND(SUM($AL16)=3,OR(SUM($X16)<=8500000,SUM($BF16)=0)),"所得金額調整控除３？",IF(AND($AL16="",OR(SUM($X16)>8500000,AND(SUM(所得計算!$BH$5:$BH$15)>0,SUM($BF16)>0))),"所得金額調整控除サイン不要？","")))) ->  | EL16: =IF(SUM(DC16,CH16,CV16)=0,0,SUM(DC16,CH16,CV16)-SUM(所得計算!$AW$4)-SUM(所得計算!$AL$36)) -> 0 | ES16: 4 | GP16: =IF($GM16="","",IF(HLOOKUP($GM16,$GU$12:$ID$22,5,FALSE)>=65,"","65未到達")) ->  | GU16: =IF($R16="","",IF($U16="",IF(EOMONTH(VALUE("R"&基本項目!$B$3&"."&EU$12&".1"),0)<$K16,"",DATEDIF($K16-1,EOMONTH(VALUE("R"&基本項目!$B$3&"."&EU$12&".1")-1,1),"Y")),$U16)) ->  | GX16: =IF($R16="","",IF($U16="",IF(EOMONTH(VALUE("R"&基本項目!$B$3&"."&EX$12&".1"),0)<$K16,"",DATEDIF($K16-1,EOMONTH(VALUE("R"&基本項目!$B$3&"."&EX$12&".1")-1,1),"Y")),$U16)) ->  | HA16: =IF($R16="","",IF($U16="",IF(EOMONTH(VALUE("R"&基本項目!$B$3&"."&FA$12&".1"),0)<$K16,"",DATEDIF($K16-1,EOMONTH(VALUE("R"&基本項目!$B$3&"."&FA$12&".1")-1,1),"Y")),$U16)) ->  | HD16: =IF($R16="","",IF($U16="",IF(EOMONTH(VALUE("R"&基本項目!$B$3&"."&FD$12&".1"),0)<$K16,"",DATEDIF($K16-1,EOMONTH(VALUE("R"&基本項目!$B$3&"."&FD$12&".1")-1,1),"Y")),$U16)) ->  | HG16: =IF($R16="","",IF($U16="",IF(EOMONTH(VALUE("R"&基本項目!$B$3&"."&FG$12&".1"),0)<$K16,"",DATEDIF($K16-1,EOMONTH(VALUE("R"&基本項目!$B$3&"."&FG$12&".1")-1,1),"Y")),$U16)) ->  | HJ16: =IF($R16="","",IF($U16="",IF(EOMONTH(VALUE("R"&基本項目!$B$3&"."&FJ$12&".1"),0)<$K16,"",DATEDIF($K16-1,EOMONTH(VALUE("R"&基本項目!$B$3&"."&FJ$12&".1")-1,1),"Y")),$U16)) ->  | HM16: =IF($R16="","",IF($U16="",IF(EOMONTH(VALUE("R"&基本項目!$B$3&"."&FM$12&".1"),0)<$K16,"",DATEDIF($K16-1,EOMONTH(VALUE("R"&基本項目!$B$3&"."&FM$12&".1")-1,1),"Y")),$U16)) ->  | HP16: =IF($R16="","",IF($U16="",IF(EOMONTH(VALUE("R"&基本項目!$B$3&"."&FP$12&".1"),0)<$K16,"",DATEDIF($K16-1,EOMONTH(VALUE("R"&基本項目!$B$3&"."&FP$12&".1")-1,1),"Y")),$U16)) ->  | HS16: =IF($R16="","",IF($U16="",IF(EOMONTH(VALUE("R"&基本項目!$B$3&"."&FS$12&".1"),0)<$K16,"",DATEDIF($K16-1,EOMONTH(VALUE("R"&基本項目!$B$3&"."&FS$12&".1")-1,1),"Y")),$U16)) ->  | HV16: =IF($R16="","",IF($U16="",IF(EOMONTH(VALUE("R"&基本項目!$B$3+1&"."&FV$12&".1"),0)<$K16,"",DATEDIF($K16-1,EOMONTH(VALUE("R"&基本項目!$B$3+1&"."&FV$12&".1")-1,1),"Y")),$U16)) ->  | HY16: =IF($R16="","",IF($U16="",IF(EOMONTH(VALUE("R"&基本項目!$B$3+1&"."&FY$12&".1"),0)<$K16,"",DATEDIF($K16-1,EOMONTH(VALUE("R"&基本項目!$B$3+1&"."&FY$12&".1")-1,1),"Y")),$U16)) ->  | IB16: =IF($R16="","",IF($U16="",IF(EOMONTH(VALUE("R"&基本項目!$B$3+1&"."&GB$12&".1"),0)<$K16,"",DATEDIF($K16-1,EOMONTH(VALUE("R"&基本項目!$B$3+1&"."&GB$12&".1")-1,1),"Y")),$U16)) ->  | IO16: =IF($R16="","",IF($U16="",IF(EOMONTH(VALUE("R"&基本項目!$B$3&"."&EU$12&".1"),0)<$K16,"",DATEDIF($K16,EOMONTH(VALUE("R"&基本項目!$B$3&"."&EU$12&".1")-1,1),"Y")),$U16)) ->  | IR16: =IF($R16="","",IF($U16="",IF(EOMONTH(VALUE("R"&基本項目!$B$3&"."&EX$12&".1"),0)<$K16,"",DATEDIF($K16,EOMONTH(VALUE("R"&基本項目!$B$3&"."&EX$12&".1")-1,1),"Y")),$U16)) ->  | IU16: =IF($R16="","",IF($U16="",IF(EOMONTH(VALUE("R"&基本項目!$B$3&"."&FA$12&".1"),0)<$K16,"",DATEDIF($K16,EOMONTH(VALUE("R"&基本項目!$B$3&"."&FA$12&".1")-1,1),"Y")),$U16)) ->  | IX16: =IF($R16="","",IF($U16="",IF(EOMONTH(VALUE("R"&基本項目!$B$3&"."&FD$12&".1"),0)<$K16,"",DATEDIF($K16,EOMONTH(VALUE("R"&基本項目!$B$3&"."&FD$12&".1")-1,1),"Y")),$U16)) ->  | JA16: =IF($R16="","",IF($U16="",IF(EOMONTH(VALUE("R"&基本項目!$B$3&"."&FG$12&".1"),0)<$K16,"",DATEDIF($K16,EOMONTH(VALUE("R"&基本項目!$B$3&"."&FG$12&".1")-1,1),"Y")),$U16)) ->  | JD16: =IF($R16="","",IF($U16="",IF(EOMONTH(VALUE("R"&基本項目!$B$3&"."&FJ$12&".1"),0)<$K16,"",DATEDIF($K16,EOMONTH(VALUE("R"&基本項目!$B$3&"."&FJ$12&".1")-1,1),"Y")),$U16)) ->  | JG16: =IF($R16="","",IF($U16="",IF(EOMONTH(VALUE("R"&基本項目!$B$3&"."&FM$12&".1"),0)<$K16,"",DATEDIF($K16,EOMONTH(VALUE("R"&基本項目!$B$3&"."&FM$12&".1")-1,1),"Y")),$U16)) ->  | JJ16: =IF($R16="","",IF($U16="",IF(EOMONTH(VALUE("R"&基本項目!$B$3&"."&FP$12&".1"),0)<$K16,"",DATEDIF($K16,EOMONTH(VALUE("R"&基本項目!$B$3&"."&FP$12&".1")-1,1),"Y")),$U16)) ->  | JM16: =IF($R16="","",IF($U16="",IF(EOMONTH(VALUE("R"&基本項目!$B$3&"."&FS$12&".1"),0)<$K16,"",DATEDIF($K16,EOMONTH(VALUE("R"&基本項目!$B$3&"."&FS$12&".1")-1,1),"Y")),$U16)) ->  | JP16: =IF($R16="","",IF($U16="",IF(EOMONTH(VALUE("R"&基本項目!$B$3+1&"."&FV$12&".1"),0)<$K16,"",DATEDIF($K16,EOMONTH(VALUE("R"&基本項目!$B$3+1&"."&FV$12&".1")-1,1),"Y")),$U16)) ->  | JS16: =IF($R16="","",IF($U16="",IF(EOMONTH(VALUE("R"&基本項目!$B$3+1&"."&FY$12&".1"),0)<$K16,"",DATEDIF($K16,EOMONTH(VALUE("R"&基本項目!$B$3+1&"."&FY$12&".1")-1,1),"Y")),$U16)) ->  | JV16: =IF($R16="","",IF($U16="",IF(EOMONTH(VALUE("R"&基本項目!$B$3+1&"."&GB$12&".1"),0)<$K16,"",DATEDIF($K16,EOMONTH(VALUE("R"&基本項目!$B$3+1&"."&GB$12&".1")-1,1),"Y")),$U16)) ->  | KI16: =IF($R16="","",IF($U16="",IF(EOMONTH(VALUE("R"&基本項目!$B$3&"."&EU$12&".1"),0)<$K16,"",DATEDIF($K16,EOMONTH(VALUE("R"&基本項目!$B$3&"."&EU$12&".1")-1,1),"Y")),$U16)) ->  | KL16: =IF($R16="","",IF($U16="",IF(EOMONTH(VALUE("R"&基本項目!$B$3&"."&EX$12&".1"),0)<$K16,"",DATEDIF($K16,EOMONTH(VALUE("R"&基本項目!$B$3&"."&EX$12&".1")-1,1),"Y")),$U16)) ->  | KO16: =IF($R16="","",IF($U16="",IF(EOMONTH(VALUE("R"&基本項目!$B$3&"."&FA$12&".1"),0)<$K16,"",DATEDIF($K16,EOMONTH(VALUE("R"&基本項目!$B$3&"."&FA$12&".1")-1,1),"Y")),$U16)) ->  | KR16: =IF($R16="","",IF($U16="",IF(EOMONTH(VALUE("R"&基本項目!$B$3&"."&FD$12&".1"),0)<$K16,"",DATEDIF($K16,EOMONTH(VALUE("R"&基本項目!$B$3&"."&FD$12&".1")-1,1),"Y")),$U16)) ->  | KU16: =IF($R16="","",IF($U16="",IF(EOMONTH(VALUE("R"&基本項目!$B$3&"."&FG$12&".1"),0)<$K16,"",DATEDIF($K16,EOMONTH(VALUE("R"&基本項目!$B$3&"."&FG$12&".1")-1,1),"Y")),$U16)) ->  | KX16: =IF($R16="","",IF($U16="",IF(EOMONTH(VALUE("R"&基本項目!$B$3&"."&FJ$12&".1"),0)<$K16,"",DATEDIF($K16,EOMONTH(VALUE("R"&基本項目!$B$3&"."&FJ$12&".1")-1,1),"Y")),$U16)) ->  | LA16: =IF($R16="","",IF($U16="",IF(EOMONTH(VALUE("R"&基本項目!$B$3&"."&FM$12&".1"),0)<$K16,"",DATEDIF($K16,EOMONTH(VALUE("R"&基本項目!$B$3&"."&FM$12&".1")-1,1),"Y")),$U16)) ->  | LD16: =IF($R16="","",IF($U16="",IF(EOMONTH(VALUE("R"&基本項目!$B$3&"."&FP$12&".1"),0)<$K16,"",DATEDIF($K16,EOMONTH(VALUE("R"&基本項目!$B$3&"."&FP$12&".1")-1,1),"Y")),$U16)) ->  | LG16: =IF($R16="","",IF($U16="",IF(EOMONTH(VALUE("R"&基本項目!$B$3&"."&FS$12&".1"),0)<$K16,"",DATEDIF($K16,EOMONTH(VALUE("R"&基本項目!$B$3&"."&FS$12&".1")-1,1),"Y")),$U16)) ->  | LJ16: =IF($R16="","",IF($U16="",IF(EOMONTH(VALUE("R"&基本項目!$B$3+1&"."&FV$12&".1"),0)<$K16,"",DATEDIF($K16,EOMONTH(VALUE("R"&基本項目!$B$3+1&"."&FV$12&".1")-1,1),"Y")),$U16)) ->  | LM16: =IF($R16="","",IF($U16="",IF(EOMONTH(VALUE("R"&基本項目!$B$3+1&"."&FY$12&".1"),0)<$K16,"",DATEDIF($K16,EOMONTH(VALUE("R"&基本項目!$B$3+1&"."&FY$12&".1")-1,1),"Y")),$U16)) ->  | LP16: =IF($R16="","",IF($U16="",IF(EOMONTH(VALUE("R"&基本項目!$B$3+1&"."&GB$12&".1"),0)<$K16,"",DATEDIF($K16,EOMONTH(VALUE("R"&基本項目!$B$3+1&"."&GB$12&".1")-1,1),"Y")),$U16)) -> 
B17: 5 | R17: =IF(AND($U17="",$K17=""),"",IF($U17="",所得計算!$I10,$U17)) ->  | AE17: =IF(所得計算!AM$4="","",所得計算!AM$4) ->  | BF17: =IF(所得計算!AM$23="","",所得計算!AM$23) ->  | DY17: =IF(OR(AND(SUM($AL17)=1,SUM($X17)<=8500000),AND(SUM($AL17)=1,SUM($X17)>8500000,SUM($BF17)>0)),"所得金額調整控除１？",IF(OR(AND(SUM($AL17)=2,OR(SUM(所得計算!$BI$5:$BI$15)=0,SUM($BF17)=0)),AND(SUM($AL17)=2,OR(SUM($X17)>8500000,SUM($BF17)=0))),"所得金額調整控除２？",IF(AND(SUM($AL17)=3,OR(SUM($X17)<=8500000,SUM($BF17)=0)),"所得金額調整控除３？",IF(AND($AL17="",OR(SUM($X17)>8500000,AND(SUM(所得計算!$BI$5:$BI$15)>0,SUM($BF17)>0))),"所得金額調整控除サイン不要？","")))) ->  | EL17: =IF(SUM(DC17,CH17,CV17)=0,0,SUM(DC17,CH17,CV17)-SUM(所得計算!$AX$4)-SUM(所得計算!$AM$36)) -> 0 | ES17: 5 | GP17: =IF($GM17="","",IF(HLOOKUP($GM17,$GU$12:$ID$22,6,FALSE)>=65,"","65未到達")) ->  | GU17: =IF($R17="","",IF($U17="",IF(EOMONTH(VALUE("R"&基本項目!$B$3&"."&EU$12&".1"),0)<$K17,"",DATEDIF($K17-1,EOMONTH(VALUE("R"&基本項目!$B$3&"."&EU$12&".1")-1,1),"Y")),$U17)) ->  | GX17: =IF($R17="","",IF($U17="",IF(EOMONTH(VALUE("R"&基本項目!$B$3&"."&EX$12&".1"),0)<$K17,"",DATEDIF($K17-1,EOMONTH(VALUE("R"&基本項目!$B$3&"."&EX$12&".1")-1,1),"Y")),$U17)) ->  | HA17: =IF($R17="","",IF($U17="",IF(EOMONTH(VALUE("R"&基本項目!$B$3&"."&FA$12&".1"),0)<$K17,"",DATEDIF($K17-1,EOMONTH(VALUE("R"&基本項目!$B$3&"."&FA$12&".1")-1,1),"Y")),$U17)) ->  | HD17: =IF($R17="","",IF($U17="",IF(EOMONTH(VALUE("R"&基本項目!$B$3&"."&FD$12&".1"),0)<$K17,"",DATEDIF($K17-1,EOMONTH(VALUE("R"&基本項目!$B$3&"."&FD$12&".1")-1,1),"Y")),$U17)) ->  | HG17: =IF($R17="","",IF($U17="",IF(EOMONTH(VALUE("R"&基本項目!$B$3&"."&FG$12&".1"),0)<$K17,"",DATEDIF($K17-1,EOMONTH(VALUE("R"&基本項目!$B$3&"."&FG$12&".1")-1,1),"Y")),$U17)) ->  | HJ17: =IF($R17="","",IF($U17="",IF(EOMONTH(VALUE("R"&基本項目!$B$3&"."&FJ$12&".1"),0)<$K17,"",DATEDIF($K17-1,EOMONTH(VALUE("R"&基本項目!$B$3&"."&FJ$12&".1")-1,1),"Y")),$U17)) ->  | HM17: =IF($R17="","",IF($U17="",IF(EOMONTH(VALUE("R"&基本項目!$B$3&"."&FM$12&".1"),0)<$K17,"",DATEDIF($K17-1,EOMONTH(VALUE("R"&基本項目!$B$3&"."&FM$12&".1")-1,1),"Y")),$U17)) ->  | HP17: =IF($R17="","",IF($U17="",IF(EOMONTH(VALUE("R"&基本項目!$B$3&"."&FP$12&".1"),0)<$K17,"",DATEDIF($K17-1,EOMONTH(VALUE("R"&基本項目!$B$3&"."&FP$12&".1")-1,1),"Y")),$U17)) ->  | HS17: =IF($R17="","",IF($U17="",IF(EOMONTH(VALUE("R"&基本項目!$B$3&"."&FS$12&".1"),0)<$K17,"",DATEDIF($K17-1,EOMONTH(VALUE("R"&基本項目!$B$3&"."&FS$12&".1")-1,1),"Y")),$U17)) ->  | HV17: =IF($R17="","",IF($U17="",IF(EOMONTH(VALUE("R"&基本項目!$B$3+1&"."&FV$12&".1"),0)<$K17,"",DATEDIF($K17-1,EOMONTH(VALUE("R"&基本項目!$B$3+1&"."&FV$12&".1")-1,1),"Y")),$U17)) ->  | HY17: =IF($R17="","",IF($U17="",IF(EOMONTH(VALUE("R"&基本項目!$B$3+1&"."&FY$12&".1"),0)<$K17,"",DATEDIF($K17-1,EOMONTH(VALUE("R"&基本項目!$B$3+1&"."&FY$12&".1")-1,1),"Y")),$U17)) ->  | IB17: =IF($R17="","",IF($U17="",IF(EOMONTH(VALUE("R"&基本項目!$B$3+1&"."&GB$12&".1"),0)<$K17,"",DATEDIF($K17-1,EOMONTH(VALUE("R"&基本項目!$B$3+1&"."&GB$12&".1")-1,1),"Y")),$U17)) ->  | IO17: =IF($R17="","",IF($U17="",IF(EOMONTH(VALUE("R"&基本項目!$B$3&"."&EU$12&".1"),0)<$K17,"",DATEDIF($K17,EOMONTH(VALUE("R"&基本項目!$B$3&"."&EU$12&".1")-1,1),"Y")),$U17)) ->  | IR17: =IF($R17="","",IF($U17="",IF(EOMONTH(VALUE("R"&基本項目!$B$3&"."&EX$12&".1"),0)<$K17,"",DATEDIF($K17,EOMONTH(VALUE("R"&基本項目!$B$3&"."&EX$12&".1")-1,1),"Y")),$U17)) ->  | IU17: =IF($R17="","",IF($U17="",IF(EOMONTH(VALUE("R"&基本項目!$B$3&"."&FA$12&".1"),0)<$K17,"",DATEDIF($K17,EOMONTH(VALUE("R"&基本項目!$B$3&"."&FA$12&".1")-1,1),"Y")),$U17)) ->  | IX17: =IF($R17="","",IF($U17="",IF(EOMONTH(VALUE("R"&基本項目!$B$3&"."&FD$12&".1"),0)<$K17,"",DATEDIF($K17,EOMONTH(VALUE("R"&基本項目!$B$3&"."&FD$12&".1")-1,1),"Y")),$U17)) ->  | JA17: =IF($R17="","",IF($U17="",IF(EOMONTH(VALUE("R"&基本項目!$B$3&"."&FG$12&".1"),0)<$K17,"",DATEDIF($K17,EOMONTH(VALUE("R"&基本項目!$B$3&"."&FG$12&".1")-1,1),"Y")),$U17)) ->  | JD17: =IF($R17="","",IF($U17="",IF(EOMONTH(VALUE("R"&基本項目!$B$3&"."&FJ$12&".1"),0)<$K17,"",DATEDIF($K17,EOMONTH(VALUE("R"&基本項目!$B$3&"."&FJ$12&".1")-1,1),"Y")),$U17)) ->  | JG17: =IF($R17="","",IF($U17="",IF(EOMONTH(VALUE("R"&基本項目!$B$3&"."&FM$12&".1"),0)<$K17,"",DATEDIF($K17,EOMONTH(VALUE("R"&基本項目!$B$3&"."&FM$12&".1")-1,1),"Y")),$U17)) ->  | JJ17: =IF($R17="","",IF($U17="",IF(EOMONTH(VALUE("R"&基本項目!$B$3&"."&FP$12&".1"),0)<$K17,"",DATEDIF($K17,EOMONTH(VALUE("R"&基本項目!$B$3&"."&FP$12&".1")-1,1),"Y")),$U17)) ->  | JM17: =IF($R17="","",IF($U17="",IF(EOMONTH(VALUE("R"&基本項目!$B$3&"."&FS$12&".1"),0)<$K17,"",DATEDIF($K17,EOMONTH(VALUE("R"&基本項目!$B$3&"."&FS$12&".1")-1,1),"Y")),$U17)) ->  | JP17: =IF($R17="","",IF($U17="",IF(EOMONTH(VALUE("R"&基本項目!$B$3+1&"."&FV$12&".1"),0)<$K17,"",DATEDIF($K17,EOMONTH(VALUE("R"&基本項目!$B$3+1&"."&FV$12&".1")-1,1),"Y")),$U17)) ->  | JS17: =IF($R17="","",IF($U17="",IF(EOMONTH(VALUE("R"&基本項目!$B$3+1&"."&FY$12&".1"),0)<$K17,"",DATEDIF($K17,EOMONTH(VALUE("R"&基本項目!$B$3+1&"."&FY$12&".1")-1,1),"Y")),$U17)) ->  | JV17: =IF($R17="","",IF($U17="",IF(EOMONTH(VALUE("R"&基本項目!$B$3+1&"."&GB$12&".1"),0)<$K17,"",DATEDIF($K17,EOMONTH(VALUE("R"&基本項目!$B$3+1&"."&GB$12&".1")-1,1),"Y")),$U17)) ->  | KI17: =IF($R17="","",IF($U17="",IF(EOMONTH(VALUE("R"&基本項目!$B$3&"."&EU$12&".1"),0)<$K17,"",DATEDIF($K17,EOMONTH(VALUE("R"&基本項目!$B$3&"."&EU$12&".1")-1,1),"Y")),$U17)) ->  | KL17: =IF($R17="","",IF($U17="",IF(EOMONTH(VALUE("R"&基本項目!$B$3&"."&EX$12&".1"),0)<$K17,"",DATEDIF($K17,EOMONTH(VALUE("R"&基本項目!$B$3&"."&EX$12&".1")-1,1),"Y")),$U17)) ->  | KO17: =IF($R17="","",IF($U17="",IF(EOMONTH(VALUE("R"&基本項目!$B$3&"."&FA$12&".1"),0)<$K17,"",DATEDIF($K17,EOMONTH(VALUE("R"&基本項目!$B$3&"."&FA$12&".1")-1,1),"Y")),$U17)) ->  | KR17: =IF($R17="","",IF($U17="",IF(EOMONTH(VALUE("R"&基本項目!$B$3&"."&FD$12&".1"),0)<$K17,"",DATEDIF($K17,EOMONTH(VALUE("R"&基本項目!$B$3&"."&FD$12&".1")-1,1),"Y")),$U17)) ->  | KU17: =IF($R17="","",IF($U17="",IF(EOMONTH(VALUE("R"&基本項目!$B$3&"."&FG$12&".1"),0)<$K17,"",DATEDIF($K17,EOMONTH(VALUE("R"&基本項目!$B$3&"."&FG$12&".1")-1,1),"Y")),$U17)) ->  | KX17: =IF($R17="","",IF($U17="",IF(EOMONTH(VALUE("R"&基本項目!$B$3&"."&FJ$12&".1"),0)<$K17,"",DATEDIF($K17,EOMONTH(VALUE("R"&基本項目!$B$3&"."&FJ$12&".1")-1,1),"Y")),$U17)) ->  | LA17: =IF($R17="","",IF($U17="",IF(EOMONTH(VALUE("R"&基本項目!$B$3&"."&FM$12&".1"),0)<$K17,"",DATEDIF($K17,EOMONTH(VALUE("R"&基本項目!$B$3&"."&FM$12&".1")-1,1),"Y")),$U17)) ->  | LD17: =IF($R17="","",IF($U17="",IF(EOMONTH(VALUE("R"&基本項目!$B$3&"."&FP$12&".1"),0)<$K17,"",DATEDIF($K17,EOMONTH(VALUE("R"&基本項目!$B$3&"."&FP$12&".1")-1,1),"Y")),$U17)) ->  | LG17: =IF($R17="","",IF($U17="",IF(EOMONTH(VALUE("R"&基本項目!$B$3&"."&FS$12&".1"),0)<$K17,"",DATEDIF($K17,EOMONTH(VALUE("R"&基本項目!$B$3&"."&FS$12&".1")-1,1),"Y")),$U17)) ->  | LJ17: =IF($R17="","",IF($U17="",IF(EOMONTH(VALUE("R"&基本項目!$B$3+1&"."&FV$12&".1"),0)<$K17,"",DATEDIF($K17,EOMONTH(VALUE("R"&基本項目!$B$3+1&"."&FV$12&".1")-1,1),"Y")),$U17)) ->  | LM17: =IF($R17="","",IF($U17="",IF(EOMONTH(VALUE("R"&基本項目!$B$3+1&"."&FY$12&".1"),0)<$K17,"",DATEDIF($K17,EOMONTH(VALUE("R"&基本項目!$B$3+1&"."&FY$12&".1")-1,1),"Y")),$U17)) ->  | LP17: =IF($R17="","",IF($U17="",IF(EOMONTH(VALUE("R"&基本項目!$B$3+1&"."&GB$12&".1"),0)<$K17,"",DATEDIF($K17,EOMONTH(VALUE("R"&基本項目!$B$3+1&"."&GB$12&".1")-1,1),"Y")),$U17)) -> 
B18: 6 | R18: =IF(AND($U18="",$K18=""),"",IF($U18="",所得計算!$I11,$U18)) ->  | AE18: =IF(所得計算!AN$4="","",所得計算!AN$4) ->  | BF18: =IF(所得計算!AN$23="","",所得計算!AN$23) ->  | DY18: =IF(OR(AND(SUM($AL18)=1,SUM($X18)<=8500000),AND(SUM($AL18)=1,SUM($X18)>8500000,SUM($BF18)>0)),"所得金額調整控除１？",IF(OR(AND(SUM($AL18)=2,OR(SUM(所得計算!$BJ$5:$BJ$15)=0,SUM($BF18)=0)),AND(SUM($AL18)=2,OR(SUM($X18)>8500000,SUM($BF18)=0))),"所得金額調整控除２？",IF(AND(SUM($AL18)=3,OR(SUM($X18)<=8500000,SUM($BF18)=0)),"所得金額調整控除３？",IF(AND($AL18="",OR(SUM($X18)>8500000,AND(SUM(所得計算!$BJ$5:$BJ$15)>0,SUM($BF18)>0))),"所得金額調整控除サイン不要？","")))) ->  | EL18: =IF(SUM(DC18,CH18,CV18)=0,0,SUM(DC18,CH18,CV18)-SUM(所得計算!$AY$4)-SUM(所得計算!$AN$36)) -> 0 | ES18: 6 | GP18: =IF($GM18="","",IF(HLOOKUP($GM18,$GU$12:$ID$22,7,FALSE)>=65,"","65未到達")) ->  | GU18: =IF($R18="","",IF($U18="",IF(EOMONTH(VALUE("R"&基本項目!$B$3&"."&EU$12&".1"),0)<$K18,"",DATEDIF($K18-1,EOMONTH(VALUE("R"&基本項目!$B$3&"."&EU$12&".1")-1,1),"Y")),$U18)) ->  | GX18: =IF($R18="","",IF($U18="",IF(EOMONTH(VALUE("R"&基本項目!$B$3&"."&EX$12&".1"),0)<$K18,"",DATEDIF($K18-1,EOMONTH(VALUE("R"&基本項目!$B$3&"."&EX$12&".1")-1,1),"Y")),$U18)) ->  | HA18: =IF($R18="","",IF($U18="",IF(EOMONTH(VALUE("R"&基本項目!$B$3&"."&FA$12&".1"),0)<$K18,"",DATEDIF($K18-1,EOMONTH(VALUE("R"&基本項目!$B$3&"."&FA$12&".1")-1,1),"Y")),$U18)) ->  | HD18: =IF($R18="","",IF($U18="",IF(EOMONTH(VALUE("R"&基本項目!$B$3&"."&FD$12&".1"),0)<$K18,"",DATEDIF($K18-1,EOMONTH(VALUE("R"&基本項目!$B$3&"."&FD$12&".1")-1,1),"Y")),$U18)) ->  | HG18: =IF($R18="","",IF($U18="",IF(EOMONTH(VALUE("R"&基本項目!$B$3&"."&FG$12&".1"),0)<$K18,"",DATEDIF($K18-1,EOMONTH(VALUE("R"&基本項目!$B$3&"."&FG$12&".1")-1,1),"Y")),$U18)) ->  | HJ18: =IF($R18="","",IF($U18="",IF(EOMONTH(VALUE("R"&基本項目!$B$3&"."&FJ$12&".1"),0)<$K18,"",DATEDIF($K18-1,EOMONTH(VALUE("R"&基本項目!$B$3&"."&FJ$12&".1")-1,1),"Y")),$U18)) ->  | HM18: =IF($R18="","",IF($U18="",IF(EOMONTH(VALUE("R"&基本項目!$B$3&"."&FM$12&".1"),0)<$K18,"",DATEDIF($K18-1,EOMONTH(VALUE("R"&基本項目!$B$3&"."&FM$12&".1")-1,1),"Y")),$U18)) ->  | HP18: =IF($R18="","",IF($U18="",IF(EOMONTH(VALUE("R"&基本項目!$B$3&"."&FP$12&".1"),0)<$K18,"",DATEDIF($K18-1,EOMONTH(VALUE("R"&基本項目!$B$3&"."&FP$12&".1")-1,1),"Y")),$U18)) ->  | HS18: =IF($R18="","",IF($U18="",IF(EOMONTH(VALUE("R"&基本項目!$B$3&"."&FS$12&".1"),0)<$K18,"",DATEDIF($K18-1,EOMONTH(VALUE("R"&基本項目!$B$3&"."&FS$12&".1")-1,1),"Y")),$U18)) ->  | HV18: =IF($R18="","",IF($U18="",IF(EOMONTH(VALUE("R"&基本項目!$B$3+1&"."&FV$12&".1"),0)<$K18,"",DATEDIF($K18-1,EOMONTH(VALUE("R"&基本項目!$B$3+1&"."&FV$12&".1")-1,1),"Y")),$U18)) ->  | HY18: =IF($R18="","",IF($U18="",IF(EOMONTH(VALUE("R"&基本項目!$B$3+1&"."&FY$12&".1"),0)<$K18,"",DATEDIF($K18-1,EOMONTH(VALUE("R"&基本項目!$B$3+1&"."&FY$12&".1")-1,1),"Y")),$U18)) ->  | IB18: =IF($R18="","",IF($U18="",IF(EOMONTH(VALUE("R"&基本項目!$B$3+1&"."&GB$12&".1"),0)<$K18,"",DATEDIF($K18-1,EOMONTH(VALUE("R"&基本項目!$B$3+1&"."&GB$12&".1")-1,1),"Y")),$U18)) ->  | IO18: =IF($R18="","",IF($U18="",IF(EOMONTH(VALUE("R"&基本項目!$B$3&"."&EU$12&".1"),0)<$K18,"",DATEDIF($K18,EOMONTH(VALUE("R"&基本項目!$B$3&"."&EU$12&".1")-1,1),"Y")),$U18)) ->  | IR18: =IF($R18="","",IF($U18="",IF(EOMONTH(VALUE("R"&基本項目!$B$3&"."&EX$12&".1"),0)<$K18,"",DATEDIF($K18,EOMONTH(VALUE("R"&基本項目!$B$3&"."&EX$12&".1")-1,1),"Y")),$U18)) ->  | IU18: =IF($R18="","",IF($U18="",IF(EOMONTH(VALUE("R"&基本項目!$B$3&"."&FA$12&".1"),0)<$K18,"",DATEDIF($K18,EOMONTH(VALUE("R"&基本項目!$B$3&"."&FA$12&".1")-1,1),"Y")),$U18)) ->  | IX18: =IF($R18="","",IF($U18="",IF(EOMONTH(VALUE("R"&基本項目!$B$3&"."&FD$12&".1"),0)<$K18,"",DATEDIF($K18,EOMONTH(VALUE("R"&基本項目!$B$3&"."&FD$12&".1")-1,1),"Y")),$U18)) ->  | JA18: =IF($R18="","",IF($U18="",IF(EOMONTH(VALUE("R"&基本項目!$B$3&"."&FG$12&".1"),0)<$K18,"",DATEDIF($K18,EOMONTH(VALUE("R"&基本項目!$B$3&"."&FG$12&".1")-1,1),"Y")),$U18)) ->  | JD18: =IF($R18="","",IF($U18="",IF(EOMONTH(VALUE("R"&基本項目!$B$3&"."&FJ$12&".1"),0)<$K18,"",DATEDIF($K18,EOMONTH(VALUE("R"&基本項目!$B$3&"."&FJ$12&".1")-1,1),"Y")),$U18)) ->  | JG18: =IF($R18="","",IF($U18="",IF(EOMONTH(VALUE("R"&基本項目!$B$3&"."&FM$12&".1"),0)<$K18,"",DATEDIF($K18,EOMONTH(VALUE("R"&基本項目!$B$3&"."&FM$12&".1")-1,1),"Y")),$U18)) ->  | JJ18: =IF($R18="","",IF($U18="",IF(EOMONTH(VALUE("R"&基本項目!$B$3&"."&FP$12&".1"),0)<$K18,"",DATEDIF($K18,EOMONTH(VALUE("R"&基本項目!$B$3&"."&FP$12&".1")-1,1),"Y")),$U18)) ->  | JM18: =IF($R18="","",IF($U18="",IF(EOMONTH(VALUE("R"&基本項目!$B$3&"."&FS$12&".1"),0)<$K18,"",DATEDIF($K18,EOMONTH(VALUE("R"&基本項目!$B$3&"."&FS$12&".1")-1,1),"Y")),$U18)) ->  | JP18: =IF($R18="","",IF($U18="",IF(EOMONTH(VALUE("R"&基本項目!$B$3+1&"."&FV$12&".1"),0)<$K18,"",DATEDIF($K18,EOMONTH(VALUE("R"&基本項目!$B$3+1&"."&FV$12&".1")-1,1),"Y")),$U18)) ->  | JS18: =IF($R18="","",IF($U18="",IF(EOMONTH(VALUE("R"&基本項目!$B$3+1&"."&FY$12&".1"),0)<$K18,"",DATEDIF($K18,EOMONTH(VALUE("R"&基本項目!$B$3+1&"."&FY$12&".1")-1,1),"Y")),$U18)) ->  | JV18: =IF($R18="","",IF($U18="",IF(EOMONTH(VALUE("R"&基本項目!$B$3+1&"."&GB$12&".1"),0)<$K18,"",DATEDIF($K18,EOMONTH(VALUE("R"&基本項目!$B$3+1&"."&GB$12&".1")-1,1),"Y")),$U18)) ->  | KI18: =IF($R18="","",IF($U18="",IF(EOMONTH(VALUE("R"&基本項目!$B$3&"."&EU$12&".1"),0)<$K18,"",DATEDIF($K18,EOMONTH(VALUE("R"&基本項目!$B$3&"."&EU$12&".1")-1,1),"Y")),$U18)) ->  | KL18: =IF($R18="","",IF($U18="",IF(EOMONTH(VALUE("R"&基本項目!$B$3&"."&EX$12&".1"),0)<$K18,"",DATEDIF($K18,EOMONTH(VALUE("R"&基本項目!$B$3&"."&EX$12&".1")-1,1),"Y")),$U18)) ->  | KO18: =IF($R18="","",IF($U18="",IF(EOMONTH(VALUE("R"&基本項目!$B$3&"."&FA$12&".1"),0)<$K18,"",DATEDIF($K18,EOMONTH(VALUE("R"&基本項目!$B$3&"."&FA$12&".1")-1,1),"Y")),$U18)) ->  | KR18: =IF($R18="","",IF($U18="",IF(EOMONTH(VALUE("R"&基本項目!$B$3&"."&FD$12&".1"),0)<$K18,"",DATEDIF($K18,EOMONTH(VALUE("R"&基本項目!$B$3&"."&FD$12&".1")-1,1),"Y")),$U18)) ->  | KU18: =IF($R18="","",IF($U18="",IF(EOMONTH(VALUE("R"&基本項目!$B$3&"."&FG$12&".1"),0)<$K18,"",DATEDIF($K18,EOMONTH(VALUE("R"&基本項目!$B$3&"."&FG$12&".1")-1,1),"Y")),$U18)) ->  | KX18: =IF($R18="","",IF($U18="",IF(EOMONTH(VALUE("R"&基本項目!$B$3&"."&FJ$12&".1"),0)<$K18,"",DATEDIF($K18,EOMONTH(VALUE("R"&基本項目!$B$3&"."&FJ$12&".1")-1,1),"Y")),$U18)) ->  | LA18: =IF($R18="","",IF($U18="",IF(EOMONTH(VALUE("R"&基本項目!$B$3&"."&FM$12&".1"),0)<$K18,"",DATEDIF($K18,EOMONTH(VALUE("R"&基本項目!$B$3&"."&FM$12&".1")-1,1),"Y")),$U18)) ->  | LD18: =IF($R18="","",IF($U18="",IF(EOMONTH(VALUE("R"&基本項目!$B$3&"."&FP$12&".1"),0)<$K18,"",DATEDIF($K18,EOMONTH(VALUE("R"&基本項目!$B$3&"."&FP$12&".1")-1,1),"Y")),$U18)) ->  | LG18: =IF($R18="","",IF($U18="",IF(EOMONTH(VALUE("R"&基本項目!$B$3&"."&FS$12&".1"),0)<$K18,"",DATEDIF($K18,EOMONTH(VALUE("R"&基本項目!$B$3&"."&FS$12&".1")-1,1),"Y")),$U18)) ->  | LJ18: =IF($R18="","",IF($U18="",IF(EOMONTH(VALUE("R"&基本項目!$B$3+1&"."&FV$12&".1"),0)<$K18,"",DATEDIF($K18,EOMONTH(VALUE("R"&基本項目!$B$3+1&"."&FV$12&".1")-1,1),"Y")),$U18)) ->  | LM18: =IF($R18="","",IF($U18="",IF(EOMONTH(VALUE("R"&基本項目!$B$3+1&"."&FY$12&".1"),0)<$K18,"",DATEDIF($K18,EOMONTH(VALUE("R"&基本項目!$B$3+1&"."&FY$12&".1")-1,1),"Y")),$U18)) ->  | LP18: =IF($R18="","",IF($U18="",IF(EOMONTH(VALUE("R"&基本項目!$B$3+1&"."&GB$12&".1"),0)<$K18,"",DATEDIF($K18,EOMONTH(VALUE("R"&基本項目!$B$3+1&"."&GB$12&".1")-1,1),"Y")),$U18)) -> 
B19: 7 | R19: =IF(AND($U19="",$K19=""),"",IF($U19="",所得計算!$I12,$U19)) ->  | AE19: =IF(所得計算!AO$4="","",所得計算!AO$4) ->  | BF19: =IF(所得計算!AO$23="","",所得計算!AO$23) ->  | DY19: =IF(OR(AND(SUM($AL19)=1,SUM($X19)<=8500000),AND(SUM($AL19)=1,SUM($X19)>8500000,SUM($BF19)>0)),"所得金額調整控除１？",IF(OR(AND(SUM($AL19)=2,OR(SUM(所得計算!$BK$5:$BK$15)=0,SUM($BF19)=0)),AND(SUM($AL19)=2,OR(SUM($X19)>8500000,SUM($BF19)=0))),"所得金額調整控除２？",IF(AND(SUM($AL19)=3,OR(SUM($X19)<=8500000,SUM($BF19)=0)),"所得金額調整控除３？",IF(AND($AL19="",OR(SUM($X19)>8500000,AND(SUM(所得計算!$BK$5:$BK$15)>0,SUM($BF19)>0))),"所得金額調整控除サイン不要？","")))) ->  | EL19: =IF(SUM(DC19,CH19,CV19)=0,0,SUM(DC19,CH19,CV19)-SUM(所得計算!$AZ$4)-SUM(所得計算!$AO$36)) -> 0 | ES19: 7 | GP19: =IF($GM19="","",IF(HLOOKUP($GM19,$GU$12:$ID$22,8,FALSE)>=65,"","65未到達")) ->  | GU19: =IF($R19="","",IF($U19="",IF(EOMONTH(VALUE("R"&基本項目!$B$3&"."&EU$12&".1"),0)<$K19,"",DATEDIF($K19-1,EOMONTH(VALUE("R"&基本項目!$B$3&"."&EU$12&".1")-1,1),"Y")),$U19)) ->  | GX19: =IF($R19="","",IF($U19="",IF(EOMONTH(VALUE("R"&基本項目!$B$3&"."&EX$12&".1"),0)<$K19,"",DATEDIF($K19-1,EOMONTH(VALUE("R"&基本項目!$B$3&"."&EX$12&".1")-1,1),"Y")),$U19)) ->  | HA19: =IF($R19="","",IF($U19="",IF(EOMONTH(VALUE("R"&基本項目!$B$3&"."&FA$12&".1"),0)<$K19,"",DATEDIF($K19-1,EOMONTH(VALUE("R"&基本項目!$B$3&"."&FA$12&".1")-1,1),"Y")),$U19)) ->  | HD19: =IF($R19="","",IF($U19="",IF(EOMONTH(VALUE("R"&基本項目!$B$3&"."&FD$12&".1"),0)<$K19,"",DATEDIF($K19-1,EOMONTH(VALUE("R"&基本項目!$B$3&"."&FD$12&".1")-1,1),"Y")),$U19)) ->  | HG19: =IF($R19="","",IF($U19="",IF(EOMONTH(VALUE("R"&基本項目!$B$3&"."&FG$12&".1"),0)<$K19,"",DATEDIF($K19-1,EOMONTH(VALUE("R"&基本項目!$B$3&"."&FG$12&".1")-1,1),"Y")),$U19)) ->  | HJ19: =IF($R19="","",IF($U19="",IF(EOMONTH(VALUE("R"&基本項目!$B$3&"."&FJ$12&".1"),0)<$K19,"",DATEDIF($K19-1,EOMONTH(VALUE("R"&基本項目!$B$3&"."&FJ$12&".1")-1,1),"Y")),$U19)) ->  | HM19: =IF($R19="","",IF($U19="",IF(EOMONTH(VALUE("R"&基本項目!$B$3&"."&FM$12&".1"),0)<$K19,"",DATEDIF($K19-1,EOMONTH(VALUE("R"&基本項目!$B$3&"."&FM$12&".1")-1,1),"Y")),$U19)) ->  | HP19: =IF($R19="","",IF($U19="",IF(EOMONTH(VALUE("R"&基本項目!$B$3&"."&FP$12&".1"),0)<$K19,"",DATEDIF($K19-1,EOMONTH(VALUE("R"&基本項目!$B$3&"."&FP$12&".1")-1,1),"Y")),$U19)) ->  | HS19: =IF($R19="","",IF($U19="",IF(EOMONTH(VALUE("R"&基本項目!$B$3&"."&FS$12&".1"),0)<$K19,"",DATEDIF($K19-1,EOMONTH(VALUE("R"&基本項目!$B$3&"."&FS$12&".1")-1,1),"Y")),$U19)) ->  | HV19: =IF($R19="","",IF($U19="",IF(EOMONTH(VALUE("R"&基本項目!$B$3+1&"."&FV$12&".1"),0)<$K19,"",DATEDIF($K19-1,EOMONTH(VALUE("R"&基本項目!$B$3+1&"."&FV$12&".1")-1,1),"Y")),$U19)) ->  | HY19: =IF($R19="","",IF($U19="",IF(EOMONTH(VALUE("R"&基本項目!$B$3+1&"."&FY$12&".1"),0)<$K19,"",DATEDIF($K19-1,EOMONTH(VALUE("R"&基本項目!$B$3+1&"."&FY$12&".1")-1,1),"Y")),$U19)) ->  | IB19: =IF($R19="","",IF($U19="",IF(EOMONTH(VALUE("R"&基本項目!$B$3+1&"."&GB$12&".1"),0)<$K19,"",DATEDIF($K19-1,EOMONTH(VALUE("R"&基本項目!$B$3+1&"."&GB$12&".1")-1,1),"Y")),$U19)) ->  | IO19: =IF($R19="","",IF($U19="",IF(EOMONTH(VALUE("R"&基本項目!$B$3&"."&EU$12&".1"),0)<$K19,"",DATEDIF($K19,EOMONTH(VALUE("R"&基本項目!$B$3&"."&EU$12&".1")-1,1),"Y")),$U19)) ->  | IR19: =IF($R19="","",IF($U19="",IF(EOMONTH(VALUE("R"&基本項目!$B$3&"."&EX$12&".1"),0)<$K19,"",DATEDIF($K19,EOMONTH(VALUE("R"&基本項目!$B$3&"."&EX$12&".1")-1,1),"Y")),$U19)) ->  | IU19: =IF($R19="","",IF($U19="",IF(EOMONTH(VALUE("R"&基本項目!$B$3&"."&FA$12&".1"),0)<$K19,"",DATEDIF($K19,EOMONTH(VALUE("R"&基本項目!$B$3&"."&FA$12&".1")-1,1),"Y")),$U19)) ->  | IX19: =IF($R19="","",IF($U19="",IF(EOMONTH(VALUE("R"&基本項目!$B$3&"."&FD$12&".1"),0)<$K19,"",DATEDIF($K19,EOMONTH(VALUE("R"&基本項目!$B$3&"."&FD$12&".1")-1,1),"Y")),$U19)) ->  | JA19: =IF($R19="","",IF($U19="",IF(EOMONTH(VALUE("R"&基本項目!$B$3&"."&FG$12&".1"),0)<$K19,"",DATEDIF($K19,EOMONTH(VALUE("R"&基本項目!$B$3&"."&FG$12&".1")-1,1),"Y")),$U19)) ->  | JD19: =IF($R19="","",IF($U19="",IF(EOMONTH(VALUE("R"&基本項目!$B$3&"."&FJ$12&".1"),0)<$K19,"",DATEDIF($K19,EOMONTH(VALUE("R"&基本項目!$B$3&"."&FJ$12&".1")-1,1),"Y")),$U19)) ->  | JG19: =IF($R19="","",IF($U19="",IF(EOMONTH(VALUE("R"&基本項目!$B$3&"."&FM$12&".1"),0)<$K19,"",DATEDIF($K19,EOMONTH(VALUE("R"&基本項目!$B$3&"."&FM$12&".1")-1,1),"Y")),$U19)) ->  | JJ19: =IF($R19="","",IF($U19="",IF(EOMONTH(VALUE("R"&基本項目!$B$3&"."&FP$12&".1"),0)<$K19,"",DATEDIF($K19,EOMONTH(VALUE("R"&基本項目!$B$3&"."&FP$12&".1")-1,1),"Y")),$U19)) ->  | JM19: =IF($R19="","",IF($U19="",IF(EOMONTH(VALUE("R"&基本項目!$B$3&"."&FS$12&".1"),0)<$K19,"",DATEDIF($K19,EOMONTH(VALUE("R"&基本項目!$B$3&"."&FS$12&".1")-1,1),"Y")),$U19)) ->  | JP19: =IF($R19="","",IF($U19="",IF(EOMONTH(VALUE("R"&基本項目!$B$3+1&"."&FV$12&".1"),0)<$K19,"",DATEDIF($K19,EOMONTH(VALUE("R"&基本項目!$B$3+1&"."&FV$12&".1")-1,1),"Y")),$U19)) ->  | JS19: =IF($R19="","",IF($U19="",IF(EOMONTH(VALUE("R"&基本項目!$B$3+1&"."&FY$12&".1"),0)<$K19,"",DATEDIF($K19,EOMONTH(VALUE("R"&基本項目!$B$3+1&"."&FY$12&".1")-1,1),"Y")),$U19)) ->  | JV19: =IF($R19="","",IF($U19="",IF(EOMONTH(VALUE("R"&基本項目!$B$3+1&"."&GB$12&".1"),0)<$K19,"",DATEDIF($K19,EOMONTH(VALUE("R"&基本項目!$B$3+1&"."&GB$12&".1")-1,1),"Y")),$U19)) ->  | KI19: =IF($R19="","",IF($U19="",IF(EOMONTH(VALUE("R"&基本項目!$B$3&"."&EU$12&".1"),0)<$K19,"",DATEDIF($K19,EOMONTH(VALUE("R"&基本項目!$B$3&"."&EU$12&".1")-1,1),"Y")),$U19)) ->  | KL19: =IF($R19="","",IF($U19="",IF(EOMONTH(VALUE("R"&基本項目!$B$3&"."&EX$12&".1"),0)<$K19,"",DATEDIF($K19,EOMONTH(VALUE("R"&基本項目!$B$3&"."&EX$12&".1")-1,1),"Y")),$U19)) ->  | KO19: =IF($R19="","",IF($U19="",IF(EOMONTH(VALUE("R"&基本項目!$B$3&"."&FA$12&".1"),0)<$K19,"",DATEDIF($K19,EOMONTH(VALUE("R"&基本項目!$B$3&"."&FA$12&".1")-1,1),"Y")),$U19)) ->  | KR19: =IF($R19="","",IF($U19="",IF(EOMONTH(VALUE("R"&基本項目!$B$3&"."&FD$12&".1"),0)<$K19,"",DATEDIF($K19,EOMONTH(VALUE("R"&基本項目!$B$3&"."&FD$12&".1")-1,1),"Y")),$U19)) ->  | KU19: =IF($R19="","",IF($U19="",IF(EOMONTH(VALUE("R"&基本項目!$B$3&"."&FG$12&".1"),0)<$K19,"",DATEDIF($K19,EOMONTH(VALUE("R"&基本項目!$B$3&"."&FG$12&".1")-1,1),"Y")),$U19)) ->  | KX19: =IF($R19="","",IF($U19="",IF(EOMONTH(VALUE("R"&基本項目!$B$3&"."&FJ$12&".1"),0)<$K19,"",DATEDIF($K19,EOMONTH(VALUE("R"&基本項目!$B$3&"."&FJ$12&".1")-1,1),"Y")),$U19)) ->  | LA19: =IF($R19="","",IF($U19="",IF(EOMONTH(VALUE("R"&基本項目!$B$3&"."&FM$12&".1"),0)<$K19,"",DATEDIF($K19,EOMONTH(VALUE("R"&基本項目!$B$3&"."&FM$12&".1")-1,1),"Y")),$U19)) ->  | LD19: =IF($R19="","",IF($U19="",IF(EOMONTH(VALUE("R"&基本項目!$B$3&"."&FP$12&".1"),0)<$K19,"",DATEDIF($K19,EOMONTH(VALUE("R"&基本項目!$B$3&"."&FP$12&".1")-1,1),"Y")),$U19)) ->  | LG19: =IF($R19="","",IF($U19="",IF(EOMONTH(VALUE("R"&基本項目!$B$3&"."&FS$12&".1"),0)<$K19,"",DATEDIF($K19,EOMONTH(VALUE("R"&基本項目!$B$3&"."&FS$12&".1")-1,1),"Y")),$U19)) ->  | LJ19: =IF($R19="","",IF($U19="",IF(EOMONTH(VALUE("R"&基本項目!$B$3+1&"."&FV$12&".1"),0)<$K19,"",DATEDIF($K19,EOMONTH(VALUE("R"&基本項目!$B$3+1&"."&FV$12&".1")-1,1),"Y")),$U19)) ->  | LM19: =IF($R19="","",IF($U19="",IF(EOMONTH(VALUE("R"&基本項目!$B$3+1&"."&FY$12&".1"),0)<$K19,"",DATEDIF($K19,EOMONTH(VALUE("R"&基本項目!$B$3+1&"."&FY$12&".1")-1,1),"Y")),$U19)) ->  | LP19: =IF($R19="","",IF($U19="",IF(EOMONTH(VALUE("R"&基本項目!$B$3+1&"."&GB$12&".1"),0)<$K19,"",DATEDIF($K19,EOMONTH(VALUE("R"&基本項目!$B$3+1&"."&GB$12&".1")-1,1),"Y")),$U19)) -> 
B20: 8 | R20: =IF(AND($U20="",$K20=""),"",IF($U20="",所得計算!$I13,$U20)) ->  | AE20: =IF(所得計算!AP$4="","",所得計算!AP$4) ->  | BF20: =IF(所得計算!AP$23="","",所得計算!AP$23) ->  | DY20: =IF(OR(AND(SUM($AL20)=1,SUM($X20)<=8500000),AND(SUM($AL20)=1,SUM($X20)>8500000,SUM($BF20)>0)),"所得金額調整控除１？",IF(OR(AND(SUM($AL20)=2,OR(SUM(所得計算!$BL$5:$BL$15)=0,SUM($BF20)=0)),AND(SUM($AL20)=2,OR(SUM($X20)>8500000,SUM($BF20)=0))),"所得金額調整控除２？",IF(AND(SUM($AL20)=3,OR(SUM($X20)<=8500000,SUM($BF20)=0)),"所得金額調整控除３？",IF(AND($AL20="",OR(SUM($X20)>8500000,AND(SUM(所得計算!$BL$5:$BL$15)>0,SUM($BF20)>0))),"所得金額調整控除サイン不要？","")))) ->  | EL20: =IF(SUM(DC20,CH20,CV20)=0,0,SUM(DC20,CH20,CV20)-SUM(所得計算!$BA$4)-SUM(所得計算!$AP$36)) -> 0 | ES20: 8 | GP20: =IF($GM20="","",IF(HLOOKUP($GM20,$GU$12:$ID$22,9,FALSE)>=65,"","65未到達")) ->  | GU20: =IF($R20="","",IF($U20="",IF(EOMONTH(VALUE("R"&基本項目!$B$3&"."&EU$12&".1"),0)<$K20,"",DATEDIF($K20-1,EOMONTH(VALUE("R"&基本項目!$B$3&"."&EU$12&".1")-1,1),"Y")),$U20)) ->  | GX20: =IF($R20="","",IF($U20="",IF(EOMONTH(VALUE("R"&基本項目!$B$3&"."&EX$12&".1"),0)<$K20,"",DATEDIF($K20-1,EOMONTH(VALUE("R"&基本項目!$B$3&"."&EX$12&".1")-1,1),"Y")),$U20)) ->  | HA20: =IF($R20="","",IF($U20="",IF(EOMONTH(VALUE("R"&基本項目!$B$3&"."&FA$12&".1"),0)<$K20,"",DATEDIF($K20-1,EOMONTH(VALUE("R"&基本項目!$B$3&"."&FA$12&".1")-1,1),"Y")),$U20)) ->  | HD20: =IF($R20="","",IF($U20="",IF(EOMONTH(VALUE("R"&基本項目!$B$3&"."&FD$12&".1"),0)<$K20,"",DATEDIF($K20-1,EOMONTH(VALUE("R"&基本項目!$B$3&"."&FD$12&".1")-1,1),"Y")),$U20)) ->  | HG20: =IF($R20="","",IF($U20="",IF(EOMONTH(VALUE("R"&基本項目!$B$3&"."&FG$12&".1"),0)<$K20,"",DATEDIF($K20-1,EOMONTH(VALUE("R"&基本項目!$B$3&"."&FG$12&".1")-1,1),"Y")),$U20)) ->  | HJ20: =IF($R20="","",IF($U20="",IF(EOMONTH(VALUE("R"&基本項目!$B$3&"."&FJ$12&".1"),0)<$K20,"",DATEDIF($K20-1,EOMONTH(VALUE("R"&基本項目!$B$3&"."&FJ$12&".1")-1,1),"Y")),$U20)) ->  | HM20: =IF($R20="","",IF($U20="",IF(EOMONTH(VALUE("R"&基本項目!$B$3&"."&FM$12&".1"),0)<$K20,"",DATEDIF($K20-1,EOMONTH(VALUE("R"&基本項目!$B$3&"."&FM$12&".1")-1,1),"Y")),$U20)) ->  | HP20: =IF($R20="","",IF($U20="",IF(EOMONTH(VALUE("R"&基本項目!$B$3&"."&FP$12&".1"),0)<$K20,"",DATEDIF($K20-1,EOMONTH(VALUE("R"&基本項目!$B$3&"."&FP$12&".1")-1,1),"Y")),$U20)) ->  | HS20: =IF($R20="","",IF($U20="",IF(EOMONTH(VALUE("R"&基本項目!$B$3&"."&FS$12&".1"),0)<$K20,"",DATEDIF($K20-1,EOMONTH(VALUE("R"&基本項目!$B$3&"."&FS$12&".1")-1,1),"Y")),$U20)) ->  | HV20: =IF($R20="","",IF($U20="",IF(EOMONTH(VALUE("R"&基本項目!$B$3+1&"."&FV$12&".1"),0)<$K20,"",DATEDIF($K20-1,EOMONTH(VALUE("R"&基本項目!$B$3+1&"."&FV$12&".1")-1,1),"Y")),$U20)) ->  | HY20: =IF($R20="","",IF($U20="",IF(EOMONTH(VALUE("R"&基本項目!$B$3+1&"."&FY$12&".1"),0)<$K20,"",DATEDIF($K20-1,EOMONTH(VALUE("R"&基本項目!$B$3+1&"."&FY$12&".1")-1,1),"Y")),$U20)) ->  | IB20: =IF($R20="","",IF($U20="",IF(EOMONTH(VALUE("R"&基本項目!$B$3+1&"."&GB$12&".1"),0)<$K20,"",DATEDIF($K20-1,EOMONTH(VALUE("R"&基本項目!$B$3+1&"."&GB$12&".1")-1,1),"Y")),$U20)) ->  | IO20: =IF($R20="","",IF($U20="",IF(EOMONTH(VALUE("R"&基本項目!$B$3&"."&EU$12&".1"),0)<$K20,"",DATEDIF($K20,EOMONTH(VALUE("R"&基本項目!$B$3&"."&EU$12&".1")-1,1),"Y")),$U20)) ->  | IR20: =IF($R20="","",IF($U20="",IF(EOMONTH(VALUE("R"&基本項目!$B$3&"."&EX$12&".1"),0)<$K20,"",DATEDIF($K20,EOMONTH(VALUE("R"&基本項目!$B$3&"."&EX$12&".1")-1,1),"Y")),$U20)) ->  | IU20: =IF($R20="","",IF($U20="",IF(EOMONTH(VALUE("R"&基本項目!$B$3&"."&FA$12&".1"),0)<$K20,"",DATEDIF($K20,EOMONTH(VALUE("R"&基本項目!$B$3&"."&FA$12&".1")-1,1),"Y")),$U20)) ->  | IX20: =IF($R20="","",IF($U20="",IF(EOMONTH(VALUE("R"&基本項目!$B$3&"."&FD$12&".1"),0)<$K20,"",DATEDIF($K20,EOMONTH(VALUE("R"&基本項目!$B$3&"."&FD$12&".1")-1,1),"Y")),$U20)) ->  | JA20: =IF($R20="","",IF($U20="",IF(EOMONTH(VALUE("R"&基本項目!$B$3&"."&FG$12&".1"),0)<$K20,"",DATEDIF($K20,EOMONTH(VALUE("R"&基本項目!$B$3&"."&FG$12&".1")-1,1),"Y")),$U20)) ->  | JD20: =IF($R20="","",IF($U20="",IF(EOMONTH(VALUE("R"&基本項目!$B$3&"."&FJ$12&".1"),0)<$K20,"",DATEDIF($K20,EOMONTH(VALUE("R"&基本項目!$B$3&"."&FJ$12&".1")-1,1),"Y")),$U20)) ->  | JG20: =IF($R20="","",IF($U20="",IF(EOMONTH(VALUE("R"&基本項目!$B$3&"."&FM$12&".1"),0)<$K20,"",DATEDIF($K20,EOMONTH(VALUE("R"&基本項目!$B$3&"."&FM$12&".1")-1,1),"Y")),$U20)) ->  | JJ20: =IF($R20="","",IF($U20="",IF(EOMONTH(VALUE("R"&基本項目!$B$3&"."&FP$12&".1"),0)<$K20,"",DATEDIF($K20,EOMONTH(VALUE("R"&基本項目!$B$3&"."&FP$12&".1")-1,1),"Y")),$U20)) ->  | JM20: =IF($R20="","",IF($U20="",IF(EOMONTH(VALUE("R"&基本項目!$B$3&"."&FS$12&".1"),0)<$K20,"",DATEDIF($K20,EOMONTH(VALUE("R"&基本項目!$B$3&"."&FS$12&".1")-1,1),"Y")),$U20)) ->  | JP20: =IF($R20="","",IF($U20="",IF(EOMONTH(VALUE("R"&基本項目!$B$3+1&"."&FV$12&".1"),0)<$K20,"",DATEDIF($K20,EOMONTH(VALUE("R"&基本項目!$B$3+1&"."&FV$12&".1")-1,1),"Y")),$U20)) ->  | JS20: =IF($R20="","",IF($U20="",IF(EOMONTH(VALUE("R"&基本項目!$B$3+1&"."&FY$12&".1"),0)<$K20,"",DATEDIF($K20,EOMONTH(VALUE("R"&基本項目!$B$3+1&"."&FY$12&".1")-1,1),"Y")),$U20)) ->  | JV20: =IF($R20="","",IF($U20="",IF(EOMONTH(VALUE("R"&基本項目!$B$3+1&"."&GB$12&".1"),0)<$K20,"",DATEDIF($K20,EOMONTH(VALUE("R"&基本項目!$B$3+1&"."&GB$12&".1")-1,1),"Y")),$U20)) ->  | KI20: =IF($R20="","",IF($U20="",IF(EOMONTH(VALUE("R"&基本項目!$B$3&"."&EU$12&".1"),0)<$K20,"",DATEDIF($K20,EOMONTH(VALUE("R"&基本項目!$B$3&"."&EU$12&".1")-1,1),"Y")),$U20)) ->  | KL20: =IF($R20="","",IF($U20="",IF(EOMONTH(VALUE("R"&基本項目!$B$3&"."&EX$12&".1"),0)<$K20,"",DATEDIF($K20,EOMONTH(VALUE("R"&基本項目!$B$3&"."&EX$12&".1")-1,1),"Y")),$U20)) ->  | KO20: =IF($R20="","",IF($U20="",IF(EOMONTH(VALUE("R"&基本項目!$B$3&"."&FA$12&".1"),0)<$K20,"",DATEDIF($K20,EOMONTH(VALUE("R"&基本項目!$B$3&"."&FA$12&".1")-1,1),"Y")),$U20)) ->  | KR20: =IF($R20="","",IF($U20="",IF(EOMONTH(VALUE("R"&基本項目!$B$3&"."&FD$12&".1"),0)<$K20,"",DATEDIF($K20,EOMONTH(VALUE("R"&基本項目!$B$3&"."&FD$12&".1")-1,1),"Y")),$U20)) ->  | KU20: =IF($R20="","",IF($U20="",IF(EOMONTH(VALUE("R"&基本項目!$B$3&"."&FG$12&".1"),0)<$K20,"",DATEDIF($K20,EOMONTH(VALUE("R"&基本項目!$B$3&"."&FG$12&".1")-1,1),"Y")),$U20)) ->  | KX20: =IF($R20="","",IF($U20="",IF(EOMONTH(VALUE("R"&基本項目!$B$3&"."&FJ$12&".1"),0)<$K20,"",DATEDIF($K20,EOMONTH(VALUE("R"&基本項目!$B$3&"."&FJ$12&".1")-1,1),"Y")),$U20)) ->  | LA20: =IF($R20="","",IF($U20="",IF(EOMONTH(VALUE("R"&基本項目!$B$3&"."&FM$12&".1"),0)<$K20,"",DATEDIF($K20,EOMONTH(VALUE("R"&基本項目!$B$3&"."&FM$12&".1")-1,1),"Y")),$U20)) ->  | LD20: =IF($R20="","",IF($U20="",IF(EOMONTH(VALUE("R"&基本項目!$B$3&"."&FP$12&".1"),0)<$K20,"",DATEDIF($K20,EOMONTH(VALUE("R"&基本項目!$B$3&"."&FP$12&".1")-1,1),"Y")),$U20)) ->  | LG20: =IF($R20="","",IF($U20="",IF(EOMONTH(VALUE("R"&基本項目!$B$3&"."&FS$12&".1"),0)<$K20,"",DATEDIF($K20,EOMONTH(VALUE("R"&基本項目!$B$3&"."&FS$12&".1")-1,1),"Y")),$U20)) ->  | LJ20: =IF($R20="","",IF($U20="",IF(EOMONTH(VALUE("R"&基本項目!$B$3+1&"."&FV$12&".1"),0)<$K20,"",DATEDIF($K20,EOMONTH(VALUE("R"&基本項目!$B$3+1&"."&FV$12&".1")-1,1),"Y")),$U20)) ->  | LM20: =IF($R20="","",IF($U20="",IF(EOMONTH(VALUE("R"&基本項目!$B$3+1&"."&FY$12&".1"),0)<$K20,"",DATEDIF($K20,EOMONTH(VALUE("R"&基本項目!$B$3+1&"."&FY$12&".1")-1,1),"Y")),$U20)) ->  | LP20: =IF($R20="","",IF($U20="",IF(EOMONTH(VALUE("R"&基本項目!$B$3+1&"."&GB$12&".1"),0)<$K20,"",DATEDIF($K20,EOMONTH(VALUE("R"&基本項目!$B$3+1&"."&GB$12&".1")-1,1),"Y")),$U20)) -> 
B21: 9 | R21: =IF(AND($U21="",$K21=""),"",IF($U21="",所得計算!$I14,$U21)) ->  | AE21: =IF(所得計算!AQ$4="","",所得計算!AQ$4) ->  | BF21: =IF(所得計算!AQ$23="","",所得計算!AQ$23) ->  | DY21: =IF(OR(AND(SUM($AL21)=1,SUM($X21)<=8500000),AND(SUM($AL21)=1,SUM($X21)>8500000,SUM($BF21)>0)),"所得金額調整控除１？",IF(OR(AND(SUM($AL21)=2,OR(SUM(所得計算!$BM$5:$BM$15)=0,SUM($BF21)=0)),AND(SUM($AL21)=2,OR(SUM($X21)>8500000,SUM($BF21)=0))),"所得金額調整控除２？",IF(AND(SUM($AL21)=3,OR(SUM($X21)<=8500000,SUM($BF21)=0)),"所得金額調整控除３？",IF(AND($AL21="",OR(SUM($X21)>8500000,AND(SUM(所得計算!$BM$5:$BM$15)>0,SUM($BF21)>0))),"所得金額調整控除サイン不要？","")))) ->  | EL21: =IF(SUM(DC21,CH21,CV21)=0,0,SUM(DC21,CH21,CV21)-SUM(所得計算!$BB$4)-SUM(所得計算!$AQ$36)) -> 0 | ES21: 9 | GP21: =IF($GM21="","",IF(HLOOKUP($GM21,$GU$12:$ID$22,10,FALSE)>=65,"","65未到達")) ->  | GU21: =IF($R21="","",IF($U21="",IF(EOMONTH(VALUE("R"&基本項目!$B$3&"."&EU$12&".1"),0)<$K21,"",DATEDIF($K21-1,EOMONTH(VALUE("R"&基本項目!$B$3&"."&EU$12&".1")-1,1),"Y")),$U21)) ->  | GX21: =IF($R21="","",IF($U21="",IF(EOMONTH(VALUE("R"&基本項目!$B$3&"."&EX$12&".1"),0)<$K21,"",DATEDIF($K21-1,EOMONTH(VALUE("R"&基本項目!$B$3&"."&EX$12&".1")-1,1),"Y")),$U21)) ->  | HA21: =IF($R21="","",IF($U21="",IF(EOMONTH(VALUE("R"&基本項目!$B$3&"."&FA$12&".1"),0)<$K21,"",DATEDIF($K21-1,EOMONTH(VALUE("R"&基本項目!$B$3&"."&FA$12&".1")-1,1),"Y")),$U21)) ->  | HD21: =IF($R21="","",IF($U21="",IF(EOMONTH(VALUE("R"&基本項目!$B$3&"."&FD$12&".1"),0)<$K21,"",DATEDIF($K21-1,EOMONTH(VALUE("R"&基本項目!$B$3&"."&FD$12&".1")-1,1),"Y")),$U21)) ->  | HG21: =IF($R21="","",IF($U21="",IF(EOMONTH(VALUE("R"&基本項目!$B$3&"."&FG$12&".1"),0)<$K21,"",DATEDIF($K21-1,EOMONTH(VALUE("R"&基本項目!$B$3&"."&FG$12&".1")-1,1),"Y")),$U21)) ->  | HJ21: =IF($R21="","",IF($U21="",IF(EOMONTH(VALUE("R"&基本項目!$B$3&"."&FJ$12&".1"),0)<$K21,"",DATEDIF($K21-1,EOMONTH(VALUE("R"&基本項目!$B$3&"."&FJ$12&".1")-1,1),"Y")),$U21)) ->  | HM21: =IF($R21="","",IF($U21="",IF(EOMONTH(VALUE("R"&基本項目!$B$3&"."&FM$12&".1"),0)<$K21,"",DATEDIF($K21-1,EOMONTH(VALUE("R"&基本項目!$B$3&"."&FM$12&".1")-1,1),"Y")),$U21)) ->  | HP21: =IF($R21="","",IF($U21="",IF(EOMONTH(VALUE("R"&基本項目!$B$3&"."&FP$12&".1"),0)<$K21,"",DATEDIF($K21-1,EOMONTH(VALUE("R"&基本項目!$B$3&"."&FP$12&".1")-1,1),"Y")),$U21)) ->  | HS21: =IF($R21="","",IF($U21="",IF(EOMONTH(VALUE("R"&基本項目!$B$3&"."&FS$12&".1"),0)<$K21,"",DATEDIF($K21-1,EOMONTH(VALUE("R"&基本項目!$B$3&"."&FS$12&".1")-1,1),"Y")),$U21)) ->  | HV21: =IF($R21="","",IF($U21="",IF(EOMONTH(VALUE("R"&基本項目!$B$3+1&"."&FV$12&".1"),0)<$K21,"",DATEDIF($K21-1,EOMONTH(VALUE("R"&基本項目!$B$3+1&"."&FV$12&".1")-1,1),"Y")),$U21)) ->  | HY21: =IF($R21="","",IF($U21="",IF(EOMONTH(VALUE("R"&基本項目!$B$3+1&"."&FY$12&".1"),0)<$K21,"",DATEDIF($K21-1,EOMONTH(VALUE("R"&基本項目!$B$3+1&"."&FY$12&".1")-1,1),"Y")),$U21)) ->  | IB21: =IF($R21="","",IF($U21="",IF(EOMONTH(VALUE("R"&基本項目!$B$3+1&"."&GB$12&".1"),0)<$K21,"",DATEDIF($K21-1,EOMONTH(VALUE("R"&基本項目!$B$3+1&"."&GB$12&".1")-1,1),"Y")),$U21)) ->  | IO21: =IF($R21="","",IF($U21="",IF(EOMONTH(VALUE("R"&基本項目!$B$3&"."&EU$12&".1"),0)<$K21,"",DATEDIF($K21,EOMONTH(VALUE("R"&基本項目!$B$3&"."&EU$12&".1")-1,1),"Y")),$U21)) ->  | IR21: =IF($R21="","",IF($U21="",IF(EOMONTH(VALUE("R"&基本項目!$B$3&"."&EX$12&".1"),0)<$K21,"",DATEDIF($K21,EOMONTH(VALUE("R"&基本項目!$B$3&"."&EX$12&".1")-1,1),"Y")),$U21)) ->  | IU21: =IF($R21="","",IF($U21="",IF(EOMONTH(VALUE("R"&基本項目!$B$3&"."&FA$12&".1"),0)<$K21,"",DATEDIF($K21,EOMONTH(VALUE("R"&基本項目!$B$3&"."&FA$12&".1")-1,1),"Y")),$U21)) ->  | IX21: =IF($R21="","",IF($U21="",IF(EOMONTH(VALUE("R"&基本項目!$B$3&"."&FD$12&".1"),0)<$K21,"",DATEDIF($K21,EOMONTH(VALUE("R"&基本項目!$B$3&"."&FD$12&".1")-1,1),"Y")),$U21)) ->  | JA21: =IF($R21="","",IF($U21="",IF(EOMONTH(VALUE("R"&基本項目!$B$3&"."&FG$12&".1"),0)<$K21,"",DATEDIF($K21,EOMONTH(VALUE("R"&基本項目!$B$3&"."&FG$12&".1")-1,1),"Y")),$U21)) ->  | JD21: =IF($R21="","",IF($U21="",IF(EOMONTH(VALUE("R"&基本項目!$B$3&"."&FJ$12&".1"),0)<$K21,"",DATEDIF($K21,EOMONTH(VALUE("R"&基本項目!$B$3&"."&FJ$12&".1")-1,1),"Y")),$U21)) ->  | JG21: =IF($R21="","",IF($U21="",IF(EOMONTH(VALUE("R"&基本項目!$B$3&"."&FM$12&".1"),0)<$K21,"",DATEDIF($K21,EOMONTH(VALUE("R"&基本項目!$B$3&"."&FM$12&".1")-1,1),"Y")),$U21)) ->  | JJ21: =IF($R21="","",IF($U21="",IF(EOMONTH(VALUE("R"&基本項目!$B$3&"."&FP$12&".1"),0)<$K21,"",DATEDIF($K21,EOMONTH(VALUE("R"&基本項目!$B$3&"."&FP$12&".1")-1,1),"Y")),$U21)) ->  | JM21: =IF($R21="","",IF($U21="",IF(EOMONTH(VALUE("R"&基本項目!$B$3&"."&FS$12&".1"),0)<$K21,"",DATEDIF($K21,EOMONTH(VALUE("R"&基本項目!$B$3&"."&FS$12&".1")-1,1),"Y")),$U21)) ->  | JP21: =IF($R21="","",IF($U21="",IF(EOMONTH(VALUE("R"&基本項目!$B$3+1&"."&FV$12&".1"),0)<$K21,"",DATEDIF($K21,EOMONTH(VALUE("R"&基本項目!$B$3+1&"."&FV$12&".1")-1,1),"Y")),$U21)) ->  | JS21: =IF($R21="","",IF($U21="",IF(EOMONTH(VALUE("R"&基本項目!$B$3+1&"."&FY$12&".1"),0)<$K21,"",DATEDIF($K21,EOMONTH(VALUE("R"&基本項目!$B$3+1&"."&FY$12&".1")-1,1),"Y")),$U21)) ->  | JV21: =IF($R21="","",IF($U21="",IF(EOMONTH(VALUE("R"&基本項目!$B$3+1&"."&GB$12&".1"),0)<$K21,"",DATEDIF($K21,EOMONTH(VALUE("R"&基本項目!$B$3+1&"."&GB$12&".1")-1,1),"Y")),$U21)) ->  | KI21: =IF($R21="","",IF($U21="",IF(EOMONTH(VALUE("R"&基本項目!$B$3&"."&EU$12&".1"),0)<$K21,"",DATEDIF($K21,EOMONTH(VALUE("R"&基本項目!$B$3&"."&EU$12&".1")-1,1),"Y")),$U21)) ->  | KL21: =IF($R21="","",IF($U21="",IF(EOMONTH(VALUE("R"&基本項目!$B$3&"."&EX$12&".1"),0)<$K21,"",DATEDIF($K21,EOMONTH(VALUE("R"&基本項目!$B$3&"."&EX$12&".1")-1,1),"Y")),$U21)) ->  | KO21: =IF($R21="","",IF($U21="",IF(EOMONTH(VALUE("R"&基本項目!$B$3&"."&FA$12&".1"),0)<$K21,"",DATEDIF($K21,EOMONTH(VALUE("R"&基本項目!$B$3&"."&FA$12&".1")-1,1),"Y")),$U21)) ->  | KR21: =IF($R21="","",IF($U21="",IF(EOMONTH(VALUE("R"&基本項目!$B$3&"."&FD$12&".1"),0)<$K21,"",DATEDIF($K21,EOMONTH(VALUE("R"&基本項目!$B$3&"."&FD$12&".1")-1,1),"Y")),$U21)) ->  | KU21: =IF($R21="","",IF($U21="",IF(EOMONTH(VALUE("R"&基本項目!$B$3&"."&FG$12&".1"),0)<$K21,"",DATEDIF($K21,EOMONTH(VALUE("R"&基本項目!$B$3&"."&FG$12&".1")-1,1),"Y")),$U21)) ->  | KX21: =IF($R21="","",IF($U21="",IF(EOMONTH(VALUE("R"&基本項目!$B$3&"."&FJ$12&".1"),0)<$K21,"",DATEDIF($K21,EOMONTH(VALUE("R"&基本項目!$B$3&"."&FJ$12&".1")-1,1),"Y")),$U21)) ->  | LA21: =IF($R21="","",IF($U21="",IF(EOMONTH(VALUE("R"&基本項目!$B$3&"."&FM$12&".1"),0)<$K21,"",DATEDIF($K21,EOMONTH(VALUE("R"&基本項目!$B$3&"."&FM$12&".1")-1,1),"Y")),$U21)) ->  | LD21: =IF($R21="","",IF($U21="",IF(EOMONTH(VALUE("R"&基本項目!$B$3&"."&FP$12&".1"),0)<$K21,"",DATEDIF($K21,EOMONTH(VALUE("R"&基本項目!$B$3&"."&FP$12&".1")-1,1),"Y")),$U21)) ->  | LG21: =IF($R21="","",IF($U21="",IF(EOMONTH(VALUE("R"&基本項目!$B$3&"."&FS$12&".1"),0)<$K21,"",DATEDIF($K21,EOMONTH(VALUE("R"&基本項目!$B$3&"."&FS$12&".1")-1,1),"Y")),$U21)) ->  | LJ21: =IF($R21="","",IF($U21="",IF(EOMONTH(VALUE("R"&基本項目!$B$3+1&"."&FV$12&".1"),0)<$K21,"",DATEDIF($K21,EOMONTH(VALUE("R"&基本項目!$B$3+1&"."&FV$12&".1")-1,1),"Y")),$U21)) ->  | LM21: =IF($R21="","",IF($U21="",IF(EOMONTH(VALUE("R"&基本項目!$B$3+1&"."&FY$12&".1"),0)<$K21,"",DATEDIF($K21,EOMONTH(VALUE("R"&基本項目!$B$3+1&"."&FY$12&".1")-1,1),"Y")),$U21)) ->  | LP21: =IF($R21="","",IF($U21="",IF(EOMONTH(VALUE("R"&基本項目!$B$3+1&"."&GB$12&".1"),0)<$K21,"",DATEDIF($K21,EOMONTH(VALUE("R"&基本項目!$B$3+1&"."&GB$12&".1")-1,1),"Y")),$U21)) -> 
B22: 10 | R22: =IF(AND($U22="",$K22=""),"",IF($U22="",所得計算!$I15,$U22)) ->  | AE22: =IF(所得計算!AR$4="","",所得計算!AR$4) ->  | BF22: =IF(所得計算!AR$23="","",所得計算!AR$23) ->  | DY22: =IF(OR(AND(SUM($AL22)=1,SUM($X22)<=8500000),AND(SUM($AL22)=1,SUM($X22)>8500000,SUM($BF22)>0)),"所得金額調整控除１？",IF(OR(AND(SUM($AL22)=2,OR(SUM(所得計算!$BN$5:$BN$15)=0,SUM($BF22)=0)),AND(SUM($AL22)=2,OR(SUM($X22)>8500000,SUM($BF22)=0))),"所得金額調整控除２？",IF(AND(SUM($AL22)=3,OR(SUM($X22)<=8500000,SUM($BF22)=0)),"所得金額調整控除３？",IF(AND($AL22="",OR(SUM($X22)>8500000,AND(SUM(所得計算!$BN$5:$BN$15)>0,SUM($BF22)>0))),"所得金額調整控除サイン不要？","")))) ->  | EL22: =IF(SUM(DC22,CH22,CV22)=0,0,SUM(DC22,CH22,CV22)-SUM(所得計算!$BC$4)-SUM(所得計算!$AR$36)) -> 0 | ES22: 10 | GP22: =IF($GM22="","",IF(HLOOKUP($GM22,$GU$12:$ID$22,11,FALSE)>=65,"","65未到達")) ->  | GU22: =IF($R22="","",IF($U22="",IF(EOMONTH(VALUE("R"&基本項目!$B$3&"."&EU$12&".1"),0)<$K22,"",DATEDIF($K22-1,EOMONTH(VALUE("R"&基本項目!$B$3&"."&EU$12&".1")-1,1),"Y")),$U22)) ->  | GX22: =IF($R22="","",IF($U22="",IF(EOMONTH(VALUE("R"&基本項目!$B$3&"."&EX$12&".1"),0)<$K22,"",DATEDIF($K22-1,EOMONTH(VALUE("R"&基本項目!$B$3&"."&EX$12&".1")-1,1),"Y")),$U22)) ->  | HA22: =IF($R22="","",IF($U22="",IF(EOMONTH(VALUE("R"&基本項目!$B$3&"."&FA$12&".1"),0)<$K22,"",DATEDIF($K22-1,EOMONTH(VALUE("R"&基本項目!$B$3&"."&FA$12&".1")-1,1),"Y")),$U22)) ->  | HD22: =IF($R22="","",IF($U22="",IF(EOMONTH(VALUE("R"&基本項目!$B$3&"."&FD$12&".1"),0)<$K22,"",DATEDIF($K22-1,EOMONTH(VALUE("R"&基本項目!$B$3&"."&FD$12&".1")-1,1),"Y")),$U22)) ->  | HG22: =IF($R22="","",IF($U22="",IF(EOMONTH(VALUE("R"&基本項目!$B$3&"."&FG$12&".1"),0)<$K22,"",DATEDIF($K22-1,EOMONTH(VALUE("R"&基本項目!$B$3&"."&FG$12&".1")-1,1),"Y")),$U22)) ->  | HJ22: =IF($R22="","",IF($U22="",IF(EOMONTH(VALUE("R"&基本項目!$B$3&"."&FJ$12&".1"),0)<$K22,"",DATEDIF($K22-1,EOMONTH(VALUE("R"&基本項目!$B$3&"."&FJ$12&".1")-1,1),"Y")),$U22)) ->  | HM22: =IF($R22="","",IF($U22="",IF(EOMONTH(VALUE("R"&基本項目!$B$3&"."&FM$12&".1"),0)<$K22,"",DATEDIF($K22-1,EOMONTH(VALUE("R"&基本項目!$B$3&"."&FM$12&".1")-1,1),"Y")),$U22)) ->  | HP22: =IF($R22="","",IF($U22="",IF(EOMONTH(VALUE("R"&基本項目!$B$3&"."&FP$12&".1"),0)<$K22,"",DATEDIF($K22-1,EOMONTH(VALUE("R"&基本項目!$B$3&"."&FP$12&".1")-1,1),"Y")),$U22)) ->  | HS22: =IF($R22="","",IF($U22="",IF(EOMONTH(VALUE("R"&基本項目!$B$3&"."&FS$12&".1"),0)<$K22,"",DATEDIF($K22-1,EOMONTH(VALUE("R"&基本項目!$B$3&"."&FS$12&".1")-1,1),"Y")),$U22)) ->  | HV22: =IF($R22="","",IF($U22="",IF(EOMONTH(VALUE("R"&基本項目!$B$3+1&"."&FV$12&".1"),0)<$K22,"",DATEDIF($K22-1,EOMONTH(VALUE("R"&基本項目!$B$3+1&"."&FV$12&".1")-1,1),"Y")),$U22)) ->  | HY22: =IF($R22="","",IF($U22="",IF(EOMONTH(VALUE("R"&基本項目!$B$3+1&"."&FY$12&".1"),0)<$K22,"",DATEDIF($K22-1,EOMONTH(VALUE("R"&基本項目!$B$3+1&"."&FY$12&".1")-1,1),"Y")),$U22)) ->  | IB22: =IF($R22="","",IF($U22="",IF(EOMONTH(VALUE("R"&基本項目!$B$3+1&"."&GB$12&".1"),0)<$K22,"",DATEDIF($K22-1,EOMONTH(VALUE("R"&基本項目!$B$3+1&"."&GB$12&".1")-1,1),"Y")),$U22)) ->  | IO22: =IF($R22="","",IF($U22="",IF(EOMONTH(VALUE("R"&基本項目!$B$3&"."&EU$12&".1"),0)<$K22,"",DATEDIF($K22,EOMONTH(VALUE("R"&基本項目!$B$3&"."&EU$12&".1")-1,1),"Y")),$U22)) ->  | IR22: =IF($R22="","",IF($U22="",IF(EOMONTH(VALUE("R"&基本項目!$B$3&"."&EX$12&".1"),0)<$K22,"",DATEDIF($K22,EOMONTH(VALUE("R"&基本項目!$B$3&"."&EX$12&".1")-1,1),"Y")),$U22)) ->  | IU22: =IF($R22="","",IF($U22="",IF(EOMONTH(VALUE("R"&基本項目!$B$3&"."&FA$12&".1"),0)<$K22,"",DATEDIF($K22,EOMONTH(VALUE("R"&基本項目!$B$3&"."&FA$12&".1")-1,1),"Y")),$U22)) ->  | IX22: =IF($R22="","",IF($U22="",IF(EOMONTH(VALUE("R"&基本項目!$B$3&"."&FD$12&".1"),0)<$K22,"",DATEDIF($K22,EOMONTH(VALUE("R"&基本項目!$B$3&"."&FD$12&".1")-1,1),"Y")),$U22)) ->  | JA22: =IF($R22="","",IF($U22="",IF(EOMONTH(VALUE("R"&基本項目!$B$3&"."&FG$12&".1"),0)<$K22,"",DATEDIF($K22,EOMONTH(VALUE("R"&基本項目!$B$3&"."&FG$12&".1")-1,1),"Y")),$U22)) ->  | JD22: =IF($R22="","",IF($U22="",IF(EOMONTH(VALUE("R"&基本項目!$B$3&"."&FJ$12&".1"),0)<$K22,"",DATEDIF($K22,EOMONTH(VALUE("R"&基本項目!$B$3&"."&FJ$12&".1")-1,1),"Y")),$U22)) ->  | JG22: =IF($R22="","",IF($U22="",IF(EOMONTH(VALUE("R"&基本項目!$B$3&"."&FM$12&".1"),0)<$K22,"",DATEDIF($K22,EOMONTH(VALUE("R"&基本項目!$B$3&"."&FM$12&".1")-1,1),"Y")),$U22)) ->  | JJ22: =IF($R22="","",IF($U22="",IF(EOMONTH(VALUE("R"&基本項目!$B$3&"."&FP$12&".1"),0)<$K22,"",DATEDIF($K22,EOMONTH(VALUE("R"&基本項目!$B$3&"."&FP$12&".1")-1,1),"Y")),$U22)) ->  | JM22: =IF($R22="","",IF($U22="",IF(EOMONTH(VALUE("R"&基本項目!$B$3&"."&FS$12&".1"),0)<$K22,"",DATEDIF($K22,EOMONTH(VALUE("R"&基本項目!$B$3&"."&FS$12&".1")-1,1),"Y")),$U22)) ->  | JP22: =IF($R22="","",IF($U22="",IF(EOMONTH(VALUE("R"&基本項目!$B$3+1&"."&FV$12&".1"),0)<$K22,"",DATEDIF($K22,EOMONTH(VALUE("R"&基本項目!$B$3+1&"."&FV$12&".1")-1,1),"Y")),$U22)) ->  | JS22: =IF($R22="","",IF($U22="",IF(EOMONTH(VALUE("R"&基本項目!$B$3+1&"."&FY$12&".1"),0)<$K22,"",DATEDIF($K22,EOMONTH(VALUE("R"&基本項目!$B$3+1&"."&FY$12&".1")-1,1),"Y")),$U22)) ->  | JV22: =IF($R22="","",IF($U22="",IF(EOMONTH(VALUE("R"&基本項目!$B$3+1&"."&GB$12&".1"),0)<$K22,"",DATEDIF($K22,EOMONTH(VALUE("R"&基本項目!$B$3+1&"."&GB$12&".1")-1,1),"Y")),$U22)) ->  | KI22: =IF($R22="","",IF($U22="",IF(EOMONTH(VALUE("R"&基本項目!$B$3&"."&EU$12&".1"),0)<$K22,"",DATEDIF($K22,EOMONTH(VALUE("R"&基本項目!$B$3&"."&EU$12&".1")-1,1),"Y")),$U22)) ->  | KL22: =IF($R22="","",IF($U22="",IF(EOMONTH(VALUE("R"&基本項目!$B$3&"."&EX$12&".1"),0)<$K22,"",DATEDIF($K22,EOMONTH(VALUE("R"&基本項目!$B$3&"."&EX$12&".1")-1,1),"Y")),$U22)) ->  | KO22: =IF($R22="","",IF($U22="",IF(EOMONTH(VALUE("R"&基本項目!$B$3&"."&FA$12&".1"),0)<$K22,"",DATEDIF($K22,EOMONTH(VALUE("R"&基本項目!$B$3&"."&FA$12&".1")-1,1),"Y")),$U22)) ->  | KR22: =IF($R22="","",IF($U22="",IF(EOMONTH(VALUE("R"&基本項目!$B$3&"."&FD$12&".1"),0)<$K22,"",DATEDIF($K22,EOMONTH(VALUE("R"&基本項目!$B$3&"."&FD$12&".1")-1,1),"Y")),$U22)) ->  | KU22: =IF($R22="","",IF($U22="",IF(EOMONTH(VALUE("R"&基本項目!$B$3&"."&FG$12&".1"),0)<$K22,"",DATEDIF($K22,EOMONTH(VALUE("R"&基本項目!$B$3&"."&FG$12&".1")-1,1),"Y")),$U22)) ->  | KX22: =IF($R22="","",IF($U22="",IF(EOMONTH(VALUE("R"&基本項目!$B$3&"."&FJ$12&".1"),0)<$K22,"",DATEDIF($K22,EOMONTH(VALUE("R"&基本項目!$B$3&"."&FJ$12&".1")-1,1),"Y")),$U22)) ->  | LA22: =IF($R22="","",IF($U22="",IF(EOMONTH(VALUE("R"&基本項目!$B$3&"."&FM$12&".1"),0)<$K22,"",DATEDIF($K22,EOMONTH(VALUE("R"&基本項目!$B$3&"."&FM$12&".1")-1,1),"Y")),$U22)) ->  | LD22: =IF($R22="","",IF($U22="",IF(EOMONTH(VALUE("R"&基本項目!$B$3&"."&FP$12&".1"),0)<$K22,"",DATEDIF($K22,EOMONTH(VALUE("R"&基本項目!$B$3&"."&FP$12&".1")-1,1),"Y")),$U22)) ->  | LG22: =IF($R22="","",IF($U22="",IF(EOMONTH(VALUE("R"&基本項目!$B$3&"."&FS$12&".1"),0)<$K22,"",DATEDIF($K22,EOMONTH(VALUE("R"&基本項目!$B$3&"."&FS$12&".1")-1,1),"Y")),$U22)) ->  | LJ22: =IF($R22="","",IF($U22="",IF(EOMONTH(VALUE("R"&基本項目!$B$3+1&"."&FV$12&".1"),0)<$K22,"",DATEDIF($K22,EOMONTH(VALUE("R"&基本項目!$B$3+1&"."&FV$12&".1")-1,1),"Y")),$U22)) ->  | LM22: =IF($R22="","",IF($U22="",IF(EOMONTH(VALUE("R"&基本項目!$B$3+1&"."&FY$12&".1"),0)<$K22,"",DATEDIF($K22,EOMONTH(VALUE("R"&基本項目!$B$3+1&"."&FY$12&".1")-1,1),"Y")),$U22)) ->  | LP22: =IF($R22="","",IF($U22="",IF(EOMONTH(VALUE("R"&基本項目!$B$3+1&"."&GB$12&".1"),0)<$K22,"",DATEDIF($K22,EOMONTH(VALUE("R"&基本項目!$B$3+1&"."&GB$12&".1")-1,1),"Y")),$U22)) -> 
EU23: =IF(SUM($GE13)=12,1,IF(EU13="○",1,0))+IF(SUM($GE14)=12,1,IF(EU14="○",1,0))+IF(SUM($GE15)=12,1,IF(EU15="○",1,0))+IF(SUM($GE16)=12,1,IF(EU16="○",1,0))+IF(SUM($GE17)=12,1,IF(EU17="○",1,0))+IF(SUM($GE18)=12,1,IF(EU18="○",1,0))+IF(SUM($GE19)=12,1,IF(EU19="○",1,0))+IF(SUM($GE20)=12,1,IF(EU20="○",1,0))+IF(SUM($GE21)=12,1,IF(EU21="○",1,0))+IF(SUM($GE22)=12,1,IF(EU22="○",1,0)) -> 0 | EX23: =IF(SUM($GE13)=12,1,IF(EX13="○",1,0))+IF(SUM($GE14)=12,1,IF(EX14="○",1,0))+IF(SUM($GE15)=12,1,IF(EX15="○",1,0))+IF(SUM($GE16)=12,1,IF(EX16="○",1,0))+IF(SUM($GE17)=12,1,IF(EX17="○",1,0))+IF(SUM($GE18)=12,1,IF(EX18="○",1,0))+IF(SUM($GE19)=12,1,IF(EX19="○",1,0))+IF(SUM($GE20)=12,1,IF(EX20="○",1,0))+IF(SUM($GE21)=12,1,IF(EX21="○",1,0))+IF(SUM($GE22)=12,1,IF(EX22="○",1,0)) -> 0 | FA23: =IF(SUM($GE13)=12,1,IF(FA13="○",1,0))+IF(SUM($GE14)=12,1,IF(FA14="○",1,0))+IF(SUM($GE15)=12,1,IF(FA15="○",1,0))+IF(SUM($GE16)=12,1,IF(FA16="○",1,0))+IF(SUM($GE17)=12,1,IF(FA17="○",1,0))+IF(SUM($GE18)=12,1,IF(FA18="○",1,0))+IF(SUM($GE19)=12,1,IF(FA19="○",1,0))+IF(SUM($GE20)=12,1,IF(FA20="○",1,0))+IF(SUM($GE21)=12,1,IF(FA21="○",1,0))+IF(SUM($GE22)=12,1,IF(FA22="○",1,0)) -> 0 | FD23: =IF(SUM($GE13)=12,1,IF(FD13="○",1,0))+IF(SUM($GE14)=12,1,IF(FD14="○",1,0))+IF(SUM($GE15)=12,1,IF(FD15="○",1,0))+IF(SUM($GE16)=12,1,IF(FD16="○",1,0))+IF(SUM($GE17)=12,1,IF(FD17="○",1,0))+IF(SUM($GE18)=12,1,IF(FD18="○",1,0))+IF(SUM($GE19)=12,1,IF(FD19="○",1,0))+IF(SUM($GE20)=12,1,IF(FD20="○",1,0))+IF(SUM($GE21)=12,1,IF(FD21="○",1,0))+IF(SUM($GE22)=12,1,IF(FD22="○",1,0)) -> 0 | FG23: =IF(SUM($GE13)=12,1,IF(FG13="○",1,0))+IF(SUM($GE14)=12,1,IF(FG14="○",1,0))+IF(SUM($GE15)=12,1,IF(FG15="○",1,0))+IF(SUM($GE16)=12,1,IF(FG16="○",1,0))+IF(SUM($GE17)=12,1,IF(FG17="○",1,0))+IF(SUM($GE18)=12,1,IF(FG18="○",1,0))+IF(SUM($GE19)=12,1,IF(FG19="○",1,0))+IF(SUM($GE20)=12,1,IF(FG20="○",1,0))+IF(SUM($GE21)=12,1,IF(FG21="○",1,0))+IF(SUM($GE22)=12,1,IF(FG22="○",1,0)) -> 0 | FJ23: =IF(SUM($GE13)=12,1,IF(FJ13="○",1,0))+IF(SUM($GE14)=12,1,IF(FJ14="○",1,0))+IF(SUM($GE15)=12,1,IF(FJ15="○",1,0))+IF(SUM($GE16)=12,1,IF(FJ16="○",1,0))+IF(SUM($GE17)=12,1,IF(FJ17="○",1,0))+IF(SUM($GE18)=12,1,IF(FJ18="○",1,0))+IF(SUM($GE19)=12,1,IF(FJ19="○",1,0))+IF(SUM($GE20)=12,1,IF(FJ20="○",1,0))+IF(SUM($GE21)=12,1,IF(FJ21="○",1,0))+IF(SUM($GE22)=12,1,IF(FJ22="○",1,0)) -> 0 | FM23: =IF(SUM($GE13)=12,1,IF(FM13="○",1,0))+IF(SUM($GE14)=12,1,IF(FM14="○",1,0))+IF(SUM($GE15)=12,1,IF(FM15="○",1,0))+IF(SUM($GE16)=12,1,IF(FM16="○",1,0))+IF(SUM($GE17)=12,1,IF(FM17="○",1,0))+IF(SUM($GE18)=12,1,IF(FM18="○",1,0))+IF(SUM($GE19)=12,1,IF(FM19="○",1,0))+IF(SUM($GE20)=12,1,IF(FM20="○",1,0))+IF(SUM($GE21)=12,1,IF(FM21="○",1,0))+IF(SUM($GE22)=12,1,IF(FM22="○",1,0)) -> 0 | FP23: =IF(SUM($GE13)=12,1,IF(FP13="○",1,0))+IF(SUM($GE14)=12,1,IF(FP14="○",1,0))+IF(SUM($GE15)=12,1,IF(FP15="○",1,0))+IF(SUM($GE16)=12,1,IF(FP16="○",1,0))+IF(SUM($GE17)=12,1,IF(FP17="○",1,0))+IF(SUM($GE18)=12,1,IF(FP18="○",1,0))+IF(SUM($GE19)=12,1,IF(FP19="○",1,0))+IF(SUM($GE20)=12,1,IF(FP20="○",1,0))+IF(SUM($GE21)=12,1,IF(FP21="○",1,0))+IF(SUM($GE22)=12,1,IF(FP22="○",1,0)) -> 0 | FS23: =IF(SUM($GE13)=12,1,IF(FS13="○",1,0))+IF(SUM($GE14)=12,1,IF(FS14="○",1,0))+IF(SUM($GE15)=12,1,IF(FS15="○",1,0))+IF(SUM($GE16)=12,1,IF(FS16="○",1,0))+IF(SUM($GE17)=12,1,IF(FS17="○",1,0))+IF(SUM($GE18)=12,1,IF(FS18="○",1,0))+IF(SUM($GE19)=12,1,IF(FS19="○",1,0))+IF(SUM($GE20)=12,1,IF(FS20="○",1,0))+IF(SUM($GE21)=12,1,IF(FS21="○",1,0))+IF(SUM($GE22)=12,1,IF(FS22="○",1,0)) -> 0 | FV23: =IF(SUM($GE13)=12,1,IF(FV13="○",1,0))+IF(SUM($GE14)=12,1,IF(FV14="○",1,0))+IF(SUM($GE15)=12,1,IF(FV15="○",1,0))+IF(SUM($GE16)=12,1,IF(FV16="○",1,0))+IF(SUM($GE17)=12,1,IF(FV17="○",1,0))+IF(SUM($GE18)=12,1,IF(FV18="○",1,0))+IF(SUM($GE19)=12,1,IF(FV19="○",1,0))+IF(SUM($GE20)=12,1,IF(FV20="○",1,0))+IF(SUM($GE21)=12,1,IF(FV21="○",1,0))+IF(SUM($GE22)=12,1,IF(FV22="○",1,0)) -> 0 | FY23: =IF(SUM($GE13)=12,1,IF(FY13="○",1,0))+IF(SUM($GE14)=12,1,IF(FY14="○",1,0))+IF(SUM($GE15)=12,1,IF(FY15="○",1,0))+IF(SUM($GE16)=12,1,IF(FY16="○",1,0))+IF(SUM($GE17)=12,1,IF(FY17="○",1,0))+IF(SUM($GE18)=12,1,IF(FY18="○",1,0))+IF(SUM($GE19)=12,1,IF(FY19="○",1,0))+IF(SUM($GE20)=12,1,IF(FY20="○",1,0))+IF(SUM($GE21)=12,1,IF(FY21="○",1,0))+IF(SUM($GE22)=12,1,IF(FY22="○",1,0)) -> 0 | GB23: =IF(SUM($GE13)=12,1,IF(GB13="○",1,0))+IF(SUM($GE14)=12,1,IF(GB14="○",1,0))+IF(SUM($GE15)=12,1,IF(GB15="○",1,0))+IF(SUM($GE16)=12,1,IF(GB16="○",1,0))+IF(SUM($GE17)=12,1,IF(GB17="○",1,0))+IF(SUM($GE18)=12,1,IF(GB18="○",1,0))+IF(SUM($GE19)=12,1,IF(GB19="○",1,0))+IF(SUM($GE20)=12,1,IF(GB20="○",1,0))+IF(SUM($GE21)=12,1,IF(GB21="○",1,0))+IF(SUM($GE22)=12,1,IF(GB22="○",1,0)) -> 0 | GE23: =COUNT(GE13:GH22) -> 0 | NZ23: =IF(AND(COUNT(NZ13:OB22)>1,COUNTIF(NZ13:OB22,"<75")=1),1,"") ->  | OC23: =IF(SUM($NZ23)>=1,1,IF(AND(COUNT(OC13:OE22)>1,COUNTIF(OC13:OE22,"<75")=1),1,"")) ->  | OF23: =IF(SUM($NZ23:OE23)>=1,1,IF(AND(COUNT(OF13:OH22)>1,COUNTIF(OF13:OH22,"<75")=1),1,"")) ->  | OI23: =IF(SUM($NZ23:OH23)>=1,1,IF(AND(COUNT(OI13:OK22)>1,COUNTIF(OI13:OK22,"<75")=1),1,"")) ->  | OL23: =IF(SUM($NZ23:OK23)>=1,1,IF(AND(COUNT(OL13:ON22)>1,COUNTIF(OL13:ON22,"<75")=1),1,"")) ->  | OO23: =IF(SUM($NZ23:ON23)>=1,1,IF(AND(COUNT(OO13:OQ22)>1,COUNTIF(OO13:OQ22,"<75")=1),1,"")) ->  | OR23: =IF(SUM($NZ23:OQ23)>=1,1,IF(AND(COUNT(OR13:OT22)>1,COUNTIF(OR13:OT22,"<75")=1),1,"")) ->  | OU23: =IF(SUM($NZ23:OT23)>=1,1,IF(AND(COUNT(OU13:OW22)>1,COUNTIF(OU13:OW22,"<75")=1),1,"")) ->  | OX23: =IF(SUM($NZ23:OW23)>=1,1,IF(AND(COUNT(OX13:OZ22)>1,COUNTIF(OX13:OZ22,"<75")=1),1,"")) ->  | PA23: =IF(SUM($NZ23:OZ23)>=1,1,IF(AND(COUNT(PA13:PC22)>1,COUNTIF(PA13:PC22,"<75")=1),1,"")) ->  | PD23: =IF(SUM($NZ23:PC23)>=1,1,IF(AND(COUNT(PD13:PF22)>1,COUNTIF(PD13:PF22,"<75")=1),1,"")) ->  | PG23: =IF(SUM($NZ23:PF23)>=1,1,IF(AND(COUNT(PG13:PI22)>1,COUNTIF(PG13:PI22,"<75")=1),1,"")) ->  | PJ23: =SUM(NZ23:PI23) -> 0 | PN23: ←平等割額の軽減特例措置判定用
EU24: =IF(COUNTIF(GE13:GH22,12)>0,EU12,IF(EU23>0,EU12,"")) ->  | EX24: =IF(SUM($EU24:EU24)=0,IF(EX23>0,EX12,""),"") ->  | FA24: =IF(SUM($EU24:EX24)=0,IF(FA23>0,FA12,""),"") ->  | FD24: =IF(SUM($EU24:FA24)=0,IF(FD23>0,FD12,""),"") ->  | FG24: =IF(SUM($EU24:FD24)=0,IF(FG23>0,FG12,""),"") ->  | FJ24: =IF(SUM($EU24:FG24)=0,IF(FJ23>0,FJ12,""),"") ->  | FM24: =IF(SUM($EU24:FJ24)=0,IF(FM23>0,FM12,""),"") ->  | FP24: =IF(SUM($EU24:FM24)=0,IF(FP23>0,FP12,""),"") ->  | FS24: =IF(SUM($EU24:FP24)=0,IF(FS23>0,FS12,""),"") ->  | FV24: =IF(SUM($EU24:FS24)=0,IF(FV23>0,FV12,""),"") ->  | FY24: =IF(SUM($EU24:FV24)=0,IF(FY23>0,FY12,""),"") ->  | GB24: =IF(SUM($EU24:FY24)=0,IF(GB23>0,GB12,""),"") ->  | GE24: =SUM(EU24:GD24) -> 0 | GH24: ←世帯ができた月
B25: 医療保険分 | K25: 所得割 | P25: 率 | U25: 7.77 | AA25: ="（前年の総所得金額－基礎控除額）×"&IF(U25="","",U25)&"％" -> （前年の総所得金額－基礎控除額）×7.77％ | EU25: =IF(AND(SUM(EU24)=4,COUNTIF(EU13:EW22,"○")=0),SUMPRODUCT((GE13:GE22=12)*1,$EO$13:$EO$22),IF(SUM(EU24)=0,"",IF(SUM(EU23)=0,"",SUMPRODUCT((EU13:EW22="○")*1,$EO$13:$EQ$22)))) ->  | EX25: =IF(SUM(EX24)=0,"",IF(SUM(EX23)=0,"",SUMPRODUCT((EX13:EZ22="○")*1,$EO$13:$EQ$22))) ->  | FA25: =IF(SUM(FA24)=0,"",IF(SUM(FA23)=0,"",SUMPRODUCT((FA13:FC22="○")*1,$EO$13:$EQ$22))) ->  | FD25: =IF(SUM(FD24)=0,"",IF(SUM(FD23)=0,"",SUMPRODUCT((FD13:FF22="○")*1,$EO$13:$EQ$22))) ->  | FG25: =IF(SUM(FG24)=0,"",IF(SUM(FG23)=0,"",SUMPRODUCT((FG13:FI22="○")*1,$EO$13:$EQ$22))) ->  | FJ25: =IF(SUM(FJ24)=0,"",IF(SUM(FJ23)=0,"",SUMPRODUCT((FJ13:FL22="○")*1,$EO$13:$EQ$22))) ->  | FM25: =IF(SUM(FM24)=0,"",IF(SUM(FM23)=0,"",SUMPRODUCT((FM13:FO22="○")*1,$EO$13:$EQ$22))) ->  | FP25: =IF(SUM(FP24)=0,"",IF(SUM(FP23)=0,"",SUMPRODUCT((FP13:FR22="○")*1,$EO$13:$EQ$22))) ->  | FS25: =IF(SUM(FS24)=0,"",IF(SUM(FS23)=0,"",SUMPRODUCT((FS13:FU22="○")*1,$EO$13:$EQ$22))) ->  | FV25: =IF(SUM(FV24)=0,"",IF(SUM(FV23)=0,"",SUMPRODUCT((FV13:FX22="○")*1,$EO$13:$EQ$22))) ->  | FY25: =IF(SUM(FY24)=0,"",IF(SUM(FY23)=0,"",SUMPRODUCT((FY13:GA22="○")*1,$EO$13:$EQ$22))) ->  | GB25: =IF(SUM(GB24)=0,"",IF(SUM(GB23)=0,"",SUMPRODUCT((GB13:GD22="○")*1,$EO$13:$EQ$22))) ->  | GE25: =SUM(EU25:GD25) -> 0 | GH25: ←給与・年金所得あり人数（＋10万円×（給与所得者※-1）の判定用）
P26: 控除額 | U26: 基礎控除 | EU26: =IF(EU$24="","",SUM(PW13:PY22)) ->  | EX26: =IF(EX$24="","",SUM(PZ13:QB22)) ->  | FA26: =IF(FA$24="","",SUM(QC13:QE22)) ->  | FD26: =IF(FD$24="","",SUM(QF13:QH22)) ->  | FG26: =IF(FG$24="","",SUM(QI13:QK22)) ->  | FJ26: =IF(FJ$24="","",SUM(QL13:QN22)) ->  | FM26: =IF(FM$24="","",SUM(QO13:QQ22)) ->  | FP26: =IF(FP$24="","",SUM(QR13:QT22)) ->  | FS26: =IF(FS$24="","",SUM(QU13:QW22)) ->  | FV26: =IF(FV$24="","",SUM(QX13:QZ22)) ->  | FY26: =IF(FY$24="","",SUM(RA13:RC22)) ->  | GB26: =IF(GB$24="","",SUM(RD13:RF22)) ->  | GE26: =SUM(EU26:GD26,$AU$2) -> 0 | GH26: ←軽減判定用所得（特定同一世帯所属者を除く）
K27: 均等割 | U27: 23500 | AA27: ←１人当たり | EU27: =IF(SUM(EU24)=0,"",SUM(EU23)) ->  | EX27: =IF(SUM(EX24)=0,"",SUM(EX23)) ->  | FA27: =IF(SUM(FA24)=0,"",SUM(FA23)) ->  | FD27: =IF(SUM(FD24)=0,"",SUM(FD23)) ->  | FG27: =IF(SUM(FG24)=0,"",SUM(FG23)) ->  | FJ27: =IF(SUM(FJ24)=0,"",SUM(FJ23)) ->  | FM27: =IF(SUM(FM24)=0,"",SUM(FM23)) ->  | FP27: =IF(SUM(FP24)=0,"",SUM(FP23)) ->  | FS27: =IF(SUM(FS24)=0,"",SUM(FS23)) ->  | FV27: =IF(SUM(FV24)=0,"",SUM(FV23)) ->  | FY27: =IF(SUM(FY24)=0,"",SUM(FY23)) ->  | GB27: =IF(SUM(GB24)=0,"",SUM(GB23)) ->  | GE27: =SUM(EU27:GD27) -> 0 | GH27: ←軽減判定用人数※これは擬主及び特定同一世帯所属者を含んでいない。
K28: 平等割 | U28: 27800 | AA28: ←１世帯当たり
K29: 限度額 | U29: 670000 | CM29: =IF(SUM(GE45)<>0,"平等割額の軽減特例措置該当↓","") ->  | DH29: =IF(SUM($GE45)=0,""," ("&TEXT(BK34,"#,##0")&"－"&IF(SUM(BY34)=0,0,TEXT(BY34,"#,##0"))&")×1/2×"&TEXT(GE45,"#,##0")&"/12＝"&TEXT(DA30,"#,##0")&" ← "&TEXT(BK34,"#,##0")&"－"&IF(SUM(BY34)=0,0,TEXT(BY34,"#,##0"))&"－"&TEXT(DA30,"#,##0")&"＝"&TEXT(DA34,"#,##0")) -> 
BR30: =IF($AU$5="","",$AU$5) ->  | CM30: =IF(CM29="","","Ｃからこの金額を引く→") ->  | DA30: =IF(SUM($GE45)=0,"",IF(SUM(GE13:GH22)=SUM(GE34:GH43),"",ROUNDDOWN(((SUM($BK34)-SUM($BY34)))/2*SUM($GE45)/12,0))) -> 
D31: 該当者 | U31: 課税総所得金額 | AP31: 算出額（全体） | BR31: 軽減額(2･5･7割額) | CF31: 軽減後(2･5･7割後) | DH31: 月数 | DP31: 月割後
D32: 氏 名 | K32: 生年月日 | R32: 年齢 | U32: ① | AB32: ② | AI32: ③（①－②） | AP32: ="④(③×"&DBCS(U25)&"%)" -> ④(③×７．７７%) | AW32: ⑤ | BD32: ④＋⑤ | BK32: ⑥ | BR32: ⑦ | BY32: ⑧ | CF32: Ａ＝④ | CM32: Ｂ＝⑤－⑦ | CT32: Ａ＋Ｂ | DA32: Ｃ＝⑥－⑧ | DH32: 該当 月数 | DL32: 世帯 月数 | DP32: 所得割 | DW32: 均等割 | ED32: 平等割
U33: 総所得金額 | AB33: 控除額 | AI33: 課税所得 | AP33: 所得割 | AW33: 均等割 | BD33: 合 計 | BK33: 平等割 | BR33: 均等割 | BY33: 平等割 | CF33: 所得割 | CM33: 均等割 | CT33: 合 計 | DA33: 平等割 | EU33: 4 | EX33: 5 | FA33: 6 | FD33: 7 | FG33: 8 | FJ33: 9 | FM33: 10 | FP33: 11 | FS33: 12 | FV33: 1 | FY33: 2 | GB33: 3 | GE33: 月数計 | GI33: 備考 | HJ33: 4 | HM33: 5 | HP33: 6 | HS33: 7 | HV33: 8 | HY33: 9 | IB33: 10 | IE33: 11 | IH33: 12 | IK33: 13 | IN33: 14 | IQ33: 15
B34: 1 | D34: =IF($DH34="","",$D13) ->  | K34: =IF($DH34="","",IF($K13="","",SUM($K13))) ->  | R34: =IF($DH34="","",IF($R13="","",SUM($R13))) ->  | U34: =IF($DH34="","",IF($DC13="","",SUM($DC13))) ->  | AB34: =IF($DH34="","",IF($U34="","",基礎控除!H3)) ->  | AI34: =IF($DH34="","",IF($U34="","",IF(SUM($U34)>SUM($AB34),SUM($U34)-SUM($AB34),0))) ->  | AP34: =IF($DH34="","",ROUNDDOWN(SUM(AI34)*SUM($U$25)/100,0)) ->  | AW34: =IF($DH34="","",SUM($U$27)) ->  | BD34: =IF(SUM(AP34:BC34)=0,"",SUM(AP34:BC34)) ->  | BK34: =IF($DL34="","",SUM($U$28)) ->  | BR34: =IF($AU$5="","",IF($DH34="","",ROUNDDOWN(SUM($U$27)*SUM(IF($AU$5="２割軽減世帯",2,IF($AU$5="５割軽減世帯",5,IF($AU$5="７割軽減世帯",7,""))))/10,0))) ->  | BY34: =IF($AU$5="","",IF($DL34="","",ROUNDDOWN(SUM($U$28)*SUM(IF($AU$5="２割軽減世帯",2,IF($AU$5="５割軽減世帯",5,IF($AU$5="７割軽減世帯",7,""))))/10,0))) ->  | CF34: =IF($DH34="","",SUM($AP34)) ->  | CM34: =IF($DH34="","",SUM($AW34)-SUM($BR34)) ->  | CT34: =IF(SUM(CF34:CS34)=0,"",SUM(CF34:CS34)) ->  | DA34: =IF($DL34="","",SUM($BK34)-SUM($BY34)-SUM(DA30)) ->  | DH34: =IF(GE34="","",SUM(GE34)) ->  | DL34: =IF($GI$13="","",SUM(GE46)) ->  | DP34: =IF($DH34="","",ROUNDDOWN(SUM($CF34)*SUM($DH34)/12,0)) ->  | DW34: =IF($DH34="","",IF(未就学児!F6="",ROUNDDOWN(SUM($CM34)*SUM($DH34)/12,0),(ROUNDDOWN(SUM($CM34)*SUM($DH34)/12,0))*0.5)) ->  | ED34: =IF($DL34="","",ROUNDDOWN(SUM($DA34)*SUM($DL34)/12,0)) ->  | EK34: =IF(未就学児!$F6=1,"←未就学児","") ->  | EU34: =IF(NZ13="","",IF(NZ13<75,IF(HJ34="○","○",""),"")) ->  | EX34: =IF(OC13="","",IF(OC13<75,IF(HM34="○","○",""),"")) ->  | FA34: =IF(OF13="","",IF(OF13<75,IF(HP34="○","○",""),"")) ->  | FD34: =IF(OI13="","",IF(OI13<75,IF(HS34="○","○",""),"")) ->  | FG34: =IF(OL13="","",IF(OL13<75,IF(HV34="○","○",""),"")) ->  | FJ34: =IF(OO13="","",IF(OO13<75,IF(HY34="○","○",""),"")) ->  | FM34: =IF(OR13="","",IF(OR13<75,IF(IB34="○","○",""),"")) ->  | FP34: =IF(OU13="","",IF(OU13<75,IF(IE34="○","○",""),"")) ->  | FS34: =IF(OX13="","",IF(OX13<75,IF(IH34="○","○",""),"")) ->  | FV34: =IF(PA13="","",IF(PA13<75,IF(IK34="○","○",""),"")) ->  | FY34: =IF(PD13="","",IF(PD13<75,IF(IN34="○","○",""),"")) ->  | GB34: =IF(PG13="","",IF(PG13<75,IF(IQ34="○","○",""),"")) ->  | GE34: =IF(COUNTIF(EU34:GD34,"○")=0,"",COUNTIF(EU34:GD34,"○")) ->  | GI34: =IF(SUM(PJ13)=12,"国保に該当しない。",IF(OR(SUM(GE13)=SUM(PN13),SUM(PJ13)=0),"","年度途中から後期高齢者医療制度移行あり。")) ->  | HJ34: =IF(NZ13="","",IF($PR13>HJ$33,"○","")) ->  | HM34: =IF(OC13="","",IF($PR13>HM$33,"○","")) ->  | HP34: =IF(OF13="","",IF($PR13>HP$33,"○","")) ->  | HS34: =IF(OI13="","",IF($PR13>HS$33,"○","")) ->  | HV34: =IF(OL13="","",IF($PR13>HV$33,"○","")) ->  | HY34: =IF(OO13="","",IF($PR13>HY$33,"○","")) ->  | IB34: =IF(OR13="","",IF($PR13>IB$33,"○","")) ->  | IE34: =IF(OU13="","",IF($PR13>IE$33,"○","")) ->  | IH34: =IF(OX13="","",IF($PR13>IH$33,"○","")) ->  | IK34: =IF(PA13="","",IF($PR13>IK$33,"○","")) ->  | IN34: =IF(PD13="","",IF($PR13>IN$33,"○","")) ->  | IQ34: =IF(PG13="","",IF($PR13>IQ$33,"○","")) -> 
B35: 2 | AB35: =IF($DH35="","",IF($U35="","",基礎控除!H4)) ->  | DH35: =IF(GE35="","",SUM(GE35)) ->  | DW35: =IF($DH35="","",IF(未就学児!F7="",ROUNDDOWN(SUM($CM35)*SUM($DH35)/12,0),(ROUNDDOWN(SUM($CM35)*SUM($DH35)/12,0))*0.5)) ->  | EK35: =IF(未就学児!$F7=1,"←未就学児","") ->  | EU35: =IF(NZ14="","",IF(NZ14<75,IF(HJ35="○","○",""),"")) ->  | EX35: =IF(OC14="","",IF(OC14<75,IF(HM35="○","○",""),"")) ->  | FA35: =IF(OF14="","",IF(OF14<75,IF(HP35="○","○",""),"")) ->  | FD35: =IF(OI14="","",IF(OI14<75,IF(HS35="○","○",""),"")) ->  | FG35: =IF(OL14="","",IF(OL14<75,IF(HV35="○","○",""),"")) ->  | FJ35: =IF(OO14="","",IF(OO14<75,IF(HY35="○","○",""),"")) ->  | FM35: =IF(OR14="","",IF(OR14<75,IF(IB35="○","○",""),"")) ->  | FP35: =IF(OU14="","",IF(OU14<75,IF(IE35="○","○",""),"")) ->  | FS35: =IF(OX14="","",IF(OX14<75,IF(IH35="○","○",""),"")) ->  | FV35: =IF(PA14="","",IF(PA14<75,IF(IK35="○","○",""),"")) ->  | FY35: =IF(PD14="","",IF(PD14<75,IF(IN35="○","○",""),"")) ->  | GB35: =IF(PG14="","",IF(PG14<75,IF(IQ35="○","○",""),"")) ->  | GE35: =IF(COUNTIF(EU35:GD35,"○")=0,"",COUNTIF(EU35:GD35,"○")) ->  | HJ35: =IF(NZ14="","",IF($PR14>HJ$33,"○","")) ->  | HM35: =IF(OC14="","",IF($PR14>HM$33,"○","")) ->  | HP35: =IF(OF14="","",IF($PR14>HP$33,"○","")) ->  | HS35: =IF(OI14="","",IF($PR14>HS$33,"○","")) ->  | HV35: =IF(OL14="","",IF($PR14>HV$33,"○","")) ->  | HY35: =IF(OO14="","",IF($PR14>HY$33,"○","")) ->  | IB35: =IF(OR14="","",IF($PR14>IB$33,"○","")) ->  | IE35: =IF(OU14="","",IF($PR14>IE$33,"○","")) ->  | IH35: =IF(OX14="","",IF($PR14>IH$33,"○","")) ->  | IK35: =IF(PA14="","",IF($PR14>IK$33,"○","")) ->  | IN35: =IF(PD14="","",IF($PR14>IN$33,"○","")) ->  | IQ35: =IF(PG14="","",IF($PR14>IQ$33,"○","")) -> 
B36: 3 | AB36: =IF($DH36="","",IF($U36="","",基礎控除!H5)) ->  | DH36: =IF(GE36="","",SUM(GE36)) ->  | DW36: =IF($DH36="","",IF(未就学児!F8="",ROUNDDOWN(SUM($CM36)*SUM($DH36)/12,0),(ROUNDDOWN(SUM($CM36)*SUM($DH36)/12,0))*0.5)) ->  | EK36: =IF(未就学児!$F8=1,"←未就学児","") ->  | EU36: =IF(NZ15="","",IF(NZ15<75,IF(HJ36="○","○",""),"")) ->  | EX36: =IF(OC15="","",IF(OC15<75,IF(HM36="○","○",""),"")) ->  | FA36: =IF(OF15="","",IF(OF15<75,IF(HP36="○","○",""),"")) ->  | FD36: =IF(OI15="","",IF(OI15<75,IF(HS36="○","○",""),"")) ->  | FG36: =IF(OL15="","",IF(OL15<75,IF(HV36="○","○",""),"")) ->  | FJ36: =IF(OO15="","",IF(OO15<75,IF(HY36="○","○",""),"")) ->  | FM36: =IF(OR15="","",IF(OR15<75,IF(IB36="○","○",""),"")) ->  | FP36: =IF(OU15="","",IF(OU15<75,IF(IE36="○","○",""),"")) ->  | FS36: =IF(OX15="","",IF(OX15<75,IF(IH36="○","○",""),"")) ->  | FV36: =IF(PA15="","",IF(PA15<75,IF(IK36="○","○",""),"")) ->  | FY36: =IF(PD15="","",IF(PD15<75,IF(IN36="○","○",""),"")) ->  | GB36: =IF(PG15="","",IF(PG15<75,IF(IQ36="○","○",""),"")) ->  | GE36: =IF(COUNTIF(EU36:GD36,"○")=0,"",COUNTIF(EU36:GD36,"○")) ->  | HJ36: =IF(NZ15="","",IF($PR15>HJ$33,"○","")) ->  | HM36: =IF(OC15="","",IF($PR15>HM$33,"○","")) ->  | HP36: =IF(OF15="","",IF($PR15>HP$33,"○","")) ->  | HS36: =IF(OI15="","",IF($PR15>HS$33,"○","")) ->  | HV36: =IF(OL15="","",IF($PR15>HV$33,"○","")) ->  | HY36: =IF(OO15="","",IF($PR15>HY$33,"○","")) ->  | IB36: =IF(OR15="","",IF($PR15>IB$33,"○","")) ->  | IE36: =IF(OU15="","",IF($PR15>IE$33,"○","")) ->  | IH36: =IF(OX15="","",IF($PR15>IH$33,"○","")) ->  | IK36: =IF(PA15="","",IF($PR15>IK$33,"○","")) ->  | IN36: =IF(PD15="","",IF($PR15>IN$33,"○","")) ->  | IQ36: =IF(PG15="","",IF($PR15>IQ$33,"○","")) -> 
B37: 4 | AB37: =IF($DH37="","",IF($U37="","",基礎控除!H6)) ->  | DW37: =IF($DH37="","",IF(未就学児!F9="",ROUNDDOWN(SUM($CM37)*SUM($DH37)/12,0),(ROUNDDOWN(SUM($CM37)*SUM($DH37)/12,0))*0.5)) ->  | EK37: =IF(未就学児!$F9=1,"←未就学児","") -> 
B38: 5 | AB38: =IF($DH38="","",IF($U38="","",基礎控除!H7)) ->  | DW38: =IF($DH38="","",IF(未就学児!F10="",ROUNDDOWN(SUM($CM38)*SUM($DH38)/12,0),(ROUNDDOWN(SUM($CM38)*SUM($DH38)/12,0))*0.5)) ->  | EK38: =IF(未就学児!$F10=1,"←未就学児","") -> 
B39: 6 | AB39: =IF($DH39="","",IF($U39="","",基礎控除!H8)) ->  | DW39: =IF($DH39="","",IF(未就学児!F11="",ROUNDDOWN(SUM($CM39)*SUM($DH39)/12,0),(ROUNDDOWN(SUM($CM39)*SUM($DH39)/12,0))*0.5)) ->  | EK39: =IF(未就学児!$F11=1,"←未就学児","") -> 
B40: 7 | AB40: =IF($DH40="","",IF($U40="","",基礎控除!H9)) ->  | DW40: =IF($DH40="","",IF(未就学児!F12="",ROUNDDOWN(SUM($CM40)*SUM($DH40)/12,0),(ROUNDDOWN(SUM($CM40)*SUM($DH40)/12,0))*0.5)) ->  | EK40: =IF(未就学児!$F12=1,"←未就学児","") -> 
B41: 8 | AB41: =IF($DH41="","",IF($U41="","",基礎控除!H10)) ->  | DW41: =IF($DH41="","",IF(未就学児!F13="",ROUNDDOWN(SUM($CM41)*SUM($DH41)/12,0),(ROUNDDOWN(SUM($CM41)*SUM($DH41)/12,0))*0.5)) ->  | EK41: =IF(未就学児!$F13=1,"←未就学児","") -> 
B42: 9 | AB42: =IF($DH42="","",IF($U42="","",基礎控除!H11)) ->  | DW42: =IF($DH42="","",IF(未就学児!F14="",ROUNDDOWN(SUM($CM42)*SUM($DH42)/12,0),(ROUNDDOWN(SUM($CM42)*SUM($DH42)/12,0))*0.5)) ->  | EK42: =IF(未就学児!$F14=1,"←未就学児","") -> 
B43: 10 | AB43: =IF($DH43="","",IF($U43="","",基礎控除!H12)) ->  | DW43: =IF($DH43="","",IF(未就学児!F15="",ROUNDDOWN(SUM($CM43)*SUM($DH43)/12,0),(ROUNDDOWN(SUM($CM43)*SUM($DH43)/12,0))*0.5)) ->  | EK43: =IF(未就学児!$F15=1,"←未就学児","") -> 
D44: 合計 | U44: =SUM(U34:AA43) -> 0 | AB44: ********* | AI44: =SUM(AI34:AO43) -> 0 | AP44: =SUM(AP34:AV43) -> 0 | AW44: =SUM(AW34:BC43) -> 0 | BD44: =SUM(BD34:BJ43) -> 0 | BK44: =SUM(BK34:BQ43) -> 0 | BR44: =SUM(BR34:BX43) -> 0 | BY44: =SUM(BY34:CE43) -> 0 | CF44: =SUM(CF34:CL43) -> 0 | CM44: =SUM(CM34:CS43) -> 0 | CT44: =SUM(CT34:CZ43) -> 0 | DA44: =SUM(DA34:DG43) -> 0 | DP44: =SUM(DP34:DV43) -> 0 | DW44: =SUM(DW34:EC43) -> 0 | ED44: =SUM(ED34:EJ43) -> 0 | EU44: =SUMPRODUCT((EU34:EW43="○")*1) -> 0 | EX44: =SUMPRODUCT((EX34:EZ43="○")*1) -> 0 | FA44: =SUMPRODUCT((FA34:FC43="○")*1) -> 0 | FD44: =SUMPRODUCT((FD34:FF43="○")*1) -> 0 | FG44: =SUMPRODUCT((FG34:FI43="○")*1) -> 0 | FJ44: =SUMPRODUCT((FJ34:FL43="○")*1) -> 0 | FM44: =SUMPRODUCT((FM34:FO43="○")*1) -> 0 | FP44: =SUMPRODUCT((FP34:FR43="○")*1) -> 0 | FS44: =SUMPRODUCT((FS34:FU43="○")*1) -> 0 | FV44: =SUMPRODUCT((FV34:FX43="○")*1) -> 0 | FY44: =SUMPRODUCT((FY34:GA43="○")*1) -> 0 | GB44: =SUMPRODUCT((GB34:GD43="○")*1) -> 0 | GE44: ***
BK45: =IF(ROUNDDOWN(SUM(BD44:BQ44),-2)>SUM($U$29),SUM($U$29),ROUNDDOWN(SUM(BD44:BQ44),-2)) -> 0 | BR45: ※特例措置の軽減含む↑ | CZ45: 合計（Ａ＋Ｂ＋Ｃ）→ | DA45: =SUM(CT44:DG44) -> 0 | EC45: 合計（Ａ＋Ｂ＋Ｃ）→ | ED45: =SUM(DP44:EJ44) -> 0 | EU45: =SUM(NZ23) -> 0 | EX45: =SUM(OC23) -> 0 | FA45: =SUM(OF23) -> 0 | FD45: =SUM(OI23) -> 0 | FG45: =SUM(OL23) -> 0 | FJ45: =SUM(OO23) -> 0 | FM45: =SUM(OR23) -> 0 | FP45: =SUM(OU23) -> 0 | FS45: =SUM(OX23) -> 0 | FV45: =SUM(PA23) -> 0 | FY45: =SUM(PD23) -> 0 | GB45: =SUM(PG23) -> 0 | GE45: =IF(SUM(GE23)=1,"",SUM(EU45:GD45)) -> 0
CZ46: Ｄ 限度額以下（百円未満切捨て）→ | DA46: =IF(ROUNDDOWN(SUM(DA45),-2)>SUM($U$29),SUM($U$29),ROUNDDOWN(SUM(DA45),-2)) -> 0 | EC46: Ｄ 限度額以下（百円未満切捨て）→ | ED46: =IF(ROUNDDOWN(SUM(ED45),-2)>SUM($U$29),SUM($U$29),ROUNDDOWN(SUM(ED45),-2)) -> 0 | EU46: =IF(SUMPRODUCT((EU34:EW43="○")*1)>0,1,"") ->  | EX46: =IF(SUMPRODUCT((EX34:EZ43="○")*1)>0,1,"") ->  | FA46: =IF(SUMPRODUCT((FA34:FC43="○")*1)>0,1,"") ->  | FD46: =IF(SUMPRODUCT((FD34:FF43="○")*1)>0,1,"") ->  | FG46: =IF(SUMPRODUCT((FG34:FI43="○")*1)>0,1,"") ->  | FJ46: =IF(SUMPRODUCT((FJ34:FL43="○")*1)>0,1,"") ->  | FM46: =IF(SUMPRODUCT((FM34:FO43="○")*1)>0,1,"") ->  | FP46: =IF(SUMPRODUCT((FP34:FR43="○")*1)>0,1,"") ->  | FS46: =IF(SUMPRODUCT((FS34:FU43="○")*1)>0,1,"") ->  | FV46: =IF(SUMPRODUCT((FV34:FX43="○")*1)>0,1,"") ->  | FY46: =IF(SUMPRODUCT((FY34:GA43="○")*1)>0,1,"") ->  | GB46: =IF(SUMPRODUCT((GB34:GD43="○")*1)>0,1,"") ->  | GE46: =SUM(EU46:GD46) -> 0
CZ47: 限度超過額→ | DA47: =IF(ROUNDDOWN(SUM(DA45),-2)>SUM(DA46),SUM(DA45)-SUM(DA46),0) -> 0 | EC47: 限度超過額→ | ED47: =IF(ROUNDDOWN(SUM(ED45),-2)>SUM(ED46),SUM(ED45)-SUM(ED46),0) -> 0
B49: 後期高齢者 支援金分 | K49: 所得割 | P49: 率 | U49: 3.02 | AA49: ="（前年の総所得金額－基礎控除額）×"&IF(U49="","",U49)&"％" -> （前年の総所得金額－基礎控除額）×3.02％
P50: 控除額 | U50: 基礎控除
K51: 均等割 | U51: 15600 | AA51: ←１人当たり
K52: 限度額 | U52: 260000
BR53: =IF($AU$5="","",$AU$5) -> 
D54: 該当者 | U54: 課税総所得金額 | AP54: 算出額（全体） | BR54: 軽減額(2･5･7割額) | CF54: 軽減後(2･5･7割後) | DH54: 月数 | DP54: 月割後
D55: 氏 名 | K55: 生年月日 | R55: 年齢 | U55: ① | AB55: ② | AI55: ③（①－②） | AP55: ="④(③×"&DBCS(U49)&"%)" -> ④(③×３．０２%) | AW55: ⑤ | BD55: ④＋⑤ | BR55: ⑦ | CF55: Ａ＝④ | CM55: Ｂ＝⑤－⑦ | CT55: Ａ＋Ｂ | DH55: 該当 月数 | DL55: 世帯 月数 | DP55: 所得割 | DW55: 均等割
U56: 総所得金額 | AB56: 控除額 | AI56: 課税所得 | AP56: 所得割 | AW56: 均等割 | BD56: 合 計 | BR56: 均等割 | CF56: 所得割 | CM56: 均等割 | CT56: 合 計 | EU56: 4 | EX56: 5 | FA56: 6 | FD56: 7 | FG56: 8 | FJ56: 9 | FM56: 10 | FP56: 11 | FS56: 12 | FV56: 1 | FY56: 2 | GB56: 3 | GE56: 月数計 | GI56: 備考
B57: 1 | D57: =IF($DH57="","",$D13) ->  | K57: =IF($DH57="","",IF($K13="","",SUM($K13))) ->  | R57: =IF($DH57="","",IF($R13="","",SUM($R13))) ->  | U57: =IF($DH57="","",IF($DC13="","",SUM($DC13))) ->  | AB57: =IF($DH57="","",IF($U57="","",基礎控除!H3)) ->  | AI57: =IF($DH57="","",IF($U57="","",IF(SUM($U57)>SUM($AB57),SUM($U57)-SUM($AB57),0))) ->  | AP57: =IF($DH57="","",ROUNDDOWN(SUM(AI57)*SUM($U$49)/100,0)) ->  | AW57: =IF($DH57="","",SUM($U$51)) ->  | BD57: =IF(SUM(AP57:BC57)=0,"",SUM(AP57:BC57)) ->  | BR57: =IF($AU$5="","",IF($DH57="","",ROUNDDOWN(SUM($U$51)*SUM(IF($AU$5="２割軽減世帯",2,IF($AU$5="５割軽減世帯",5,IF($AU$5="７割軽減世帯",7,""))))/10,0))) ->  | CF57: =IF($DH57="","",SUM($AP57)) ->  | CM57: =IF($DH57="","",SUM($AW57)-SUM($BR57)) ->  | CT57: =IF(SUM(CF57:CS57)=0,"",SUM(CF57:CS57)) ->  | DH57: =IF(GE57="","",SUM(GE57)) ->  | DP57: =IF($DH57="","",ROUNDDOWN(SUM($CF57)*SUM($DH57)/12,0)) ->  | DW57: =IF($DH57="","",IF(未就学児!F6="",ROUNDDOWN(SUM($CM57)*SUM($DH57)/12,0),ROUNDDOWN(SUM($CM57)*SUM($DH57)/12,0)*0.5)) ->  | EK57: =IF(未就学児!$F6=1,"←未就学児","") ->  | EU57: =IF(NZ13="","",IF(NZ13<75,IF(HJ34="○","○",""),"")) ->  | EX57: =IF(OC13="","",IF(OC13<75,IF(HM34="○","○",""),"")) ->  | FA57: =IF(OF13="","",IF(OF13<75,IF(HP34="○","○",""),"")) ->  | FD57: =IF(OI13="","",IF(OI13<75,IF(HS34="○","○",""),"")) ->  | FG57: =IF(OL13="","",IF(OL13<75,IF(HV34="○","○",""),"")) ->  | FJ57: =IF(OO13="","",IF(OO13<75,IF(HY34="○","○",""),"")) ->  | FM57: =IF(OR13="","",IF(OR13<75,IF(IB34="○","○",""),"")) ->  | FP57: =IF(OU13="","",IF(OU13<75,IF(IE34="○","○",""),"")) ->  | FS57: =IF(OX13="","",IF(OX13<75,IF(IH34="○","○",""),"")) ->  | FV57: =IF(PA13="","",IF(PA13<75,IF(IK34="○","○",""),"")) ->  | FY57: =IF(PD13="","",IF(PD13<75,IF(IN34="○","○",""),"")) ->  | GB57: =IF(PG13="","",IF(PG13<75,IF(IQ34="○","○",""),"")) ->  | GE57: =IF(COUNTIF(EU57:GD57,"○")=0,"",COUNTIF(EU57:GD57,"○")) ->  | GI57: =IF(SUM(PJ13)=12,"国保に該当しない。",IF(OR(SUM(GE13)=SUM(PN13),SUM(PJ13)=0),"","年度途中から後期高齢者医療制度移行あり。")) -> 
B58: 2 | AB58: =IF($DH58="","",IF($U58="","",基礎控除!H4)) ->  | DH58: =IF(GE58="","",SUM(GE58)) ->  | DW58: =IF($DH58="","",IF(未就学児!F7="",ROUNDDOWN(SUM($CM58)*SUM($DH58)/12,0),ROUNDDOWN(SUM($CM58)*SUM($DH58)/12,0)*0.5)) ->  | EK58: =IF(未就学児!$F7=1,"←未就学児","") ->  | EU58: =IF(NZ14="","",IF(NZ14<75,IF(HJ35="○","○",""),"")) ->  | EX58: =IF(OC14="","",IF(OC14<75,IF(HM35="○","○",""),"")) ->  | FA58: =IF(OF14="","",IF(OF14<75,IF(HP35="○","○",""),"")) ->  | FD58: =IF(OI14="","",IF(OI14<75,IF(HS35="○","○",""),"")) ->  | FG58: =IF(OL14="","",IF(OL14<75,IF(HV35="○","○",""),"")) ->  | FJ58: =IF(OO14="","",IF(OO14<75,IF(HY35="○","○",""),"")) ->  | FM58: =IF(OR14="","",IF(OR14<75,IF(IB35="○","○",""),"")) ->  | FP58: =IF(OU14="","",IF(OU14<75,IF(IE35="○","○",""),"")) ->  | FS58: =IF(OX14="","",IF(OX14<75,IF(IH35="○","○",""),"")) ->  | FV58: =IF(PA14="","",IF(PA14<75,IF(IK35="○","○",""),"")) ->  | FY58: =IF(PD14="","",IF(PD14<75,IF(IN35="○","○",""),"")) ->  | GB58: =IF(PG14="","",IF(PG14<75,IF(IQ35="○","○",""),"")) ->  | GE58: =IF(COUNTIF(EU58:GD58,"○")=0,"",COUNTIF(EU58:GD58,"○")) -> 
B59: 3 | AB59: =IF($DH59="","",IF($U59="","",基礎控除!H5)) ->  | DH59: =IF(GE59="","",SUM(GE59)) ->  | DW59: =IF($DH59="","",IF(未就学児!F8="",ROUNDDOWN(SUM($CM59)*SUM($DH59)/12,0),ROUNDDOWN(SUM($CM59)*SUM($DH59)/12,0)*0.5)) ->  | EK59: =IF(未就学児!$F8=1,"←未就学児","") ->  | EU59: =IF(NZ15="","",IF(NZ15<75,IF(HJ36="○","○",""),"")) ->  | EX59: =IF(OC15="","",IF(OC15<75,IF(HM36="○","○",""),"")) ->  | FA59: =IF(OF15="","",IF(OF15<75,IF(HP36="○","○",""),"")) ->  | FD59: =IF(OI15="","",IF(OI15<75,IF(HS36="○","○",""),"")) ->  | FG59: =IF(OL15="","",IF(OL15<75,IF(HV36="○","○",""),"")) ->  | FJ59: =IF(OO15="","",IF(OO15<75,IF(HY36="○","○",""),"")) ->  | FM59: =IF(OR15="","",IF(OR15<75,IF(IB36="○","○",""),"")) ->  | FP59: =IF(OU15="","",IF(OU15<75,IF(IE36="○","○",""),"")) ->  | FS59: =IF(OX15="","",IF(OX15<75,IF(IH36="○","○",""),"")) ->  | FV59: =IF(PA15="","",IF(PA15<75,IF(IK36="○","○",""),"")) ->  | FY59: =IF(PD15="","",IF(PD15<75,IF(IN36="○","○",""),"")) ->  | GB59: =IF(PG15="","",IF(PG15<75,IF(IQ36="○","○",""),"")) ->  | GE59: =IF(COUNTIF(EU59:GD59,"○")=0,"",COUNTIF(EU59:GD59,"○")) -> 
B60: 4 | AB60: =IF($DH60="","",IF($U60="","",基礎控除!H6)) ->  | DW60: =IF($DH60="","",IF(未就学児!F9="",ROUNDDOWN(SUM($CM60)*SUM($DH60)/12,0),ROUNDDOWN(SUM($CM60)*SUM($DH60)/12,0)*0.5)) ->  | EK60: =IF(未就学児!$F9=1,"←未就学児","") -> 
B61: 5 | AB61: =IF($DH61="","",IF($U61="","",基礎控除!H7)) ->  | DW61: =IF($DH61="","",IF(未就学児!F10="",ROUNDDOWN(SUM($CM61)*SUM($DH61)/12,0),ROUNDDOWN(SUM($CM61)*SUM($DH61)/12,0)*0.5)) ->  | EK61: =IF(未就学児!$F10=1,"←未就学児","") -> 
B62: 6 | AB62: =IF($DH62="","",IF($U62="","",基礎控除!H8)) ->  | DW62: =IF($DH62="","",IF(未就学児!F11="",ROUNDDOWN(SUM($CM62)*SUM($DH62)/12,0),ROUNDDOWN(SUM($CM62)*SUM($DH62)/12,0)*0.5)) ->  | EK62: =IF(未就学児!$F11=1,"←未就学児","") -> 
B63: 7 | AB63: =IF($DH63="","",IF($U63="","",基礎控除!H9)) ->  | DW63: =IF($DH63="","",IF(未就学児!F12="",ROUNDDOWN(SUM($CM63)*SUM($DH63)/12,0),ROUNDDOWN(SUM($CM63)*SUM($DH63)/12,0)*0.5)) ->  | EK63: =IF(未就学児!$F12=1,"←未就学児","") -> 
B64: 8 | AB64: =IF($DH64="","",IF($U64="","",基礎控除!H10)) ->  | DW64: =IF($DH64="","",IF(未就学児!F13="",ROUNDDOWN(SUM($CM64)*SUM($DH64)/12,0),ROUNDDOWN(SUM($CM64)*SUM($DH64)/12,0)*0.5)) ->  | EK64: =IF(未就学児!$F13=1,"←未就学児","") -> 
B65: 9 | AB65: =IF($DH65="","",IF($U65="","",基礎控除!H11)) ->  | DW65: =IF($DH65="","",IF(未就学児!F14="",ROUNDDOWN(SUM($CM65)*SUM($DH65)/12,0),ROUNDDOWN(SUM($CM65)*SUM($DH65)/12,0)*0.5)) ->  | EK65: =IF(未就学児!$F14=1,"←未就学児","") -> 
B66: 10 | AB66: =IF($DH66="","",IF($U66="","",基礎控除!H12)) ->  | DW66: =IF($DH66="","",IF(未就学児!F15="",ROUNDDOWN(SUM($CM66)*SUM($DH66)/12,0),ROUNDDOWN(SUM($CM66)*SUM($DH66)/12,0)*0.5)) ->  | EK66: =IF(未就学児!$F15=1,"←未就学児","") -> 
D67: 合計 | U67: =SUM(U57:AA66) -> 0 | AB67: ********* | AI67: =SUM(AI57:AO66) -> 0 | AP67: =SUM(AP57:AV66) -> 0 | AW67: =SUM(AW57:BC66) -> 0 | BD67: =SUM(BD57:BJ66) -> 0 | BR67: =SUM(BR57:BX66) -> 0 | CF67: =SUM(CF57:CL66) -> 0 | CM67: =SUM(CM57:CS66) -> 0 | CT67: =SUM(CT57:CZ66) -> 0 | DP67: =SUM(DP57:DV66) -> 0 | DW67: =SUM(DW57:EC66) -> 0 | EU67: =SUMPRODUCT((EU57:EU66="○")*1) -> 0 | EX67: =SUMPRODUCT((EX57:EX66="○")*1) -> 0 | FA67: =SUMPRODUCT((FA57:FA66="○")*1) -> 0 | FD67: =SUMPRODUCT((FD57:FD66="○")*1) -> 0 | FG67: =SUMPRODUCT((FG57:FG66="○")*1) -> 0 | FJ67: =SUMPRODUCT((FJ57:FJ66="○")*1) -> 0 | FM67: =SUMPRODUCT((FM57:FM66="○")*1) -> 0 | FP67: =SUMPRODUCT((FP57:FP66="○")*1) -> 0 | FS67: =SUMPRODUCT((FS57:FS66="○")*1) -> 0 | FV67: =SUMPRODUCT((FV57:FV66="○")*1) -> 0 | FY67: =SUMPRODUCT((FY57:FY66="○")*1) -> 0 | GB67: =SUMPRODUCT((GB57:GB66="○")*1) -> 0 | GE67: ***
BK68: =IF(ROUNDDOWN(SUM(BD67:BQ67),-2)>SUM($U$52),SUM($U$52),ROUNDDOWN(SUM(BD67:BQ67),-2)) -> 0 | CZ68: 合計（Ａ＋Ｂ＋Ｃ）→ | DA68: =SUM(CT67:DG67) -> 0 | EC68: 合計（Ａ＋Ｂ＋Ｃ）→ | ED68: =SUM(DP67:EJ67) -> 0
CZ69: Ｄ 限度額以下（百円未満切捨て）→ | DA69: =IF(ROUNDDOWN(SUM(DA68),-2)>SUM($U$52),SUM($U$52),ROUNDDOWN(SUM(DA68),-2)) -> 0 | EC69: Ｄ 限度額以下（百円未満切捨て）→ | ED69: =IF(ROUNDDOWN(SUM(ED68),-2)>SUM($U$52),SUM($U$52),ROUNDDOWN(SUM(ED68),-2)) -> 0
CZ70: 限度超過額→ | DA70: =IF(ROUNDDOWN(SUM(DA68),-2)>SUM(DA69),SUM(DA68)-SUM(DA69),0) -> 0 | EC70: 限度超過額→ | ED70: =IF(ROUNDDOWN(SUM(ED68),-2)>SUM(ED69),SUM(ED68)-SUM(ED69),0) -> 0
B72: 介護保険分 | K72: 所得割 | P72: 率 | U72: 2.57 | AA72: ="（前年の総所得金額－基礎控除額）×"&IF(U72="","",U72)&"％" -> （前年の総所得金額－基礎控除額）×2.57％
P73: 控除額 | U73: 基礎控除
K74: 均等割 | U74: 18000 | AA74: ←１人当たり
K75: 限度額 | U75: 170000
BR76: =IF($AU$5="","",$AU$5) -> 
D77: 該当者 | U77: 課税総所得金額 | AP77: 算出額（全体） | BR77: 軽減額(2･5･7割額) | CF77: 軽減後(2･5･7割後) | DH77: 月数 | DP77: 月割後
D78: 氏 名 | K78: 生年月日 | R78: 年齢 | U78: ① | AB78: ② | AI78: ③（①－②） | AP78: ="④(③×"&DBCS(U72)&"%)" -> ④(③×２．５７%) | AW78: ⑤ | BD78: ④＋⑤ | BR78: ⑦ | CF78: Ａ＝④ | CM78: Ｂ＝⑤－⑦ | CT78: Ａ＋Ｂ | DH78: 該当 月数 | DL78: 世帯 月数 | DP78: 所得割 | DW78: 均等割
U79: 総所得金額 | AB79: 控除額 | AI79: 課税所得 | AP79: 所得割 | AW79: 均等割 | BD79: 合 計 | BR79: 均等割 | CF79: 所得割 | CM79: 均等割 | CT79: 合 計 | EU79: 4 | EX79: 5 | FA79: 6 | FD79: 7 | FG79: 8 | FJ79: 9 | FM79: 10 | FP79: 11 | FS79: 12 | FV79: 1 | FY79: 2 | GB79: 3 | GE79: 月数計 | GI79: 備考
B80: 1 | D80: =IF($DH80="","",$D13) ->  | K80: =IF($DH80="","",IF($K13="","",SUM($K13))) ->  | R80: =IF($DH80="","",IF($R13="","",SUM($R13))) ->  | U80: =IF($DH80="","",IF($DC13="","",SUM($DC13))) ->  | AB80: =IF($DH80="","",IF($U80="","",基礎控除!H3)) ->  | AI80: =IF($DH80="","",IF($U80="","",IF(SUM($U80)>SUM($AB80),SUM($U80)-SUM($AB80),0))) ->  | AP80: =IF($DH80="","",ROUNDDOWN(SUM(AI80)*SUM($U$72)/100,0)) ->  | AW80: =IF($DH80="","",SUM($U$74)) ->  | BD80: =IF(SUM(AP80:BC80)=0,"",SUM(AP80:BC80)) ->  | BR80: =IF($AU$5="","",IF($DH80="","",ROUNDDOWN(SUM($U$74)*SUM(IF($AU$5="２割軽減世帯",2,IF($AU$5="５割軽減世帯",5,IF($AU$5="７割軽減世帯",7,""))))/10,0))) ->  | CF80: =IF($DH80="","",SUM($AP80)) ->  | CM80: =IF($DH80="","",SUM($AW80)-SUM($BR80)) ->  | CT80: =IF(SUM(CF80:CS80)=0,"",SUM(CF80:CS80)) ->  | DH80: =IF(GE80="","",SUM(GE80)) ->  | DP80: =IF($DH80="","",ROUNDDOWN(SUM($CF80)*SUM($DH80)/12,0)) ->  | DW80: =IF($DH80="","",ROUNDDOWN(SUM($CM80)*SUM($DH80)/12,0)) ->  | EU80: =IF(MC13="","",IF(AND(MC13>=40,MC13<65),IF(HJ34="○","○",""),"")) ->  | EX80: =IF(MF13="","",IF(AND(MF13>=40,MF13<65),IF(HM34="○","○",""),"")) ->  | FA80: =IF(MI13="","",IF(AND(MI13>=40,MI13<65),IF(HP34="○","○",""),"")) ->  | FD80: =IF(ML13="","",IF(AND(ML13>=40,ML13<65),IF(HS34="○","○",""),"")) ->  | FG80: =IF(MO13="","",IF(AND(MO13>=40,MO13<65),IF(HV34="○","○",""),"")) ->  | FJ80: =IF(MR13="","",IF(AND(MR13>=40,MR13<65),IF(HY34="○","○",""),"")) ->  | FM80: =IF(MU13="","",IF(AND(MU13>=40,MU13<65),IF(IB34="○","○",""),"")) ->  | FP80: =IF(MX13="","",IF(AND(MX13>=40,MX13<65),IF(IE34="○","○",""),"")) ->  | FS80: =IF(NA13="","",IF(AND(NA13>=40,NA13<65),IF(IH34="○","○",""),"")) ->  | FV80: =IF(ND13="","",IF(AND(ND13>=40,ND13<65),IF(IK34="○","○",""),"")) ->  | FY80: =IF(NG13="","",IF(AND(NG13>=40,NG13<65),IF(IN34="○","○",""),"")) ->  | GB80: =IF(NJ13="","",IF(AND(NJ13>=40,NJ13<65),IF(IQ34="○","○",""),"")) ->  | GE80: =IF(COUNTIF(EU80:GD80,"○")=0,"",COUNTIF(EU80:GD80,"○")) ->  | GI80: =IF(AND(SUM(GE13)<>0,SUM(GE80)=0),"介護該当なし。",IF(AND(COUNTIF(MC13:NL13,">=40")>0,COUNTIF(MC13:NL13,">=40")<12),"年度途中から介護保険料該当。",IF(SUM(GE13)=SUM(GE80),"","年度途中から介護保険料は別に納める。"))) -> 
B81: 2 | AB81: =IF($DH81="","",IF($U81="","",基礎控除!H4)) ->  | DH81: =IF(GE81="","",SUM(GE81)) ->  | EU81: =IF(MC14="","",IF(AND(MC14>=40,MC14<65),IF(HJ35="○","○",""),"")) ->  | EX81: =IF(MF14="","",IF(AND(MF14>=40,MF14<65),IF(HM35="○","○",""),"")) ->  | FA81: =IF(MI14="","",IF(AND(MI14>=40,MI14<65),IF(HP35="○","○",""),"")) ->  | FD81: =IF(ML14="","",IF(AND(ML14>=40,ML14<65),IF(HS35="○","○",""),"")) ->  | FG81: =IF(MO14="","",IF(AND(MO14>=40,MO14<65),IF(HV35="○","○",""),"")) ->  | FJ81: =IF(MR14="","",IF(AND(MR14>=40,MR14<65),IF(HY35="○","○",""),"")) ->  | FM81: =IF(MU14="","",IF(AND(MU14>=40,MU14<65),IF(IB35="○","○",""),"")) ->  | FP81: =IF(MX14="","",IF(AND(MX14>=40,MX14<65),IF(IE35="○","○",""),"")) ->  | FS81: =IF(NA14="","",IF(AND(NA14>=40,NA14<65),IF(IH35="○","○",""),"")) ->  | FV81: =IF(ND14="","",IF(AND(ND14>=40,ND14<65),IF(IK35="○","○",""),"")) ->  | FY81: =IF(NG14="","",IF(AND(NG14>=40,NG14<65),IF(IN35="○","○",""),"")) ->  | GB81: =IF(NJ14="","",IF(AND(NJ14>=40,NJ14<65),IF(IQ35="○","○",""),"")) ->  | GE81: =IF(COUNTIF(EU81:GD81,"○")=0,"",COUNTIF(EU81:GD81,"○")) -> 
B82: 3 | AB82: =IF($DH82="","",IF($U82="","",基礎控除!H5)) ->  | DH82: =IF(GE82="","",SUM(GE82)) ->  | EU82: =IF(MC15="","",IF(AND(MC15>=40,MC15<65),IF(HJ36="○","○",""),"")) ->  | EX82: =IF(MF15="","",IF(AND(MF15>=40,MF15<65),IF(HM36="○","○",""),"")) ->  | FA82: =IF(MI15="","",IF(AND(MI15>=40,MI15<65),IF(HP36="○","○",""),"")) ->  | FD82: =IF(ML15="","",IF(AND(ML15>=40,ML15<65),IF(HS36="○","○",""),"")) ->  | FG82: =IF(MO15="","",IF(AND(MO15>=40,MO15<65),IF(HV36="○","○",""),"")) ->  | FJ82: =IF(MR15="","",IF(AND(MR15>=40,MR15<65),IF(HY36="○","○",""),"")) ->  | FM82: =IF(MU15="","",IF(AND(MU15>=40,MU15<65),IF(IB36="○","○",""),"")) ->  | FP82: =IF(MX15="","",IF(AND(MX15>=40,MX15<65),IF(IE36="○","○",""),"")) ->  | FS82: =IF(NA15="","",IF(AND(NA15>=40,NA15<65),IF(IH36="○","○",""),"")) ->  | FV82: =IF(ND15="","",IF(AND(ND15>=40,ND15<65),IF(IK36="○","○",""),"")) ->  | FY82: =IF(NG15="","",IF(AND(NG15>=40,NG15<65),IF(IN36="○","○",""),"")) ->  | GB82: =IF(NJ15="","",IF(AND(NJ15>=40,NJ15<65),IF(IQ36="○","○",""),"")) ->  | GE82: =IF(COUNTIF(EU82:GD82,"○")=0,"",COUNTIF(EU82:GD82,"○")) -> 
B83: 4 | AB83: =IF($DH83="","",IF($U83="","",基礎控除!H6)) -> 
B84: 5 | AB84: =IF($DH84="","",IF($U84="","",基礎控除!H7)) -> 
B85: 6 | AB85: =IF($DH85="","",IF($U85="","",基礎控除!H8)) -> 
B86: 7 | AB86: =IF($DH86="","",IF($U86="","",基礎控除!H9)) -> 
B87: 8 | AB87: =IF($DH87="","",IF($U87="","",基礎控除!H10)) -> 
B88: 9 | AB88: =IF($DH88="","",IF($U88="","",基礎控除!H11)) -> 
B89: 10 | AB89: =IF($DH89="","",IF($U89="","",基礎控除!H12)) -> 
D90: 合計 | U90: =SUM(U80:AA89) -> 0 | AB90: ********* | AI90: =SUM(AI80:AO89) -> 0 | AP90: =SUM(AP80:AV89) -> 0 | AW90: =SUM(AW80:BC89) -> 0 | BD90: =SUM(BD80:BJ89) -> 0 | BR90: =SUM(BR80:BX89) -> 0 | CF90: =SUM(CF80:CL89) -> 0 | CM90: =SUM(CM80:CS89) -> 0 | CT90: =SUM(CT80:CZ89) -> 0 | DP90: =SUM(DP80:DV89) -> 0 | DW90: =SUM(DW80:EC89) -> 0 | EU90: =SUMPRODUCT((EU80:EU89="○")*1) -> 0 | EX90: =SUMPRODUCT((EX80:EX89="○")*1) -> 0 | FA90: =SUMPRODUCT((FA80:FA89="○")*1) -> 0 | FD90: =SUMPRODUCT((FD80:FD89="○")*1) -> 0 | FG90: =SUMPRODUCT((FG80:FG89="○")*1) -> 0 | FJ90: =SUMPRODUCT((FJ80:FJ89="○")*1) -> 0 | FM90: =SUMPRODUCT((FM80:FM89="○")*1) -> 0 | FP90: =SUMPRODUCT((FP80:FP89="○")*1) -> 0 | FS90: =SUMPRODUCT((FS80:FS89="○")*1) -> 0 | FV90: =SUMPRODUCT((FV80:FV89="○")*1) -> 0 | FY90: =SUMPRODUCT((FY80:FY89="○")*1) -> 0 | GB90: =SUMPRODUCT((GB80:GB89="○")*1) -> 0 | GE90: ***
BK91: =IF(ROUNDDOWN(SUM(BD90:BQ90),-2)>SUM($U$75),SUM($U$75),ROUNDDOWN(SUM(BD90:BQ90),-2)) -> 0 | CZ91: 合計（Ａ＋Ｂ＋Ｃ）→ | DA91: =SUM(CT90:DG90) -> 0 | EC91: 合計（Ａ＋Ｂ＋Ｃ）→ | ED91: =SUM(DP90:EJ90) -> 0
CZ92: Ｄ 限度額以下（百円未満切捨て）→ | DA92: =IF(ROUNDDOWN(SUM(DA91),-2)>SUM($U$75),SUM($U$75),ROUNDDOWN(SUM(DA91),-2)) -> 0 | EC92: Ｄ 限度額以下（百円未満切捨て）→ | ED92: =IF(ROUNDDOWN(SUM(ED91),-2)>SUM($U$75),SUM($U$75),ROUNDDOWN(SUM(ED91),-2)) -> 0
CZ93: 限度超過額→ | DA93: =IF(ROUNDDOWN(SUM(DA91),-2)>SUM(DA92),SUM(DA91)-SUM(DA92),0) -> 0 | EC93: 限度超過額→ | ED93: =IF(ROUNDDOWN(SUM(ED91),-2)>SUM(ED92),SUM(ED91)-SUM(ED92),0) -> 0
B95: 子ども子育て 支援納付金分 | K95: 所得割 | P95: 率 | U95: 0.31 | AA95: ="（前年の総所得金額－基礎控除額）×"&IF(U95="","",U95)&"％" -> （前年の総所得金額－基礎控除額）×0.31％
P96: 控除額 | U96: 基礎控除
K97: 均等割 | U97: 1600 | AA97: ←１人当たり
K98: 18歳以上均等割 | U98: 100 | AA98: ←１人当たり
K99: 限度額 | U99: 30000
BR100: =IF($AU$5="","",$AU$5) -> 
D101: 該当者 | U101: 課税総所得金額 | AP101: 算出額（全体） | BR101: 軽減額(2･5･7割額) | CF101: 軽減後(2･5･7割後) | DH101: 月数 | DP101: 月割後
D102: 氏 名 | K102: 生年月日 | R102: 年齢 | U102: ① | AB102: ② | AI102: ③（①－②） | AP102: ="④(③×"&DBCS(U95)&"%)" -> ④(③×０．３１%) | AW102: ⑤ | BD102: ④＋⑤ | BK102: ⑥ | BR102: ⑦ | BY102: ⑧ | CF102: Ａ＝④ | CM102: Ｂ＝⑤－⑦ | CT102: Ａ＋Ｂ | DA102: Ｃ＝⑥－⑧ | DH102: 該当 月数 | DL102: 世帯 月数 | DP102: 所得割 | DW102: 均等割 | ED102: 18歳以上均等割
U103: 総所得金額 | AB103: 控除額 | AI103: 課税所得 | AP103: 所得割 | AW103: 均等割 | BD103: 合 計 | BK103: 18歳以上均等割 | BR103: 均等割 | BY103: 18歳以上均等割 | CF103: 所得割 | CM103: 均等割 | CT103: 合 計 | DA103: 18歳以上均等割 | EU103: 4 | EX103: 5 | FA103: 6 | FD103: 7 | FG103: 8 | FJ103: 9 | FM103: 10 | FP103: 11 | FS103: 12 | FV103: 1 | FY103: 2 | GB103: 3 | GE103: 月数計 | GI103: 備考
B104: 1 | D104: =IF($DH104="","",$D13) ->  | K104: =IF($DH104="","",IF($K13="","",SUM($K13))) ->  | R104: =IF($DH104="","",IF($R13="","",SUM($R13))) ->  | U104: =IF($DH104="","",IF($DC13="","",SUM($DC13))) ->  | AB104: =IF($DH104="","",IF($U104="","",基礎控除!H3)) ->  | AI104: =IF($DH104="","",IF($U104="","",IF(SUM($U104)>SUM($AB104),SUM($U104)-SUM($AB104),0))) ->  | AP104: =IF($DH104="","",ROUNDDOWN(SUM(AI104)*SUM($U$95)/100,0)) ->  | AW104: =IF($DH104="","",SUM($U$97)) ->  | BD104: =IF(SUM(AP104:BC104)=0,"",SUM(AP104:BC104)) ->  | BK104: =IF(OR($DH104="",$EK104<>""),"",SUM($U$98)) ->  | BR104: =IF($AU$5="","",IF($DH104="","",ROUNDDOWN(SUM($U$97)*SUM(IF($AU$5="２割軽減世帯",2,IF($AU$5="５割軽減世帯",5,IF($AU$5="７割軽減世帯",7,""))))/10,0))) ->  | BY104: =IF($AU$5="","",IF($DH104="","",ROUNDDOWN(SUM($U$98)*SUM(IF($AU$5="２割軽減世帯",2,IF($AU$5="５割軽減世帯",5,IF($AU$5="７割軽減世帯",7,""))))/10,0))) ->  | CF104: =IF($DH104="","",SUM($AP104)) ->  | CM104: =IF($DH104="","",SUM($AW104)-SUM($BR104)) ->  | CT104: =IF(SUM(CF104:CS104)=0,"",SUM(CF104:CS104)) ->  | DA104: =IF($DH104="","",SUM($BK104)-SUM($BY104)) ->  | DH104: =IF(GE104="","",SUM(GE104)) ->  | DP104: =IF($DH104="","",ROUNDDOWN(SUM($CF104)*SUM($DH104)/12,0)) ->  | DW104: =IF($DH104="","",IF(未就学児!G6="",IF(未就学児!F6="",ROUNDDOWN(SUM($CM104)*SUM($DH104)/12,0),(ROUNDDOWN(SUM($CM104)*SUM($DH104)/12,0))*0.5),"")) ->  | ED104: =IF($DH104="","",IF(未就学児!G6="",ROUNDDOWN(SUM($DA104)*SUM($DH104)/12,0),"")) ->  | EK104: =IF(未就学児!$F6=1,"←未就学児",IF(未就学児!$G6=1,"←18歳未満","")) ->  | EU104: =IF(NZ13="","",IF(NZ13<75,IF(HJ34="○","○",""),"")) ->  | EX104: =IF(OC13="","",IF(OC13<75,IF(HM34="○","○",""),"")) ->  | FA104: =IF(OF13="","",IF(OF13<75,IF(HP34="○","○",""),"")) ->  | FD104: =IF(OI13="","",IF(OI13<75,IF(HS34="○","○",""),"")) ->  | FG104: =IF(OL13="","",IF(OL13<75,IF(HV34="○","○",""),"")) ->  | FJ104: =IF(OO13="","",IF(OO13<75,IF(HY34="○","○",""),"")) ->  | FM104: =IF(OR13="","",IF(OR13<75,IF(IB34="○","○",""),"")) ->  | FP104: =IF(OU13="","",IF(OU13<75,IF(IE34="○","○",""),"")) ->  | FS104: =IF(OX13="","",IF(OX13<75,IF(IH34="○","○",""),"")) ->  | FV104: =IF(PA13="","",IF(PA13<75,IF(IK34="○","○",""),"")) ->  | FY104: =IF(PD13="","",IF(PD13<75,IF(IN34="○","○",""),"")) ->  | GB104: =IF(PG13="","",IF(PG13<75,IF(IQ34="○","○",""),"")) ->  | GE104: =IF(COUNTIF(EU104:GD104,"○")=0,"",COUNTIF(EU104:GD104,"○")) ->  | GI104: =IF(SUM(PJ13)=12,"国保に該当しない。",IF(OR(SUM(GE13)=SUM(PN13),SUM(PJ13)=0),"","年度途中から後期高齢者医療制度移行あり。")) -> 
B105: 2 | AB105: =IF($DH105="","",IF($U105="","",基礎控除!H4)) ->  | BD105: =IF(SUM(AP105:BC105)=0,"",SUM(AP105:BC105)) ->  | BY105: =IF($AU$5="","",IF($DH105="","",ROUNDDOWN(SUM($U$98)*SUM(IF($AU$5="２割軽減世帯",2,IF($AU$5="５割軽減世帯",5,IF($AU$5="７割軽減世帯",7,""))))/10,0))) ->  | CT105: =IF(SUM(CF105:CS105)=0,"",SUM(CF105:CS105)) ->  | DA105: =IF($DH105="","",SUM($BK105)-SUM($BY105)) ->  | DW105: =IF($DH105="","",IF(未就学児!G7="",IF(未就学児!F7="",ROUNDDOWN(SUM($CM105)*SUM($DH105)/12,0),(ROUNDDOWN(SUM($CM105)*SUM($DH105)/12,0))*0.5),"")) ->  | ED105: =IF($DH105="","",IF(未就学児!G7="",ROUNDDOWN(SUM($DA105)*SUM($DH105)/12,0),"")) ->  | EK105: =IF(未就学児!$F7=1,"←未就学児",IF(未就学児!$G7=1,"←18歳未満","")) -> 
B106: 3 | AB106: =IF($DH106="","",IF($U106="","",基礎控除!H5)) ->  | DW106: =IF($DH106="","",IF(未就学児!G8="",IF(未就学児!F8="",ROUNDDOWN(SUM($CM106)*SUM($DH106)/12,0),(ROUNDDOWN(SUM($CM106)*SUM($DH106)/12,0))*0.5),"")) ->  | ED106: =IF($DH106="","",IF(未就学児!G8="",ROUNDDOWN(SUM($DA106)*SUM($DH106)/12,0),"")) ->  | EK106: =IF(未就学児!$F8=1,"←未就学児",IF(未就学児!$G8=1,"←18歳未満","")) -> 
B107: 4 | AB107: =IF($DH107="","",IF($U107="","",基礎控除!H6)) ->  | DW107: =IF($DH107="","",IF(未就学児!G9="",IF(未就学児!F9="",ROUNDDOWN(SUM($CM107)*SUM($DH107)/12,0),(ROUNDDOWN(SUM($CM107)*SUM($DH107)/12,0))*0.5),"")) ->  | ED107: =IF($DH107="","",IF(未就学児!G9="",ROUNDDOWN(SUM($DA107)*SUM($DH107)/12,0),"")) ->  | EK107: =IF(未就学児!$F9=1,"←未就学児",IF(未就学児!$G9=1,"←18歳未満","")) -> 
B108: 5 | AB108: =IF($DH108="","",IF($U108="","",基礎控除!H7)) ->  | DW108: =IF($DH108="","",IF(未就学児!G10="",IF(未就学児!F10="",ROUNDDOWN(SUM($CM108)*SUM($DH108)/12,0),(ROUNDDOWN(SUM($CM108)*SUM($DH108)/12,0))*0.5),"")) ->  | ED108: =IF($DH108="","",IF(未就学児!G10="",ROUNDDOWN(SUM($DA108)*SUM($DH108)/12,0),"")) ->  | EK108: =IF(未就学児!$F10=1,"←未就学児",IF(未就学児!$G10=1,"←18歳未満","")) -> 
B109: 6 | AB109: =IF($DH109="","",IF($U109="","",基礎控除!H8)) ->  | DW109: =IF($DH109="","",IF(未就学児!G11="",IF(未就学児!F11="",ROUNDDOWN(SUM($CM109)*SUM($DH109)/12,0),(ROUNDDOWN(SUM($CM109)*SUM($DH109)/12,0))*0.5),"")) ->  | ED109: =IF($DH109="","",IF(未就学児!G11="",ROUNDDOWN(SUM($DA109)*SUM($DH109)/12,0),"")) ->  | EK109: =IF(未就学児!$F11=1,"←未就学児",IF(未就学児!$G11=1,"←18歳未満","")) -> 
B110: 7 | AB110: =IF($DH110="","",IF($U110="","",基礎控除!H9)) ->  | DW110: =IF($DH110="","",IF(未就学児!G12="",IF(未就学児!F12="",ROUNDDOWN(SUM($CM110)*SUM($DH110)/12,0),(ROUNDDOWN(SUM($CM110)*SUM($DH110)/12,0))*0.5),"")) ->  | ED110: =IF($DH110="","",IF(未就学児!G12="",ROUNDDOWN(SUM($DA110)*SUM($DH110)/12,0),"")) ->  | EK110: =IF(未就学児!$F12=1,"←未就学児",IF(未就学児!$G12=1,"←18歳未満","")) -> 
B111: 8 | AB111: =IF($DH111="","",IF($U111="","",基礎控除!H10)) ->  | DW111: =IF($DH111="","",IF(未就学児!G13="",IF(未就学児!F13="",ROUNDDOWN(SUM($CM111)*SUM($DH111)/12,0),(ROUNDDOWN(SUM($CM111)*SUM($DH111)/12,0))*0.5),"")) ->  | ED111: =IF($DH111="","",IF(未就学児!G13="",ROUNDDOWN(SUM($DA111)*SUM($DH111)/12,0),"")) ->  | EK111: =IF(未就学児!$F13=1,"←未就学児",IF(未就学児!$G13=1,"←18歳未満","")) -> 
B112: 9 | AB112: =IF($DH112="","",IF($U112="","",基礎控除!H11)) ->  | DW112: =IF($DH112="","",IF(未就学児!G14="",IF(未就学児!F14="",ROUNDDOWN(SUM($CM112)*SUM($DH112)/12,0),(ROUNDDOWN(SUM($CM112)*SUM($DH112)/12,0))*0.5),"")) ->  | ED112: =IF($DH112="","",IF(未就学児!G14="",ROUNDDOWN(SUM($DA112)*SUM($DH112)/12,0),"")) ->  | EK112: =IF(未就学児!$F14=1,"←未就学児",IF(未就学児!$G14=1,"←18歳未満","")) -> 
B113: 10 | AB113: =IF($DH113="","",IF($U113="","",基礎控除!H12)) ->  | DW113: =IF($DH113="","",IF(未就学児!G15="",IF(未就学児!F15="",ROUNDDOWN(SUM($CM113)*SUM($DH113)/12,0),(ROUNDDOWN(SUM($CM113)*SUM($DH113)/12,0))*0.5),"")) ->  | ED113: =IF($DH113="","",IF(未就学児!G15="",ROUNDDOWN(SUM($DA113)*SUM($DH113)/12,0),"")) ->  | EK113: =IF(未就学児!$F15=1,"←未就学児",IF(未就学児!$G15=1,"←18歳未満","")) -> 
D114: 合計 | U114: =SUM(U104:AA113) -> 0 | AB114: ********* | AI114: =SUM(AI104:AO113) -> 0 | AP114: =SUM(AP104:AV113) -> 0 | AW114: =SUM(AW104:BC113) -> 0 | BD114: =SUM(BD104:BJ113) -> 0 | BK114: =SUM(BK104:BQ113) -> 0 | BR114: =SUM(BR104:BX113) -> 0 | BY114: =SUM(BY104:CE113) -> 0 | CF114: =SUM(CF104:CL113) -> 0 | CM114: =SUM(CM104:CS113) -> 0 | CT114: =SUM(CT104:CZ113) -> 0 | DA114: =SUM(DA104:DG113) -> 0 | DP114: =SUM(DP104:DV113) -> 0 | DW114: =SUM(DW104:EC113) -> 0 | ED114: =SUM(ED104:EJ113) -> 0 | EU114: =SUMPRODUCT((EU104:EW113="○")*1) -> 0 | EX114: =SUMPRODUCT((EX104:EZ113="○")*1) -> 0 | FA114: =SUMPRODUCT((FA104:FC113="○")*1) -> 0 | FD114: =SUMPRODUCT((FD104:FF113="○")*1) -> 0 | FG114: =SUMPRODUCT((FG104:FI113="○")*1) -> 0 | FJ114: =SUMPRODUCT((FJ104:FL113="○")*1) -> 0 | FM114: =SUMPRODUCT((FM104:FO113="○")*1) -> 0 | FP114: =SUMPRODUCT((FP104:FR113="○")*1) -> 0 | FS114: =SUMPRODUCT((FS104:FU113="○")*1) -> 0 | FV114: =SUMPRODUCT((FV104:FX113="○")*1) -> 0 | FY114: =SUMPRODUCT((FY104:GA113="○")*1) -> 0 | GB114: =SUMPRODUCT((GB104:GD113="○")*1) -> 0 | GE114: ***
BK115: =IF(ROUNDDOWN(SUM(BD114:BQ114),-2)>SUM($U$29),SUM($U$29),ROUNDDOWN(SUM(BD114:BQ114),-2)) -> 0 | CZ115: 合計（Ａ＋Ｂ＋Ｃ）→ | DA115: =SUM(CT114:DG114) -> 0 | EC115: 合計（Ａ＋Ｂ＋Ｃ）→ | ED115: =SUM(DP114:EJ114) -> 0
CZ116: Ｄ 限度額以下（百円未満切捨て）→ | DA116: =IF(ROUNDDOWN(SUM(DA115),-2)>SUM($U$99),SUM($U$99),ROUNDDOWN(SUM(DA115),-2)) -> 0 | EC116: Ｄ 限度額以下（百円未満切捨て）→ | ED116: =IF(ROUNDDOWN(SUM(ED115),-2)>SUM($U$99),SUM($U$99),ROUNDDOWN(SUM(ED115),-2)) -> 0
CZ117: 限度超過額→ | DA117: =IF(ROUNDDOWN(SUM(DA115),-2)>SUM(DA116),SUM(DA115)-SUM(DA116),0) -> 0 | EC117: 限度超過額→ | ED117: =IF(ROUNDDOWN(SUM(ED115),-2)>SUM(ED116),SUM(ED115)-SUM(ED116),0) -> 0
B119: 個人別明細
R121: 税率等 | U121: 医療保険分 | BA121: 後期高齢者支援金分 | BY121: 介護保険分 | CW121: 子ども・子育て支援金分 | EC121: 課税限度額
U122: 所得割 | AC122: 均等割 | AK122: 平等割 | AS122: 限度額 | BA122: 所得割 | BI122: 均等割 | BQ122: 限度額 | BY122: 所得割 | CG122: 均等割 | CO122: 限度額 | CW122: 所得割 | DE122: 均等割 | DM122: 18歳以上均等割 | DU122: 限度額
U123: =+IF(U25="","",U25&"％") -> 7.77％ | AC123: =+IF(U27="","",TEXT(U27,"#,###")) -> 23,500 | AK123: =+IF(U28="","",TEXT(U28,"#,###")) -> 27,800 | AS123: =+IF(U29="","",TEXT(U29,"#,###")) -> 670,000 | BA123: =+IF(U49="","",U49&"％") -> 3.02％ | BI123: =+IF(U51="","",TEXT(U51,"#,###")) -> 15,600 | BQ123: =+IF(U52="","",TEXT(U52,"#,###")) -> 260,000 | BY123: =+IF(U72="","",U72&"％") -> 2.57％ | CG123: =+IF(U74="","",TEXT(U74,"#,###")) -> 18,000 | CO123: =+IF(U75="","",TEXT(U75,"#,###")) -> 170,000 | CW123: =+IF(U95="","",U95&"％") -> 0.31％ | DE123: =+IF(U97="","",TEXT(U97,"#,###")) -> 1,600 | DM123: =+IF(U98="","",TEXT(U98,"#,###")) -> 100 | DU123: =+IF(U99="","",TEXT(U99,"#,###")) -> 30,000 | EC123: =+TEXT(U29+U52+U75+U99,"#,###") -> 1,130,000
D125: 該当者 | U125: 医療保険分 | BA125: 後期高齢者支援金分 | BY125: 介護保険分 | CW125: 子ども・子育て支援金分 | EC125: 合計
D126: 氏 名 | K126: 生年月日 | R126: 年齢 | U126: 所得割 | AC126: 均等割 | AK126: 平等割 | AS126: 計 | BA126: 所得割 | BI126: 均等割 | BQ126: 計 | BY126: 所得割 | CG126: 均等割 | CO126: 計 | CW126: 所得割 | DE126: 均等割 | DM126: 18歳以上 均等割 | DU126: 計
B128: 1 | D128: =IF($D13="","",$D13) ->  | K128: =+IF($K13="","",$K13) ->  | R128: =IF($R13="","",$R13) ->  | U128: =IF($DP34="","",$DP34) ->  | AC128: =IF($DW34="","",$DW34) ->  | AS128: =+IF(AND(U128="",AC128=""),"",SUM(U128:AR128)) ->  | BA128: =IF($DP57="","",$DP57) ->  | BI128: =IF($DW57="","",$DW57) ->  | BQ128: =+IF(AND(BA128="",BI128=""),"",SUM(BA128:BP128)) ->  | BY128: =IF($DP80="","",$DP80) ->  | CG128: =IF($DW80="","",$DW80) ->  | CO128: =+IF(AND(BY128="",CG128=""),"",SUM(BY128:CN128)) ->  | CW128: =IF($DP104="","",$DP104) ->  | DE128: =IF($DW104="","",$DW104) ->  | DM128: =IF($ED104="","",$ED104) ->  | DU128: =+IF(AND(CW128="",DE128="",DM128=""),"",SUM(CW128:DT128)) ->  | EC128: =+IF(AND(AS128="",BQ128="",CO128="",DU128=""),"",SUM(AS128,BQ128,CO128,DU128)) -> 
B129: 2 | AS129: =+IF(AND(U129="",AC129=""),"",SUM(U129:AC129)) ->  | BQ129: =+IF(AND(BA129="",BI129=""),"",SUM(BA129:BP129)) ->  | CO129: =+IF(AND(BY129="",CG129=""),"",SUM(BY129:CN129)) ->  | DU129: =+IF(AND(CW129="",DE129="",DM129=""),"",SUM(CW129:DT129)) ->  | EC129: =+IF(AND(AS129="",BQ129="",CO129="",DU129=""),"",SUM(AS129,BQ129,CO129,DU129)) -> 
B130: 3
B131: 4
B132: 5
B133: 6
B134: 7
B135: 8
B136: 9
B137: 10
D138: 合計 | U138: =+SUM(U128:AB137) -> 0 | AC138: =+SUM(AC128:AJ137) -> 0 | AK138: =IF($ED34="","",$ED34) ->  | AS138: =+SUM(U138:AR138) -> 0 | BA138: =+SUM(BA128:BH137) -> 0 | BI138: =+SUM(BI128:BP137) -> 0 | BQ138: =+SUM(BA138:BP138) -> 0 | BY138: =+SUM(BY128:CF137) -> 0 | CG138: =+SUM(CG128:CN137) -> 0 | CO138: =+SUM(BY138:CN138) -> 0 | CW138: =+SUM(CW128:DD137) -> 0 | DE138: =+SUM(DE128:DL137) -> 0 | DM138: =+SUM(DM128:DT137) -> 0 | DU138: =+SUM(CW138:DT138) -> 0 | EC138: =+SUM(AS138,BQ138,CO138,DU138) -> 0
AR139: 調整後の額→ | AS139: =+ED46 -> 0 | BP139: 調整後の額→ | BQ139: =+ED69 -> 0 | CN139: 調整後の額→ | CO139: =+ED92 -> 0 | DT139: 調整後の額→ | DU139: =+ED116 -> 0 | EC139: =+SUM(AS139,BQ139,CO139,DU139) -> 0
D147: ="令和"&DBCS(基本項目!$B$3)&"年度 国民健康保険税 簡易計算（概算）" -> 令和８年度 国民健康保険税 簡易計算（概算）
D149: 医療保険分 | Z149: 後期高齢者 支援金分 | AV149: 介護保険分 | BR149: 子ども・子育て 支援納付金分 | CN149: 合計 | DK149: 試算した結果は、実際の保険料額を保証するものではございません。 参考としてご利用ください。
D153: =SUM(入力!ED46) -> 0 | Z153: =SUM(入力!ED69) -> 0 | AV153: =SUM(入力!ED92) -> 0 | BR153: =SUM(入力!ED116) -> 0 | CN153: =SUM(D153:CM154) -> 0
D156: 納期 | P156: 保険税 | AG156: 納期限 | BG156: 納期 | BS156: 保険税 | CJ156: 納期限
D158: 第１期 | P158: =IF(印刷用【簡易版】!BL4="","",印刷用【簡易版】!BL4) ->  | AG158: =IF(印刷用【簡易版】!BX4="","",印刷用【簡易版】!BX4) ->  | BG158: 第６期 | BS158: =IF(印刷用【簡易版】!BL9="","",印刷用【簡易版】!BL9) ->  | CJ158: =IF(印刷用【簡易版】!BX9="","",印刷用【簡易版】!BX9) -> 
D160: 第２期 | P160: =IF(印刷用【簡易版】!BL5="","",印刷用【簡易版】!BL5) ->  | AG160: =IF(印刷用【簡易版】!BX5="","",印刷用【簡易版】!BX5) ->  | BG160: 第７期 | BS160: =IF(印刷用【簡易版】!CU4="","",印刷用【簡易版】!CU4) ->  | CJ160: =IF(印刷用【簡易版】!DG4="","",印刷用【簡易版】!DG4) -> 
D162: 第３期 | P162: =IF(印刷用【簡易版】!BL6="","",印刷用【簡易版】!BL6) ->  | AG162: =IF(印刷用【簡易版】!BX6="","",印刷用【簡易版】!BX6) ->  | BG162: 第８期 | BS162: =IF(印刷用【簡易版】!CU5="","",印刷用【簡易版】!CU5) ->  | CJ162: =IF(印刷用【簡易版】!DG5="","",印刷用【簡易版】!DG5) -> 
D164: 第４期 | P164: =IF(印刷用【簡易版】!BL7="","",印刷用【簡易版】!BL7) ->  | AG164: =IF(印刷用【簡易版】!BX7="","",印刷用【簡易版】!BX7) ->  | BG164: 随時期 | BS164: =IF(印刷用【簡易版】!CU6="","",印刷用【簡易版】!CU6) ->  | CJ164: =IF(印刷用【簡易版】!DG6="","",印刷用【簡易版】!DG6) -> 
D166: 第５期 | P166: =IF(印刷用【簡易版】!BL8="","",印刷用【簡易版】!BL8) ->  | AG166: =IF(印刷用【簡易版】!BX8="","",印刷用【簡易版】!BX8) ->  | BG166: 合 計 | BS166: =IF(AND(COUNT(P158:AF167,BS158:CI165)=0,SUM(P158:AF167,BS158:CI165)=0),"",SUM(P158:AF167,BS158:CI165)) -> 

Sheet 印刷用【簡易版】 (hidden)
B1: ="令和"&DBCS(基本項目!$B$3)&"年度 国民健康保険税 簡易計算（概算）" -> 令和８年度 国民健康保険税 簡易計算（概算）
C2: 《税率等》
D3: 区分 | Z3: 医療保険分 | AG3: 後期高齢者 支援金分 | AN3: 介護保険分 | AU3: 子ども子育て 支援納付金分 | BE3: 納期 | BL3: 保険税 | BX3: 納期限 | CN3: 納期 | CU3: 保険税 | DG3: 納期限
D4: 所得割(％) ※（前年の総所得金額－基礎控除額）×率 | Z4: =IF(入力!U25="","",入力!U25) -> 7.77 | AG4: =IF(入力!U49="","",入力!U49) -> 3.02 | AN4: =IF(入力!U72="","",入力!U72) -> 2.57 | AU4: =IF(入力!U95="","",入力!U95) -> 0.31 | BE4: 第１期 | BL4: =IF(基本項目!$M3="","",SUM(基本項目!$M3)) ->  | BX4: =IF($BL4="","",IF(基本項目!$H3="","",基本項目!$H3)) ->  | CN4: 第７期 | CU4: =IF(基本項目!$M9="","",SUM(基本項目!$M9)) ->  | DG4: =IF($CU4="","",IF(基本項目!$H9="","",基本項目!$H9)) -> 
D5: 均等割(円) ※１人当たり | Z5: =IF(入力!U27="","",入力!U27) -> 23500 | AG5: =IF(入力!U51="","",入力!U51) -> 15600 | AN5: =IF(入力!U74="","",入力!U74) -> 18000 | AU5: =IF(入力!U97="","",入力!U97) -> 1600 | BE5: 第２期 | BL5: =IF(基本項目!$M4="","",SUM(基本項目!$M4)) ->  | BX5: =IF($BL5="","",IF(基本項目!$H4="","",基本項目!$H4)) ->  | CN5: 第８期 | CU5: =IF(基本項目!$M10="","",SUM(基本項目!$M10)) ->  | DG5: =IF($CU5="","",IF(基本項目!$H10="","",基本項目!$H10)) -> 
D6: 18歳以上均等割(円) ※１人当たり | AU6: =IF(入力!U98="","",入力!U98) -> 100 | BE6: 第３期 | BL6: =IF(基本項目!$M5="","",SUM(基本項目!$M5)) ->  | BX6: =IF($BL6="","",IF(基本項目!$H5="","",基本項目!$H5)) ->  | CN6: 随時期 | CU6: =IF(基本項目!$M11="",IF(基本項目!$M12="","",SUM(基本項目!$M12)),SUM(基本項目!$M11)) ->  | DG6: =IF($CU6="","",IF(基本項目!$M11="",IF(基本項目!$M12="","",基本項目!$H12),基本項目!$H11)) -> 
D7: 平等割(円) ※１世帯当たり | Z7: =IF(入力!U28="","",入力!U28) -> 27800 | BE7: 第４期 | BL7: =IF(基本項目!$M6="","",SUM(基本項目!$M6)) ->  | BX7: =IF($BL7="","",IF(基本項目!$H6="","",基本項目!$H6)) -> 
D8: 限度額(円) | Z8: =IF(入力!U29="","",入力!U29) -> 670000 | AG8: =IF(入力!U52="","",入力!U52) -> 260000 | AN8: =IF(入力!U75="","",入力!U75) -> 170000 | AU8: =IF(入力!U99="","",入力!U99) -> 30000 | BE8: 第５期 | BL8: =IF(基本項目!$M7="","",SUM(基本項目!$M7)) ->  | BX8: =IF($BL8="","",IF(基本項目!$H7="","",基本項目!$H7)) -> 
D9: 限度額合計(円) | Z9: =SUM(Z8:BA8) -> 1130000 | BE9: 第６期 | BL9: =IF(基本項目!$M8="","",SUM(基本項目!$M8)) ->  | BX9: =IF($BL9="","",IF(基本項目!$H8="","",基本項目!$H8)) ->  | CN9: 合 計 | CU9: =IF(AND(COUNT(BL4:BW9,CU4:DF8)=0,SUM(BL4:BW9,CU4:DF8)=0),"",SUM(BL4:BW9,CU4:DF8)) -> 
C11: 《軽減及び月割後》
D12: 氏 名 | L12: 年齢 | P12: 医療保険分 | AO12: 後期高齢者支援金分 | BG12: 介護保険分 | BY12: 子ども・子育て支援納付金分 | CX12: 備考
P13: 月数 | T13: 所得割 | AA13: 均等割 | AH13: 平等割 | AO13: 月数 | AS13: 所得割 | AZ13: 均等割 | BG13: 月数 | BK13: 所得割 | BR13: 均等割 | BY13: 月数 | CC13: 所得割 | CJ13: 均等割 | CQ13: 18歳以上 均等割
B14: 1 | D14: =IF(入力!$D13="","",入力!$D13) ->  | L14: =IF(入力!$R13="","",入力!$R13) ->  | P14: =IF(入力!$DH34="","",入力!$DH34) ->  | T14: =IF(入力!$DP34="","",入力!$DP34) ->  | AA14: =IF(入力!$DW34="","",入力!$DW34) ->  | AH14: =IF(入力!$ED34="","",入力!$ED34) ->  | AO14: =IF(入力!$DH57="","",入力!$DH57) ->  | AS14: =IF(入力!$DP57="","",入力!$DP57) ->  | AZ14: =IF(入力!$DW57="","",入力!$DW57) ->  | BG14: =IF(入力!$DH80="","",入力!$DH80) ->  | BK14: =IF(入力!$DP80="","",入力!$DP80) ->  | BR14: =IF(入力!$DW80="","",入力!$DW80) ->  | BY14: =IF(入力!$DH104="","",入力!$DH104) ->  | CC14: =IF(入力!$DP104="","",入力!$DP104) ->  | CJ14: =IF(入力!$DW104="","",入力!$DW104) ->  | CQ14: =IF(入力!$ED104="","",入力!$ED104) ->  | CX14: =IF(入力!GI34="",IF(入力!GI80="","",入力!GI80),入力!GI34) -> 
B15: 2 | D15: =IF(入力!$D14="","",入力!$D14) ->  | L15: =IF(入力!$R14="","",入力!$R14) ->  | P15: =IF(入力!$DH35="","",入力!$DH35) ->  | T15: =IF(入力!$DP35="","",入力!$DP35) ->  | AA15: =IF(入力!$DW35="","",入力!$DW35) ->  | AO15: =IF(入力!$DH58="","",入力!$DH58) ->  | AS15: =IF(入力!$DP58="","",入力!$DP58) ->  | AZ15: =IF(入力!$DW58="","",入力!$DW58) ->  | BG15: =IF(入力!$DH81="","",入力!$DH81) ->  | BK15: =IF(入力!$DP81="","",入力!$DP81) ->  | BR15: =IF(入力!$DW81="","",入力!$DW81) ->  | BY15: =IF(入力!$DH105="","",入力!$DH105) ->  | CC15: =IF(入力!$DP105="","",入力!$DP105) ->  | CJ15: =IF(入力!$DW105="","",入力!$DW105) ->  | CQ15: =IF(入力!$ED105="","",入力!$ED105) ->  | CX15: =IF(入力!GI35="",IF(入力!GI81="","",入力!GI81),入力!GI35) -> 
B16: 3 | D16: =IF(入力!$D15="","",入力!$D15) ->  | L16: =IF(入力!$R15="","",入力!$R15) ->  | P16: =IF(入力!$DH36="","",入力!$DH36) ->  | T16: =IF(入力!$DP36="","",入力!$DP36) ->  | AA16: =IF(入力!$DW36="","",入力!$DW36) ->  | AO16: =IF(入力!$DH59="","",入力!$DH59) ->  | AS16: =IF(入力!$DP59="","",入力!$DP59) ->  | AZ16: =IF(入力!$DW59="","",入力!$DW59) ->  | BG16: =IF(入力!$DH82="","",入力!$DH82) ->  | BK16: =IF(入力!$DP82="","",入力!$DP82) ->  | BR16: =IF(入力!$DW82="","",入力!$DW82) ->  | BY16: =IF(入力!$DH106="","",入力!$DH106) ->  | CC16: =IF(入力!$DP106="","",入力!$DP106) ->  | CJ16: =IF(入力!$DW106="","",入力!$DW106) ->  | CQ16: =IF(入力!$ED106="","",入力!$ED106) ->  | CX16: =IF(入力!GI36="",IF(入力!GI82="","",入力!GI82),入力!GI36) -> 
B17: 4 | D17: =IF(入力!$D16="","",入力!$D16) ->  | L17: =IF(入力!$R16="","",入力!$R16) ->  | P17: =IF(入力!$DH37="","",入力!$DH37) ->  | T17: =IF(入力!$DP37="","",入力!$DP37) ->  | AA17: =IF(入力!$DW37="","",入力!$DW37) ->  | AO17: =IF(入力!$DH60="","",入力!$DH60) ->  | AS17: =IF(入力!$DP60="","",入力!$DP60) ->  | AZ17: =IF(入力!$DW60="","",入力!$DW60) ->  | BG17: =IF(入力!$DH83="","",入力!$DH83) ->  | BK17: =IF(入力!$DP83="","",入力!$DP83) ->  | BR17: =IF(入力!$DW83="","",入力!$DW83) ->  | BY17: =IF(入力!$DH107="","",入力!$DH107) ->  | CC17: =IF(入力!$DP107="","",入力!$DP107) ->  | CJ17: =IF(入力!$DW107="","",入力!$DW107) ->  | CQ17: =IF(入力!$ED107="","",入力!$ED107) ->  | CX17: =IF(入力!GI37="",IF(入力!GI83="","",入力!GI83),入力!GI37) -> 
B18: 5 | D18: =IF(入力!$D17="","",入力!$D17) ->  | L18: =IF(入力!$R17="","",入力!$R17) ->  | P18: =IF(入力!$DH38="","",入力!$DH38) ->  | T18: =IF(入力!$DP38="","",入力!$DP38) ->  | AA18: =IF(入力!$DW38="","",入力!$DW38) ->  | AO18: =IF(入力!$DH61="","",入力!$DH61) ->  | AS18: =IF(入力!$DP61="","",入力!$DP61) ->  | AZ18: =IF(入力!$DW61="","",入力!$DW61) ->  | BG18: =IF(入力!$DH84="","",入力!$DH84) ->  | BK18: =IF(入力!$DP84="","",入力!$DP84) ->  | BR18: =IF(入力!$DW84="","",入力!$DW84) ->  | BY18: =IF(入力!$DH108="","",入力!$DH108) ->  | CC18: =IF(入力!$DP108="","",入力!$DP108) ->  | CJ18: =IF(入力!$DW108="","",入力!$DW108) ->  | CQ18: =IF(入力!$ED108="","",入力!$ED108) ->  | CX18: =IF(入力!GI38="",IF(入力!GI84="","",入力!GI84),入力!GI38) -> 
B19: 6 | D19: =IF(入力!$D18="","",入力!$D18) ->  | L19: =IF(入力!$R18="","",入力!$R18) ->  | P19: =IF(入力!$DH39="","",入力!$DH39) ->  | T19: =IF(入力!$DP39="","",入力!$DP39) ->  | AA19: =IF(入力!$DW39="","",入力!$DW39) ->  | AO19: =IF(入力!$DH62="","",入力!$DH62) ->  | AS19: =IF(入力!$DP62="","",入力!$DP62) ->  | AZ19: =IF(入力!$DW62="","",入力!$DW62) ->  | BG19: =IF(入力!$DH85="","",入力!$DH85) ->  | BK19: =IF(入力!$DP85="","",入力!$DP85) ->  | BR19: =IF(入力!$DW85="","",入力!$DW85) ->  | BY19: =IF(入力!$DH109="","",入力!$DH109) ->  | CC19: =IF(入力!$DP109="","",入力!$DP109) ->  | CJ19: =IF(入力!$DW109="","",入力!$DW109) ->  | CQ19: =IF(入力!$ED109="","",入力!$ED109) ->  | CX19: =IF(入力!GI39="",IF(入力!GI85="","",入力!GI85),入力!GI39) -> 
B20: 7 | D20: =IF(入力!$D19="","",入力!$D19) ->  | L20: =IF(入力!$R19="","",入力!$R19) ->  | P20: =IF(入力!$DH40="","",入力!$DH40) ->  | T20: =IF(入力!$DP40="","",入力!$DP40) ->  | AA20: =IF(入力!$DW40="","",入力!$DW40) ->  | AO20: =IF(入力!$DH63="","",入力!$DH63) ->  | AS20: =IF(入力!$DP63="","",入力!$DP63) ->  | AZ20: =IF(入力!$DW63="","",入力!$DW63) ->  | BG20: =IF(入力!$DH86="","",入力!$DH86) ->  | BK20: =IF(入力!$DP86="","",入力!$DP86) ->  | BR20: =IF(入力!$DW86="","",入力!$DW86) ->  | BY20: =IF(入力!$DH110="","",入力!$DH110) ->  | CC20: =IF(入力!$DP110="","",入力!$DP110) ->  | CJ20: =IF(入力!$DW110="","",入力!$DW110) ->  | CQ20: =IF(入力!$ED110="","",入力!$ED110) ->  | CX20: =IF(入力!GI40="",IF(入力!GI86="","",入力!GI86),入力!GI40) -> 
B21: 8 | D21: =IF(入力!$D20="","",入力!$D20) ->  | L21: =IF(入力!$R20="","",入力!$R20) ->  | P21: =IF(入力!$DH41="","",入力!$DH41) ->  | T21: =IF(入力!$DP41="","",入力!$DP41) ->  | AA21: =IF(入力!$DW41="","",入力!$DW41) ->  | AO21: =IF(入力!$DH64="","",入力!$DH64) ->  | AS21: =IF(入力!$DP64="","",入力!$DP64) ->  | AZ21: =IF(入力!$DW64="","",入力!$DW64) ->  | BG21: =IF(入力!$DH87="","",入力!$DH87) ->  | BK21: =IF(入力!$DP87="","",入力!$DP87) ->  | BR21: =IF(入力!$DW87="","",入力!$DW87) ->  | BY21: =IF(入力!$DH111="","",入力!$DH111) ->  | CC21: =IF(入力!$DP111="","",入力!$DP111) ->  | CJ21: =IF(入力!$DW111="","",入力!$DW111) ->  | CQ21: =IF(入力!$ED111="","",入力!$ED111) ->  | CX21: =IF(入力!GI41="",IF(入力!GI87="","",入力!GI87),入力!GI41) -> 
B22: 9 | D22: =IF(入力!$D21="","",入力!$D21) ->  | L22: =IF(入力!$R21="","",入力!$R21) ->  | P22: =IF(入力!$DH42="","",入力!$DH42) ->  | T22: =IF(入力!$DP42="","",入力!$DP42) ->  | AA22: =IF(入力!$DW42="","",入力!$DW42) ->  | AO22: =IF(入力!$DH65="","",入力!$DH65) ->  | AS22: =IF(入力!$DP65="","",入力!$DP65) ->  | AZ22: =IF(入力!$DW65="","",入力!$DW65) ->  | BG22: =IF(入力!$DH88="","",入力!$DH88) ->  | BK22: =IF(入力!$DP88="","",入力!$DP88) ->  | BR22: =IF(入力!$DW88="","",入力!$DW88) ->  | BY22: =IF(入力!$DH112="","",入力!$DH112) ->  | CC22: =IF(入力!$DP112="","",入力!$DP112) ->  | CJ22: =IF(入力!$DW112="","",入力!$DW112) ->  | CQ22: =IF(入力!$ED112="","",入力!$ED112) ->  | CX22: =IF(入力!GI42="",IF(入力!GI88="","",入力!GI88),入力!GI42) -> 
B23: 10 | D23: =IF(入力!$D22="","",入力!$D22) ->  | L23: =IF(入力!$R22="","",入力!$R22) ->  | P23: =IF(入力!$DH43="","",入力!$DH43) ->  | T23: =IF(入力!$DP43="","",入力!$DP43) ->  | AA23: =IF(入力!$DW43="","",入力!$DW43) ->  | AO23: =IF(入力!$DH66="","",入力!$DH66) ->  | AS23: =IF(入力!$DP66="","",入力!$DP66) ->  | AZ23: =IF(入力!$DW66="","",入力!$DW66) ->  | BG23: =IF(入力!$DH89="","",入力!$DH89) ->  | BK23: =IF(入力!$DP89="","",入力!$DP89) ->  | BR23: =IF(入力!$DW89="","",入力!$DW89) ->  | BY23: =IF(入力!$DH113="","",入力!$DH113) ->  | CC23: =IF(入力!$DP113="","",入力!$DP113) ->  | CJ23: =IF(入力!$DW113="","",入力!$DW113) ->  | CQ23: =IF(入力!$ED113="","",入力!$ED113) ->  | CX23: =IF(入力!GI43="",IF(入力!GI89="","",入力!GI89),入力!GI43) -> 
D24: 合計 | T24: =SUM(T14:Z23) -> 0 | AA24: =SUM(AA14:AG23) -> 0 | AH24: =SUM(AH14:AN23) -> 0 | AS24: =SUM(AS14:AY23) -> 0 | AZ24: =SUM(AZ14:BF23) -> 0 | BK24: =SUM(BK14:BQ23) -> 0 | BR24: =SUM(BR14:BX23) -> 0 | CC24: =SUM(CC14:CI23) -> 0 | CJ24: =SUM(CJ14:CP23) -> 0 | CQ24: =SUM(CQ14:CW23) -> 0 | CX24: ←それぞれの金額は，軽減及び月割り後 の金額です。
T25: =SUM(T24:AN24) -> 0 | AS25: =SUM(AS24:BF24) -> 0 | BK25: =SUM(BK24:BX24) -> 0 | CC25: =SUM(CC24:CW24) -> 0
D26: 税額 (限度・端数調整後) | P26: =SUM(入力!ED46) -> 0 | AO26: =SUM(入力!ED69) -> 0 | BG26: =SUM(入力!ED92) -> 0 | BY26: =SUM(入力!ED116) -> 0
D27: 総合計 | P27: =SUM(P26:CW26) -> 0

Sheet 国民健康保険税軽減早見表H26から (hidden)
C2: 軽減判定基準額の求め方
C3: ※１：判定となる世帯の所得金額とは，擬主を含む世帯主，被保険者及び特定同一世帯所属者数の所得の合計額
C4: ※２：特定同一世帯所属者とは，国民健康保険から後期高齢者医療制度に移行した方
C5: ※３：一定の給与所得者（給与収入55万円超）又は公的年金等の支給（60万円超（65歳未満）又は110万円超（65歳以上））を受ける者
C6: ●２割軽減基準額 世帯の所得金額の合計が
F7: 430000 | L7: 円＋｛（被保険者＋特定同一世帯所属者数）× | AM7: 570000 | AS7: 円｝
U8: ＋10万円×（給与所得者※-1） | AT8: 円
C9: ●５割軽減基準額 世帯の所得の合計が，
F10: 430000 | L10: 円＋｛（被保険者＋特定同一世帯所属者数）× | AM10: 310000 | AS10: 円｝
U11: ＋10万円×（給与所得者※-1） | AT11: 円
C12: ●７割軽減基準額 世帯の所得の合計が，
F13: 430000 | L13: 円 | O13: ＋10万円×（給与所得者※-1） | AN13: 円
C15: 軽減判定基準額表 | Q15: ※３の人数 | AO15: =SUM(入力!GE25) -> 0 | AU15: 人
C16: ※世帯の所得合計金額 ＝ 擬主を含む世帯主 ＋ 被保険者 ＋ 特定同一世帯所属者数
AN17: 入力シートから
E18: 世帯の軽減判定所得 | AN18: =SUM(入力!AU4) -> 0
E19: 被保険者数＋特定同一世帯所属者数 | AN19: =SUM(入力!P5) -> 0
E20: 判定結果 | AN20: =IF(SUM(AN19)=0,"",VLOOKUP(SUM(AN19),$E$26:$AM$35,29,FALSE)) -> 
E21: ※基準額は以下で判定
E22: 被保険者数 ＋ 特定同一世帯 所属者数 | L22: ２割軽減世帯 | S22: ５割軽減世帯 | Z22: ７割軽減世帯 | AG22: 入力 シートの判定
S23: 被保険者又は特定同一世帯所属者に世帯主がいない場合
E26: 1 | L26: =$F$7+$E26*$AM$7+IF(SUM($AO$15)<=1,0,100000*($AO$15-1)) -> 1000000 | S26: =$F$10+$E26*$AM$10+IF(SUM($AO$15)<=1,0,100000*($AO$15-1)) -> 740000 | Z26: =$F$13+IF(SUM($AO$15)<=0,0,100000*($AO$15-1)) -> 430000 | AG26: =IF($AN$19=$E26,IF($AN$18>$L26,"",IF($AN$18<=$Z26,$Z$22,IF($AN$18<=$S26,$S$22,IF($AN$18<=$L26,$L$22,"")))),"") -> 
E27: 2 | L27: =$F$7+$E27*$AM$7+IF(SUM($AO$15)<=1,0,100000*($AO$15-1)) -> 1570000 | S27: =$F$10+$E27*$AM$10+IF(SUM($AO$15)<=1,0,100000*($AO$15-1)) -> 1050000 | Z27: =$F$13+IF(SUM($AO$15)<=0,0,100000*($AO$15-1)) -> 430000
E28: 3 | L28: 2140000 | S28: 1360000 | Z28: 430000
E29: 4 | L29: 2710000 | S29: 1670000 | Z29: 430000
E30: 5 | L30: 3280000 | S30: 1980000 | Z30: 430000
E31: 6 | L31: 3850000 | S31: 2290000 | Z31: 430000
E32: 7 | L32: 4420000 | S32: 2600000 | Z32: 430000
E33: 8 | L33: 4990000 | S33: 2910000 | Z33: 430000
E34: 9 | L34: 5560000 | S34: 3220000 | Z34: 430000
E35: 10 | L35: 6130000 | S35: 3530000 | Z35: 430000
E36: 以下１人増 すごとに加算 | L36: =SUM($AM$7) -> 570000 | S36: =SUM($AM$10) -> 310000 | Z36: 加算なし | AG36: ***********

Sheet 所得計算 (hidden)
AB2: 給与所得計算 | AI2: 1 | AJ2: 2 | AK2: 3 | AL2: 4 | AM2: 5 | AN2: 6 | AO2: 7 | AP2: 8 | AQ2: 9 | AR2: 10 | AT2: 専給1 | AU2: 専給2 | AV2: 専給3 | AW2: 専給4 | AX2: 専給5 | AY2: 専給6 | AZ2: 専給7 | BA2: 専給8 | BB2: 専給9 | BC2: 専給10
B3: 年齢計算 | AB3: 給与収入金額 | AD3: 所得金額 の計算 | AI3: =IF(入力!$X13="","",SUM(入力!$X13)) ->  | AJ3: =IF(入力!$X14="","",SUM(入力!$X14)) ->  | AK3: =IF(入力!$X15="","",SUM(入力!$X15)) ->  | AL3: =IF(入力!$X16="","",SUM(入力!$X16)) ->  | AM3: =IF(入力!$X17="","",SUM(入力!$X17)) ->  | AN3: =IF(入力!$X18="","",SUM(入力!$X18)) ->  | AO3: =IF(入力!$X19="","",SUM(入力!$X19)) ->  | AP3: =IF(入力!$X20="","",SUM(入力!$X20)) ->  | AQ3: =IF(入力!$X21="","",SUM(入力!$X21)) ->  | AR3: =IF(入力!$X22="","",SUM(入力!$X22)) ->  | AT3: =IF(入力!$BT13="","",SUM(入力!$BT13)) ->  | AU3: =IF(入力!$BT14="","",SUM(入力!$BT14)) ->  | AV3: =IF(入力!$BT15="","",SUM(入力!$BT15)) ->  | AW3: =IF(入力!$BT16="","",SUM(入力!$BT16)) ->  | AX3: =IF(入力!$BT17="","",SUM(入力!$BT17)) ->  | AY3: =IF(入力!$BT18="","",SUM(入力!$BT18)) ->  | AZ3: =IF(入力!$BT19="","",SUM(入力!$BT19)) ->  | BA3: =IF(入力!$BT20="","",SUM(入力!$BT20)) ->  | BB3: =IF(入力!$BT21="","",SUM(入力!$BT21)) ->  | BC3: =IF(入力!$BT22="","",SUM(入力!$BT22)) ->  | BE3: 給与所得控除後の給与所得 | BP3: 給与所得控除後の給与所得（専従者給与）
B4: 生年月日 | I4: 今日現在 | P4: 年金基準日 | W4: 年金 判定 | AB4: から | AC4: まで | AI4: =IF(AI$3="","",IF(SUM(AI$5:AI$15)=0,"",SUM(AI$5:AI$15))) ->  | AJ4: =IF(AJ$3="","",IF(SUM(AJ$5:AJ$15)=0,"",SUM(AJ$5:AJ$15))) ->  | AT4: =IF(AT$3="","",IF(SUM(AT$5:AT$15)=0,"",SUM(AT$5:AT$15))) ->  | AU4: =IF(AU$3="","",IF(SUM(AU$5:AU$15)=0,"",SUM(AU$5:AU$15))) ->  | BE4: 1 | BF4: 2 | BG4: 3 | BH4: 4 | BI4: 5 | BJ4: 6 | BK4: 7 | BL4: 8 | BM4: 9 | BN4: 10 | BP4: 1 | BQ4: 2 | BR4: 3 | BS4: 4 | BT4: 5 | BU4: 6 | BV4: 7 | BW4: 8 | BX4: 9 | BY4: 10
I5: =TODAY() -> 2026-06-26 | P5: =VALUE("R"&基本項目!$B$3&".1.1") -> 2026-01-01 | AB5: 0 | AC5: 650000 | AD5: 0円 | AI5: =IF(AI$3="","",IF(BE5="","",SUM(BE5)-SUM(BE$16))) ->  | AK5: =IF(AK$3="","",IF(BG5="","",SUM(BG5)-SUM(BG$16))) ->  | AL5: =IF(AL$3="","",IF(BH5="","",SUM(BH5)-SUM(BH$16))) ->  | AM5: =IF(AM$3="","",IF(BI5="","",SUM(BI5)-SUM(BI$16))) ->  | AN5: =IF(AN$3="","",IF(BJ5="","",SUM(BJ5)-SUM(BJ$16))) ->  | AO5: =IF(AO$3="","",IF(BK5="","",SUM(BK5)-SUM(BK$16))) ->  | AP5: =IF(AP$3="","",IF(BL5="","",SUM(BL5)-SUM(BL$16))) ->  | AQ5: =IF(AQ$3="","",IF(BM5="","",SUM(BM5)-SUM(BM$16))) ->  | AR5: =IF(AR$3="","",IF(BN5="","",SUM(BN5)-SUM(BN$16))) ->  | AT5: =IF(AT$3="","",IF(BP5="","",SUM(BP5)-SUM(BP$16))) ->  | AU5: =IF(AU$3="","",IF(BQ5="","",SUM(BQ5)-SUM(BQ$16))) ->  | BE5: =IF(AI$3="","",IF(AND(AI$3>=$AB$5,AI$3<=$AC$5),0,"")) ->  | BF5: =IF(AJ$3="","",IF(AND(AJ$3>=$AB$5,AJ$3<=$AC$5),0,"")) ->  | BP5: =IF(AT$3="","",IF(AND(AT$3>=$AB$5,AT$3<=$AC$5),0,"")) ->  | BQ5: =IF(AU$3="","",IF(AND(AU$3>=$AB$5,AU$3<=$AC$5),0,"")) ->  | BR5: =IF(AV$3="","",IF(AND(AV$3>=$AB$5,AV$3<=$AC$5),0,"")) ->  | BS5: =IF(AW$3="","",IF(AND(AW$3>=$AB$5,AW$3<=$AC$5),0,"")) ->  | BT5: =IF(AX$3="","",IF(AND(AX$3>=$AB$5,AX$3<=$AC$5),0,"")) ->  | BU5: =IF(AY$3="","",IF(AND(AY$3>=$AB$5,AY$3<=$AC$5),0,"")) ->  | BV5: =IF(AZ$3="","",IF(AND(AZ$3>=$AB$5,AZ$3<=$AC$5),0,"")) ->  | BW5: =IF(BA$3="","",IF(AND(BA$3>=$AB$5,BA$3<=$AC$5),0,"")) ->  | BX5: =IF(BB$3="","",IF(AND(BB$3>=$AB$5,BB$3<=$AC$5),0,"")) ->  | BY5: =IF(BC$3="","",IF(AND(BC$3>=$AB$5,BC$3<=$AC$5),0,"")) -> 
B6: =IF(入力!$K13="","",入力!$K13) ->  | I6: =IF($B6="","",IF($B6>I$5,"",DATEDIF($B6,I$5,"Y"))) ->  | P6: =IF(P$5="","",IF($B6="","",IF($B6>P$5,0,DATEDIF($B6,P$5,"Y")))) ->  | W6: =IF(AND(入力!R13="",P6=""),"",IF(入力!R13="",P6,入力!R13)) ->  | AB6: =AC5+1 -> 650001 | AC6: 1899999 | AD6: 給与の収入金額から650,000円を控除した金額 | BE6: =IF(AI$3="","",IF(AND(AI$3>=$AB$6,AI$3<=$AC$6),AI$3-650000,"")) ->  | BP6: =IF(AT$3="","",IF(AND(AT$3>=$AB$6,AT$3<=$AC$6),AT$3-650000,"")) -> 
B7: =IF(入力!$K14="","",入力!$K14) ->  | I7: =IF($B7="","",IF($B7>I$5,"",DATEDIF($B7,I$5,"Y"))) ->  | P7: =IF(P$5="","",IF($B7="","",IF($B7>P$5,0,DATEDIF($B7,P$5,"Y")))) ->  | W7: =IF(AND(入力!R14="",P7=""),"",IF(入力!R14="",P7,入力!R14)) -> 
B8: =IF(入力!$K15="","",入力!$K15) ->  | I8: =IF($B8="","",IF($B8>I$5,"",DATEDIF($B8,I$5,"Y"))) ->  | P8: =IF(P$5="","",IF($B8="","",IF($B8>P$5,0,DATEDIF($B8,P$5,"Y")))) ->  | W8: =IF(AND(入力!R15="",P8=""),"",IF(入力!R15="",P8,入力!R15)) -> 
B9: =IF(入力!$K16="","",入力!$K16) ->  | I9: =IF($B9="","",IF($B9>I$5,"",DATEDIF($B9,I$5,"Y"))) ->  | W9: =IF(AND(入力!R16="",P9=""),"",IF(入力!R16="",P9,入力!R16)) -> 
B10: =IF(入力!$K17="","",入力!$K17) ->  | W10: =IF(AND(入力!R17="",P10=""),"",IF(入力!R17="",P10,入力!R17)) -> 
B11: =IF(入力!$K18="","",入力!$K18) ->  | W11: =IF(AND(入力!R18="",P11=""),"",IF(入力!R18="",P11,入力!R18)) -> 
B12: =IF(入力!$K19="","",入力!$K19) ->  | W12: =IF(AND(入力!R19="",P12=""),"",IF(入力!R19="",P12,入力!R19)) ->  | AB12: =AC6+1 -> 1900000 | AC12: 3599999 | AD12: 給与の収入金額を４で割り千円未満の端数切捨て（Ａ） | AF12: Ａ×2.8－80,000円で求めた金額 | BE12: =IF(AI$3="","",IF(AND(AI$3>=$AB$12,AI$3<=$AC$12),ROUNDDOWN(ROUNDDOWN(AI$3/4,-3)*2.8,0)-80000,"")) ->  | BF12: =IF(AJ$3="","",IF(AND(AJ$3>=$AB$12,AJ$3<=$AC$12),ROUNDDOWN(ROUNDDOWN(AJ$3/4,-3)*2.8,0)-80000,"")) ->  | BP12: =IF(AT$3="","",IF(AND(AT$3>=$AB$12,AT$3<=$AC$12),ROUNDDOWN(ROUNDDOWN(AT$3/4,-3)*2.8,0)-80000,"")) ->  | BQ12: =IF(AU$3="","",IF(AND(AU$3>=$AB$12,AU$3<=$AC$12),ROUNDDOWN(ROUNDDOWN(AU$3/4,-3)*2.8,0)-80000,"")) ->  | BR12: =IF(AV$3="","",IF(AND(AV$3>=$AB$12,AV$3<=$AC$12),ROUNDDOWN(ROUNDDOWN(AV$3/4,-3)*2.8,0)-80000,"")) ->  | BS12: =IF(AW$3="","",IF(AND(AW$3>=$AB$12,AW$3<=$AC$12),ROUNDDOWN(ROUNDDOWN(AW$3/4,-3)*2.8,0)-80000,"")) ->  | BT12: =IF(AX$3="","",IF(AND(AX$3>=$AB$12,AX$3<=$AC$12),ROUNDDOWN(ROUNDDOWN(AX$3/4,-3)*2.8,0)-80000,"")) ->  | BU12: =IF(AY$3="","",IF(AND(AY$3>=$AB$12,AY$3<=$AC$12),ROUNDDOWN(ROUNDDOWN(AY$3/4,-3)*2.8,0)-80000,"")) ->  | BV12: =IF(AZ$3="","",IF(AND(AZ$3>=$AB$12,AZ$3<=$AC$12),ROUNDDOWN(ROUNDDOWN(AZ$3/4,-3)*2.8,0)-80000,"")) ->  | BW12: =IF(BA$3="","",IF(AND(BA$3>=$AB$12,BA$3<=$AC$12),ROUNDDOWN(ROUNDDOWN(BA$3/4,-3)*2.8,0)-80000,"")) ->  | BX12: =IF(BB$3="","",IF(AND(BB$3>=$AB$12,BB$3<=$AC$12),ROUNDDOWN(ROUNDDOWN(BB$3/4,-3)*2.8,0)-80000,"")) ->  | BY12: =IF(BC$3="","",IF(AND(BC$3>=$AB$12,BC$3<=$AC$12),ROUNDDOWN(ROUNDDOWN(BC$3/4,-3)*2.8,0)-80000,"")) -> 
B13: =IF(入力!$K20="","",入力!$K20) ->  | W13: =IF(AND(入力!R20="",P13=""),"",IF(入力!R20="",P13,入力!R20)) ->  | AB13: =AC12+1 -> 3600000 | AC13: 6599999 | AF13: Ａ×3.2－440,000円で求めた金額 | BE13: =IF(AI$3="","",IF(AND(AI$3>=$AB$13,AI$3<=$AC$13),ROUNDDOWN(ROUNDDOWN(AI$3/4,-3)*3.2,0)-440000,"")) ->  | BF13: =IF(AJ$3="","",IF(AND(AJ$3>=$AB$13,AJ$3<=$AC$13),ROUNDDOWN(ROUNDDOWN(AJ$3/4,-3)*3.2,0)-440000,"")) ->  | BP13: =IF(AT$3="","",IF(AND(AT$3>=$AB$13,AT$3<=$AC$13),ROUNDDOWN(ROUNDDOWN(AT$3/4,-3)*3.2,0)-440000,"")) ->  | BQ13: =IF(AU$3="","",IF(AND(AU$3>=$AB$13,AU$3<=$AC$13),ROUNDDOWN(ROUNDDOWN(AU$3/4,-3)*3.2,0)-440000,"")) ->  | BR13: =IF(AV$3="","",IF(AND(AV$3>=$AB$13,AV$3<=$AC$13),ROUNDDOWN(ROUNDDOWN(AV$3/4,-3)*3.2,0)-440000,"")) ->  | BS13: =IF(AW$3="","",IF(AND(AW$3>=$AB$13,AW$3<=$AC$13),ROUNDDOWN(ROUNDDOWN(AW$3/4,-3)*3.2,0)-440000,"")) ->  | BT13: =IF(AX$3="","",IF(AND(AX$3>=$AB$13,AX$3<=$AC$13),ROUNDDOWN(ROUNDDOWN(AX$3/4,-3)*3.2,0)-440000,"")) ->  | BU13: =IF(AY$3="","",IF(AND(AY$3>=$AB$13,AY$3<=$AC$13),ROUNDDOWN(ROUNDDOWN(AY$3/4,-3)*3.2,0)-440000,"")) ->  | BV13: =IF(AZ$3="","",IF(AND(AZ$3>=$AB$13,AZ$3<=$AC$13),ROUNDDOWN(ROUNDDOWN(AZ$3/4,-3)*3.2,0)-440000,"")) ->  | BW13: =IF(BA$3="","",IF(AND(BA$3>=$AB$13,BA$3<=$AC$13),ROUNDDOWN(ROUNDDOWN(BA$3/4,-3)*3.2,0)-440000,"")) ->  | BX13: =IF(BB$3="","",IF(AND(BB$3>=$AB$13,BB$3<=$AC$13),ROUNDDOWN(ROUNDDOWN(BB$3/4,-3)*3.2,0)-440000,"")) ->  | BY13: =IF(BC$3="","",IF(AND(BC$3>=$AB$13,BC$3<=$AC$13),ROUNDDOWN(ROUNDDOWN(BC$3/4,-3)*3.2,0)-440000,"")) -> 
B14: =IF(入力!$K21="","",入力!$K21) ->  | W14: =IF(AND(入力!R21="",P14=""),"",IF(入力!R21="",P14,入力!R21)) ->  | AB14: 6600000 | AC14: 8499999 | AD14: 給与の収入金額×0.9－1,100,000円で求めた金額 | BE14: =IF(AI$3="","",IF(AND(AI$3>=$AB$14,AI$3<=$AC$14),ROUNDDOWN(AI$3*0.9,0)-1100000,"")) ->  | BF14: =IF(AJ$3="","",IF(AND(AJ$3>=$AB$14,AJ$3<=$AC$14),ROUNDDOWN(AJ$3*0.9,0)-1100000,"")) ->  | BP14: =IF(AT$3="","",IF(AND(AT$3>=$AB$14,AT$3<=$AC$14),ROUNDDOWN(AT$3*0.9,0)-1100000,"")) ->  | BQ14: =IF(AU$3="","",IF(AND(AU$3>=$AB$14,AU$3<=$AC$14),ROUNDDOWN(AU$3*0.9,0)-1100000,"")) ->  | BR14: =IF(AV$3="","",IF(AND(AV$3>=$AB$14,AV$3<=$AC$14),ROUNDDOWN(AV$3*0.9,0)-1100000,"")) ->  | BS14: =IF(AW$3="","",IF(AND(AW$3>=$AB$14,AW$3<=$AC$14),ROUNDDOWN(AW$3*0.9,0)-1100000,"")) ->  | BT14: =IF(AX$3="","",IF(AND(AX$3>=$AB$14,AX$3<=$AC$14),ROUNDDOWN(AX$3*0.9,0)-1100000,"")) ->  | BU14: =IF(AY$3="","",IF(AND(AY$3>=$AB$14,AY$3<=$AC$14),ROUNDDOWN(AY$3*0.9,0)-1100000,"")) ->  | BV14: =IF(AZ$3="","",IF(AND(AZ$3>=$AB$14,AZ$3<=$AC$14),ROUNDDOWN(AZ$3*0.9,0)-1100000,"")) ->  | BW14: =IF(BA$3="","",IF(AND(BA$3>=$AB$14,BA$3<=$AC$14),ROUNDDOWN(BA$3*0.9,0)-1100000,"")) ->  | BX14: =IF(BB$3="","",IF(AND(BB$3>=$AB$14,BB$3<=$AC$14),ROUNDDOWN(BB$3*0.9,0)-1100000,"")) ->  | BY14: =IF(BC$3="","",IF(AND(BC$3>=$AB$14,BC$3<=$AC$14),ROUNDDOWN(BC$3*0.9,0)-1100000,"")) -> 
B15: =IF(入力!$K22="","",入力!$K22) ->  | W15: =IF(AND(入力!R22="",P15=""),"",IF(入力!R22="",P15,入力!R22)) ->  | AB15: =AC14+1 -> 8500000 | AD15: 給与の収入金額－1,950,000円（※所得金額調整控除は別計算） | BE15: =IF(AI$3="","",IF(AI$3>=$AB$15,AI$3-1950000,"")) ->  | BP15: =IF(AT$3="","",IF(AT$3>=$AB$15,AT$3-1950000,"")) -> 
AB16: 所得金額調整控除サイン | AI16: =IF(入力!$AL$13="","",SUM(入力!$AL$13)) ->  | AJ16: =IF(入力!$AL$14="","",SUM(入力!$AL$14)) ->  | AK16: =IF(入力!$AL$15="","",SUM(入力!$AL$15)) ->  | AL16: =IF(入力!$AL$16="","",SUM(入力!$AL$16)) ->  | AM16: =IF(入力!$AL$17="","",SUM(入力!$AL$17)) ->  | AN16: =IF(入力!$AL$18="","",SUM(入力!$AL$18)) ->  | AO16: =IF(入力!$AL$19="","",SUM(入力!$AL$19)) ->  | AP16: =IF(入力!$AL$20="","",SUM(入力!$AL$20)) ->  | AQ16: =IF(入力!$AL$21="","",SUM(入力!$AL$21)) ->  | AR16: =IF(入力!$AL$22="","",SUM(入力!$AL$22)) ->  | AT16: =IF(入力!$AL$13="","",SUM(入力!$AL$13)) ->  | AU16: =IF(入力!$AL$14="","",SUM(入力!$AL$14)) ->  | AV16: =IF(入力!$AL$15="","",SUM(入力!$AL$15)) ->  | AW16: =IF(入力!$AL$16="","",SUM(入力!$AL$16)) ->  | AX16: =IF(入力!$AL$17="","",SUM(入力!$AL$17)) ->  | AY16: =IF(入力!$AL$18="","",SUM(入力!$AL$18)) ->  | AZ16: =IF(入力!$AL$19="","",SUM(入力!$AL$19)) ->  | BA16: =IF(入力!$AL$20="","",SUM(入力!$AL$20)) ->  | BB16: =IF(入力!$AL$21="","",SUM(入力!$AL$21)) ->  | BC16: =IF(入力!$AL$22="","",SUM(入力!$AL$22)) ->  | BD16: 所得金額調整控除→ | BE16: =IF(AI$16="","",IF(SUM(AI$16)=1,SUM(BE$17),IF(SUM(AI$16)=2,SUM(BE$18),IF(SUM(AI$16)=3,SUM(BE$19),0)))) ->  | BO16: 所得金額調整控除→ | BP16: =IF(AT$16="","",IF(SUM(AT$16)=1,SUM(BP$17),IF(SUM(AT$16)=2,SUM(BP$18),IF(SUM(AT$16)=3,SUM(BP$19),0)))) ->  | BQ16: =IF(AU$16="","",IF(SUM(AU$16)=1,SUM(BQ$17),IF(SUM(AU$16)=2,SUM(BQ$18),IF(SUM(AU$16)=3,SUM(BQ$19),0)))) -> 
BD17: 所得金額調整控除サイン１の場合→ | BE17: =IF(AI$16="","",IF(AND(SUM(AI$16)=1,SUM(AI$3)>8500000,SUM(AI$23)=0),ROUNDDOWN(MAX(0,MIN(10000000,SUM(AI$3))-8500000)*0.1,0),0)) ->  | BF17: =IF(AJ$16="","",IF(AND(SUM(AJ$16)=1,SUM(AJ$3)>8500000,SUM(AJ$23)=0),ROUNDDOWN(MAX(0,MIN(10000000,SUM(AJ$3))-8500000)*0.1,0),0)) ->  | BG17: =IF(AK$16="","",IF(AND(SUM(AK$16)=1,SUM(AK$3)>8500000,SUM(AK$23)=0),ROUNDDOWN(MAX(0,MIN(10000000,SUM(AK$3))-8500000)*0.1,0),0)) ->  | BH17: =IF(AL$16="","",IF(AND(SUM(AL$16)=1,SUM(AL$3)>8500000,SUM(AL$23)=0),ROUNDDOWN(MAX(0,MIN(10000000,SUM(AL$3))-8500000)*0.1,0),0)) ->  | BI17: =IF(AM$16="","",IF(AND(SUM(AM$16)=1,SUM(AM$3)>8500000,SUM(AM$23)=0),ROUNDDOWN(MAX(0,MIN(10000000,SUM(AM$3))-8500000)*0.1,0),0)) ->  | BJ17: =IF(AN$16="","",IF(AND(SUM(AN$16)=1,SUM(AN$3)>8500000,SUM(AN$23)=0),ROUNDDOWN(MAX(0,MIN(10000000,SUM(AN$3))-8500000)*0.1,0),0)) ->  | BK17: =IF(AO$16="","",IF(AND(SUM(AO$16)=1,SUM(AO$3)>8500000,SUM(AO$23)=0),ROUNDDOWN(MAX(0,MIN(10000000,SUM(AO$3))-8500000)*0.1,0),0)) ->  | BL17: =IF(AP$16="","",IF(AND(SUM(AP$16)=1,SUM(AP$3)>8500000,SUM(AP$23)=0),ROUNDDOWN(MAX(0,MIN(10000000,SUM(AP$3))-8500000)*0.1,0),0)) ->  | BM17: =IF(AQ$16="","",IF(AND(SUM(AQ$16)=1,SUM(AQ$3)>8500000,SUM(AQ$23)=0),ROUNDDOWN(MAX(0,MIN(10000000,SUM(AQ$3))-8500000)*0.1,0),0)) ->  | BN17: =IF(AR$16="","",IF(AND(SUM(AR$16)=1,SUM(AR$3)>8500000,SUM(AR$23)=0),ROUNDDOWN(MAX(0,MIN(10000000,SUM(AR$3))-8500000)*0.1,0),0)) ->  | BO17: 所得金額調整控除サイン１の場合→ | BP17: =IF(AT$16="","",IF(AND(SUM(AT$16)=1,SUM(AT$3)>8500000,SUM(AI$23)=0),ROUNDDOWN(MAX(0,MIN(10000000,SUM(AT$3))-8500000)*0.1,0),0)) ->  | BQ17: =IF(AU$16="","",IF(AND(SUM(AU$16)=1,SUM(AU$3)>8500000,SUM(AJ$23)=0),ROUNDDOWN(MAX(0,MIN(10000000,SUM(AU$3))-8500000)*0.1,0),0)) -> 
BD18: 所得金額調整控除サイン２の場合→ | BE18: =IF(AI$16="","",IF(AND(SUM(AI$16)=2,SUM(AI$23)<>0,SUM(AI$3)<=8500000),MAX(0,MIN(100000,SUM(BE$5:BE$15))+MIN(100000,SUM(AI$23))-100000),0)) ->  | BF18: =IF(AJ$16="","",IF(AND(SUM(AJ$16)=2,SUM(AJ$23)<>0,SUM(AJ$3)<=8500000),MAX(0,MIN(100000,SUM(BF$5:BF$15))+MIN(100000,SUM(AJ$23))-100000),0)) ->  | BO18: 所得金額調整控除サイン２の場合→ | BP18: =IF(AT$16="","",IF(AND(SUM(AT$16)=2,SUM(AI$23)<>0,SUM(AT$3)<=8500000),MAX(0,MIN(100000,SUM(BP$5:BP$15))+MIN(100000,SUM(AI$23))-100000),0)) ->  | BQ18: =IF(AU$16="","",IF(AND(SUM(AU$16)=2,SUM(AJ$23)<>0,SUM(AU$3)<=8500000),MAX(0,MIN(100000,SUM(BQ$5:BQ$15))+MIN(100000,SUM(AJ$23))-100000),0)) -> 
BD19: 所得金額調整控除サイン３の場合→ | BE19: =IF(AI$16="","",IF(AND(SUM(AI$16)=3,SUM(AI$23)<>0,SUM(AI$3)>8500000),ROUNDDOWN(MAX(0,MIN(10000000,SUM(AI$3))-8500000)*0.1,0)+MAX(0,MIN(100000,SUM(BE$5:BE$15))+MIN(100000,SUM(AI$23))-100000),0)) ->  | BF19: =IF(AJ$16="","",IF(AND(SUM(AJ$16)=3,SUM(AJ$23)<>0,SUM(AJ$3)>8500000),ROUNDDOWN(MAX(0,MIN(10000000,SUM(AJ$3))-8500000)*0.1,0)+MAX(0,MIN(100000,SUM(BF$5:BF$15))+MIN(100000,SUM(AJ$23))-100000),0)) ->  | BO19: 所得金額調整控除サイン３の場合→ | BP19: =IF(AT$16="","",IF(AND(SUM(AT$16)=3,SUM(AI$23)<>0,SUM(AT$3)>8500000),ROUNDDOWN(MAX(0,MIN(10000000,SUM(AT$3))-8500000)*0.1,0)+MAX(0,MIN(100000,SUM(BP$5:BP$15))+MIN(100000,SUM(AI$23))-100000),0)) ->  | BQ19: =IF(AU$16="","",IF(AND(SUM(AU$16)=3,SUM(AJ$23)<>0,SUM(AU$3)>8500000),ROUNDDOWN(MAX(0,MIN(10000000,SUM(AU$3))-8500000)*0.1,0)+MAX(0,MIN(100000,SUM(BQ$5:BQ$15))+MIN(100000,SUM(AJ$23))-100000),0)) -> 
AB20: 年金所得計算 | AI20: 1 | AJ20: 2 | AK20: 3 | AL20: 4 | AM20: 5 | AN20: 6 | AO20: 7 | AP20: 8 | AQ20: 9 | AR20: 10
A21: 1 | D21: 年金所得に係る 雑所得以外の 合計所得金額 | O21: =入力!DJ13 -> 0 | AC21: 年金収入金額の合計(Ａ) | AE21: 公的年金等所得金額の計算 | AI21: =IF(入力!$AY13="","",入力!$AY13) ->  | AJ21: =IF(入力!$AY14="","",入力!$AY14) ->  | AK21: =IF(入力!$AY15="","",入力!$AY15) ->  | AL21: =IF(入力!$AY16="","",入力!$AY16) ->  | AM21: =IF(入力!$AY17="","",入力!$AY17) ->  | AN21: =IF(入力!$AY18="","",入力!$AY18) ->  | AO21: =IF(入力!$AY19="","",入力!$AY19) ->  | AP21: =IF(入力!$AY20="","",入力!$AY20) ->  | AQ21: =IF(入力!$AY21="","",入力!$AY21) ->  | AR21: =IF(入力!$AY22="","",入力!$AY22) -> 
AI22: =IF(所得計算!$W6="","",所得計算!$W6) ->  | AJ22: =IF(所得計算!$W7="","",所得計算!$W7) ->  | AK22: =IF(所得計算!$W8="","",所得計算!$W8) ->  | AL22: =IF(所得計算!$W9="","",所得計算!$W9) ->  | AM22: =IF(所得計算!$W10="","",所得計算!$W10) ->  | AN22: =IF(所得計算!$W11="","",所得計算!$W11) ->  | AO22: =IF(所得計算!$W12="","",所得計算!$W12) ->  | AP22: =IF(所得計算!$W13="","",所得計算!$W13) ->  | AQ22: =IF(所得計算!$W14="","",所得計算!$W14) ->  | AR22: =IF(所得計算!$W15="","",所得計算!$W15) -> 
A23: 2 | D23: 年金所得に係る 雑所得以外の 合計所得金額 | O23: =入力!DJ14 -> 0 | AC23: から | AD23: まで | AI23: =IF(SUM(AI24:AI35)=0,"",SUM(AI24:AI35)) ->  | AJ23: =IF(SUM(AJ24:AJ35)=0,"",SUM(AJ24:AJ35)) -> 
AB24: ６５歳以上 | AC24: 0 | AD24: 1100000 | AE24: 0円or〈～100,000円〉or《～200,000円》 | AI24: =IF(AI$21="","",IF(AND(SUM(AI$22)>=65,AI$21>=$AC24,AI$21<=$AD24),IF($O$21>20000000,MAX(AI21-900000,0),IF($O$21>10000000,MAX(AI21-1000000,0),0)),"")) ->  | AJ24: =IF(AJ$21="","",IF(AND(SUM(AJ$22)>=65,AJ$21>=$AC24,AJ$21<=$AD24),IF($O$23>20000000,MAX(AJ21-900000,0),IF($O$23>10000000,MAX(AJ21-1000000,0),0)),"")) ->  | AK24: =IF(AK$21="","",IF(AND(SUM(AK$22)>=65,AK$21>=$AC24,AK$21<=$AD24),IF($O$25>20000000,MAX(AK21-900000,0),IF($O$25>10000000,MAX(AK21-1000000,0),0)),"")) ->  | AL24: =IF(AL$21="","",IF(AND(SUM(AL$22)>=65,AL$21>=$AC24,AL$21<=$AD24),IF($O$27>20000000,MAX(AL21-900000,0),IF($O$27>10000000,MAX(AL21-1000000,0),0)),"")) ->  | AM24: =IF(AM$21="","",IF(AND(SUM(AM$22)>=65,AM$21>=$AC24,AM$21<=$AD24),IF($O$29>20000000,MAX(AM21-900000,0),IF($O$29>10000000,MAX(AM21-1000000,0),0)),"")) ->  | AN24: =IF(AN$21="","",IF(AND(SUM(AN$22)>=65,AN$21>=$AC24,AN$21<=$AD24),IF($O$31>20000000,MAX(AN21-900000,0),IF($O$31>10000000,MAX(AN21-1000000,0),0)),"")) ->  | AO24: =IF(AO$21="","",IF(AND(SUM(AO$22)>=65,AO$21>=$AC24,AO$21<=$AD24),IF($O$33>20000000,MAX(AO21-900000,0),IF($O$33>10000000,MAX(AO21-1000000,0),0)),"")) ->  | AP24: =IF(AP$21="","",IF(AND(SUM(AP$22)>=65,AP$21>=$AC24,AP$21<=$AD24),IF($O$35>20000000,MAX(AP21-900000,0),IF($O$35>10000000,MAX(AP21-1000000,0),0)),"")) ->  | AQ24: =IF(AQ$21="","",IF(AND(SUM(AQ$22)>=65,AQ$21>=$AC24,AQ$21<=$AD24),IF($O$37>20000000,MAX(AQ21-900000,0),IF($O$37>10000000,MAX(AQ21-1000000,0),0)),"")) ->  | AR24: =IF(AR$21="","",IF(AND(SUM(AR$22)>=65,AR$21>=$AC24,AR$21<=$AD24),IF($O$39>20000000,MAX(AR21-900000,0),IF($O$39>10000000,MAX(AR21-1000000,0),0)),"")) -> 
A25: 3 | D25: 年金所得に係る 雑所得以外の 合計所得金額 | O25: =入力!DJ15 -> 0 | AC25: =SUM(AD24,1) -> 1100001 | AD25: 3300000 | AE25: (Ａ)－1,100,000円〈1,000,000〉《900,000》 | AI25: =IF(AI$21="","",IF(AND(SUM(AI$22)>=65,AI$21>=$AC25,AI$21<=$AD25),IF($O$21>20000000,MAX(AI21-900000,0),IF($O$21>10000000,MAX(AI21-1000000,0),AI21-1100000)),"")) ->  | AJ25: =IF(AJ$21="","",IF(AND(SUM(AJ$22)>=65,AJ$21>=$AC25,AJ$21<=$AD25),IF($O$23>20000000,MAX(AJ21-900000,0),IF($O$23>10000000,MAX(AJ21-1000000,0),AJ21-1100000)),"")) ->  | AK25: =IF(AK$21="","",IF(AND(SUM(AK$22)>=65,AK$21>=$AC25,AK$21<=$AD25),IF($O$25>20000000,MAX(AK21-900000,0),IF($O$25>10000000,MAX(AK21-1000000,0),AK21-1100000)),"")) ->  | AL25: =IF(AL$21="","",IF(AND(SUM(AL$22)>=65,AL$21>=$AC25,AL$21<=$AD25),IF($O$27>20000000,MAX(AL21-900000,0),IF($O$27>10000000,MAX(AL21-1000000,0),AL21-1100000)),"")) ->  | AM25: =IF(AM$21="","",IF(AND(SUM(AM$22)>=65,AM$21>=$AC25,AM$21<=$AD25),IF($O$29>20000000,MAX(AM21-900000,0),IF($O$29>10000000,MAX(AM21-1000000,0),AM21-1100000)),"")) ->  | AN25: =IF(AN$21="","",IF(AND(SUM(AN$22)>=65,AN$21>=$AC25,AN$21<=$AD25),IF($O$31>20000000,MAX(AN21-900000,0),IF($O$31>10000000,MAX(AN21-1000000,0),AN21-1100000)),"")) ->  | AO25: =IF(AO$21="","",IF(AND(SUM(AO$22)>=65,AO$21>=$AC25,AO$21<=$AD25),IF($O$33>20000000,MAX(AO21-900000,0),IF($O$33>10000000,MAX(AO21-1000000,0),AO21-1100000)),"")) ->  | AP25: =IF(AP$21="","",IF(AND(SUM(AP$22)>=65,AP$21>=$AC25,AP$21<=$AD25),IF($O$35>20000000,MAX(AP21-900000,0),IF($O$35>10000000,MAX(AP21-1000000,0),AP21-1100000)),"")) ->  | AQ25: =IF(AQ$21="","",IF(AND(SUM(AQ$22)>=65,AQ$21>=$AC25,AQ$21<=$AD25),IF($O$37>20000000,MAX(AQ21-900000,0),IF($O$37>10000000,MAX(AQ21-1000000,0),AQ21-1100000)),"")) ->  | AR25: =IF(AR$21="","",IF(AND(SUM(AR$22)>=65,AR$21>=$AC25,AR$21<=$AD25),IF($O$39>20000000,MAX(AR21-900000,0),IF($O$39>10000000,MAX(AR21-1000000,0),AR21-1100000)),"")) -> 
AC26: =SUM(AD25,1) -> 3300001 | AD26: 4100000 | AE26: (Ａ)×75％－275,000円〈175,000〉《75,000》 | AI26: =IF(AI$21="","",IF(AND(SUM(AI$22)>=65,AI$21>=$AC26,AI$21<=$AD26),IF($O$21>20000000,ROUNDDOWN(AI$21*75/100,0)-75000,IF($O$21>10000000,ROUNDDOWN(AI$21*75/100,0)-175000,ROUNDDOWN(AI$21*75/100,0)-275000)),"")) ->  | AJ26: =IF(AJ$21="","",IF(AND(SUM(AJ$22)>=65,AJ$21>=$AC26,AJ$21<=$AD26),IF($O$23>20000000,ROUNDDOWN(AJ$21*75/100,0)-75000,IF($O$23>10000000,ROUNDDOWN(AJ$21*75/100,0)-175000,ROUNDDOWN(AJ$21*75/100,0)-275000)),"")) ->  | AK26: =IF(AK$21="","",IF(AND(SUM(AK$22)>=65,AK$21>=$AC26,AK$21<=$AD26),IF($O$25>20000000,ROUNDDOWN(AK$21*75/100,0)-75000,IF($O$25>10000000,ROUNDDOWN(AK$21*75/100,0)-175000,ROUNDDOWN(AK$21*75/100,0)-275000)),"")) ->  | AL26: =IF(AL$21="","",IF(AND(SUM(AL$22)>=65,AL$21>=$AC26,AL$21<=$AD26),IF($O$27>20000000,ROUNDDOWN(AL$21*75/100,0)-75000,IF($O$27>10000000,ROUNDDOWN(AL$21*75/100,0)-175000,ROUNDDOWN(AL$21*75/100,0)-275000)),"")) ->  | AM26: =IF(AM$21="","",IF(AND(SUM(AM$22)>=65,AM$21>=$AC26,AM$21<=$AD26),IF($O$29>20000000,ROUNDDOWN(AM$21*75/100,0)-75000,IF($O$29>10000000,ROUNDDOWN(AM$21*75/100,0)-175000,ROUNDDOWN(AM$21*75/100,0)-275000)),"")) ->  | AN26: =IF(AN$21="","",IF(AND(SUM(AN$22)>=65,AN$21>=$AC26,AN$21<=$AD26),IF($O$31>20000000,ROUNDDOWN(AN$21*75/100,0)-75000,IF($O$31>10000000,ROUNDDOWN(AN$21*75/100,0)-175000,ROUNDDOWN(AN$21*75/100,0)-275000)),"")) ->  | AO26: =IF(AO$21="","",IF(AND(SUM(AO$22)>=65,AO$21>=$AC26,AO$21<=$AD26),IF($O$33>20000000,ROUNDDOWN(AO$21*75/100,0)-75000,IF($O$33>10000000,ROUNDDOWN(AO$21*75/100,0)-175000,ROUNDDOWN(AO$21*75/100,0)-275000)),"")) ->  | AP26: =IF(AP$21="","",IF(AND(SUM(AP$22)>=65,AP$21>=$AC26,AP$21<=$AD26),IF($O$35>20000000,ROUNDDOWN(AP$21*75/100,0)-75000,IF($O$35>10000000,ROUNDDOWN(AP$21*75/100,0)-175000,ROUNDDOWN(AP$21*75/100,0)-275000)),"")) ->  | AQ26: =IF(AQ$21="","",IF(AND(SUM(AQ$22)>=65,AQ$21>=$AC26,AQ$21<=$AD26),IF($O$37>20000000,ROUNDDOWN(AQ$21*75/100,0)-75000,IF($O$37>10000000,ROUNDDOWN(AQ$21*75/100,0)-175000,ROUNDDOWN(AQ$21*75/100,0)-275000)),"")) ->  | AR26: =IF(AR$21="","",IF(AND(SUM(AR$22)>=65,AR$21>=$AC26,AR$21<=$AD26),IF($O$39>20000000,ROUNDDOWN(AR$21*75/100,0)-75000,IF($O$39>10000000,ROUNDDOWN(AR$21*75/100,0)-175000,ROUNDDOWN(AR$21*75/100,0)-275000)),"")) -> 
A27: 4 | D27: 年金所得に係る 雑所得以外の 合計所得金額 | O27: =入力!DJ16 -> 0 | AC27: =SUM(AD26,1) -> 4100001 | AD27: 7700000 | AE27: (Ａ)×85％－685,000円〈585,000〉《485,000》 | AI27: =IF(AI$21="","",IF(AND(SUM(AI$22)>=65,AI$21>=$AC27,AI$21<=$AD27),IF($O$21>20000000,ROUNDDOWN(AI$21*85/100,0)-485000,IF($O$21>10000000,ROUNDDOWN(AI$21*85/100,0)-585000,ROUNDDOWN(AI$21*85/100,0)-685000)),"")) ->  | AJ27: =IF(AJ$21="","",IF(AND(SUM(AJ$22)>=65,AJ$21>=$AC27,AJ$21<=$AD27),IF($O$23>20000000,ROUNDDOWN(AJ$21*85/100,0)-485000,IF($O$23>10000000,ROUNDDOWN(AJ$21*85/100,0)-585000,ROUNDDOWN(AJ$21*85/100,0)-685000)),"")) ->  | AK27: =IF(AK$21="","",IF(AND(SUM(AK$22)>=65,AK$21>=$AC27,AK$21<=$AD27),IF($O$25>20000000,ROUNDDOWN(AK$21*85/100,0)-485000,IF($O$25>10000000,ROUNDDOWN(AK$21*85/100,0)-585000,ROUNDDOWN(AK$21*85/100,0)-685000)),"")) ->  | AL27: =IF(AL$21="","",IF(AND(SUM(AL$22)>=65,AL$21>=$AC27,AL$21<=$AD27),IF($O$27>20000000,ROUNDDOWN(AL$21*85/100,0)-485000,IF($O$27>10000000,ROUNDDOWN(AL$21*85/100,0)-585000,ROUNDDOWN(AL$21*85/100,0)-685000)),"")) ->  | AM27: =IF(AM$21="","",IF(AND(SUM(AM$22)>=65,AM$21>=$AC27,AM$21<=$AD27),IF($O$29>20000000,ROUNDDOWN(AM$21*85/100,0)-485000,IF($O$29>10000000,ROUNDDOWN(AM$21*85/100,0)-585000,ROUNDDOWN(AM$21*85/100,0)-685000)),"")) ->  | AN27: =IF(AN$21="","",IF(AND(SUM(AN$22)>=65,AN$21>=$AC27,AN$21<=$AD27),IF($O$31>20000000,ROUNDDOWN(AN$21*85/100,0)-485000,IF($O$31>10000000,ROUNDDOWN(AN$21*85/100,0)-585000,ROUNDDOWN(AN$21*85/100,0)-685000)),"")) ->  | AO27: =IF(AO$21="","",IF(AND(SUM(AO$22)>=65,AO$21>=$AC27,AO$21<=$AD27),IF($O$33>20000000,ROUNDDOWN(AO$21*85/100,0)-485000,IF($O$33>10000000,ROUNDDOWN(AO$21*85/100,0)-585000,ROUNDDOWN(AO$21*85/100,0)-685000)),"")) ->  | AP27: =IF(AP$21="","",IF(AND(SUM(AP$22)>=65,AP$21>=$AC27,AP$21<=$AD27),IF($O$35>20000000,ROUNDDOWN(AP$21*85/100,0)-485000,IF($O$35>10000000,ROUNDDOWN(AP$21*85/100,0)-585000,ROUNDDOWN(AP$21*85/100,0)-685000)),"")) ->  | AQ27: =IF(AQ$21="","",IF(AND(SUM(AQ$22)>=65,AQ$21>=$AC27,AQ$21<=$AD27),IF($O$37>20000000,ROUNDDOWN(AQ$21*85/100,0)-485000,IF($O$37>10000000,ROUNDDOWN(AQ$21*85/100,0)-585000,ROUNDDOWN(AQ$21*85/100,0)-685000)),"")) ->  | AR27: =IF(AR$21="","",IF(AND(SUM(AR$22)>=65,AR$21>=$AC27,AR$21<=$AD27),IF($O$39>20000000,ROUNDDOWN(AR$21*85/100,0)-485000,IF($O$39>10000000,ROUNDDOWN(AR$21*85/100,0)-585000,ROUNDDOWN(AR$21*85/100,0)-685000)),"")) -> 
AC28: =SUM(AD27,1) -> 7700001 | AD28: 10000000 | AE28: (Ａ)×95％－1,455,000円〈1,355,000〉《1,255,000》 | AI28: =IF(AI$21="","",IF(AND(SUM(AI$22)>=65,AI$21>=$AC28,AI$21<=$AD28),IF($O$21>20000000,ROUNDDOWN(AI$21*95/100,0)-1255000,IF($O$21>10000000,ROUNDDOWN(AI$21*95/100,0)-1355000,ROUNDDOWN(AI$21*95/100,0)-1455000)),"")) ->  | AJ28: =IF(AJ$21="","",IF(AND(SUM(AJ$22)>=65,AJ$21>=$AC28,AJ$21<=$AD28),IF($O$23>20000000,ROUNDDOWN(AJ$21*95/100,0)-1255000,IF($O$23>10000000,ROUNDDOWN(AJ$21*95/100,0)-1355000,ROUNDDOWN(AJ$21*95/100,0)-1455000)),"")) ->  | AK28: =IF(AK$21="","",IF(AND(SUM(AK$22)>=65,AK$21>=$AC28,AK$21<=$AD28),IF($O$25>20000000,ROUNDDOWN(AK$21*95/100,0)-1255000,IF($O$25>10000000,ROUNDDOWN(AK$21*95/100,0)-1355000,ROUNDDOWN(AK$21*95/100,0)-1455000)),"")) ->  | AL28: =IF(AL$21="","",IF(AND(SUM(AL$22)>=65,AL$21>=$AC28,AL$21<=$AD28),IF($O$27>20000000,ROUNDDOWN(AL$21*95/100,0)-1255000,IF($O$27>10000000,ROUNDDOWN(AL$21*95/100,0)-1355000,ROUNDDOWN(AL$21*95/100,0)-1455000)),"")) ->  | AM28: =IF(AM$21="","",IF(AND(SUM(AM$22)>=65,AM$21>=$AC28,AM$21<=$AD28),IF($O$29>20000000,ROUNDDOWN(AM$21*95/100,0)-1255000,IF($O$29>10000000,ROUNDDOWN(AM$21*95/100,0)-1355000,ROUNDDOWN(AM$21*95/100,0)-1455000)),"")) ->  | AN28: =IF(AN$21="","",IF(AND(SUM(AN$22)>=65,AN$21>=$AC28,AN$21<=$AD28),IF($O$31>20000000,ROUNDDOWN(AN$21*95/100,0)-1255000,IF($O$31>10000000,ROUNDDOWN(AN$21*95/100,0)-1355000,ROUNDDOWN(AN$21*95/100,0)-1455000)),"")) ->  | AO28: =IF(AO$21="","",IF(AND(SUM(AO$22)>=65,AO$21>=$AC28,AO$21<=$AD28),IF($O$33>20000000,ROUNDDOWN(AO$21*95/100,0)-1255000,IF($O$33>10000000,ROUNDDOWN(AO$21*95/100,0)-1355000,ROUNDDOWN(AO$21*95/100,0)-1455000)),"")) ->  | AP28: =IF(AP$21="","",IF(AND(SUM(AP$22)>=65,AP$21>=$AC28,AP$21<=$AD28),IF($O$35>20000000,ROUNDDOWN(AP$21*95/100,0)-1255000,IF($O$35>10000000,ROUNDDOWN(AP$21*95/100,0)-1355000,ROUNDDOWN(AP$21*95/100,0)-1455000)),"")) ->  | AQ28: =IF(AQ$21="","",IF(AND(SUM(AQ$22)>=65,AQ$21>=$AC28,AQ$21<=$AD28),IF($O$37>20000000,ROUNDDOWN(AQ$21*95/100,0)-1255000,IF($O$37>10000000,ROUNDDOWN(AQ$21*95/100,0)-1355000,ROUNDDOWN(AQ$21*95/100,0)-1455000)),"")) ->  | AR28: =IF(AR$21="","",IF(AND(SUM(AR$22)>=65,AR$21>=$AC28,AR$21<=$AD28),IF($O$39>20000000,ROUNDDOWN(AR$21*95/100,0)-1255000,IF($O$39>10000000,ROUNDDOWN(AR$21*95/100,0)-1355000,ROUNDDOWN(AR$21*95/100,0)-1455000)),"")) -> 
A29: 5 | D29: 年金所得に係る 雑所得以外の 合計所得金額 | O29: =入力!DJ17 -> 0 | AC29: =SUM(AD28,1) -> 10000001 | AE29: (Ａ)－1,955,000円〈1,855,000〉《1,755,000》 | AI29: =IF(AI$21="","",IF(AND(SUM(AI$22)>=65,AI$21>=$AC29),IF($O$21>20000000,MAX(AI21-1755000,0),IF($O$21>10000000,MAX(AI21-1855000,0),AI21-1955000)),"")) ->  | AJ29: =IF(AJ$21="","",IF(AND(SUM(AJ$22)>=65,AJ$21>=$AC29),IF($O$23>20000000,MAX(AJ21-1755000,0),IF($O$23>10000000,MAX(AJ21-1855000,0),AJ21-1955000)),"")) ->  | AK29: =IF(AK$21="","",IF(AND(SUM(AK$22)>=65,AK$21>=$AC29),IF($O$25>20000000,MAX(AK21-1755000,0),IF($O$25>10000000,MAX(AK21-1855000,0),AK21-1955000)),"")) ->  | AL29: =IF(AL$21="","",IF(AND(SUM(AL$22)>=65,AL$21>=$AC29),IF($O$27>20000000,MAX(AL21-1755000,0),IF($O$27>10000000,MAX(AL21-1855000,0),AL21-1955000)),"")) ->  | AM29: =IF(AM$21="","",IF(AND(SUM(AM$22)>=65,AM$21>=$AC29),IF($O$29>20000000,MAX(AM21-1755000,0),IF($O$29>10000000,MAX(AM21-1855000,0),AM21-1955000)),"")) ->  | AN29: =IF(AN$21="","",IF(AND(SUM(AN$22)>=65,AN$21>=$AC29),IF($O$31>20000000,MAX(AN21-1755000,0),IF($O$31>10000000,MAX(AN21-1855000,0),AN21-1955000)),"")) ->  | AO29: =IF(AO$21="","",IF(AND(SUM(AO$22)>=65,AO$21>=$AC29),IF($O$33>20000000,MAX(AO21-1755000,0),IF($O$33>10000000,MAX(AO21-1855000,0),AO21-1955000)),"")) ->  | AP29: =IF(AP$21="","",IF(AND(SUM(AP$22)>=65,AP$21>=$AC29),IF($O$35>20000000,MAX(AP21-1755000,0),IF($O$35>10000000,MAX(AP21-1855000,0),AP21-1955000)),"")) ->  | AQ29: =IF(AQ$21="","",IF(AND(SUM(AQ$22)>=65,AQ$21>=$AC29),IF($O$37>20000000,MAX(AQ21-1755000,0),IF($O$37>10000000,MAX(AQ21-1855000,0),AQ21-1955000)),"")) ->  | AR29: =IF(AR$21="","",IF(AND(SUM(AR$22)>=65,AR$21>=$AC29),IF($O$39>20000000,MAX(AR21-1755000,0),IF($O$39>10000000,MAX(AR21-1855000,0),AR21-1955000)),"")) -> 
AB30: ６５歳未満 | AC30: 0 | AD30: 600000 | AE30: 0円or〈～100,000円〉or《～200,000円》 | AI30: =IF(AI$21="","",IF(AND(SUM(AI$22)<65,AI$21>=$AC30,AI$21<=$AD30),IF($O$21>20000000,MAX(AI21-400000,0),IF($O$21>10000000,MAX(AI21-500000,0),0)),"")) ->  | AJ30: =IF(AJ$21="","",IF(AND(SUM(AJ$22)<65,AJ$21>=$AC30,AJ$21<=$AD30),IF($O$23>20000000,MAX(AJ21-400000,0),IF($O$23>10000000,MAX(AJ21-500000,0),0)),"")) ->  | AK30: =IF(AK$21="","",IF(AND(SUM(AK$22)<65,AK$21>=$AC30,AK$21<=$AD30),IF($O$25>20000000,MAX(AK21-400000,0),IF($O$25>10000000,MAX(AK21-500000,0),0)),"")) ->  | AL30: =IF(AL$21="","",IF(AND(SUM(AL$22)<65,AL$21>=$AC30,AL$21<=$AD30),IF($O$27>20000000,MAX(AL21-400000,0),IF($O$27>10000000,MAX(AL21-500000,0),0)),"")) ->  | AM30: =IF(AM$21="","",IF(AND(SUM(AM$22)<65,AM$21>=$AC30,AM$21<=$AD30),IF($O$29>20000000,MAX(AM21-400000,0),IF($O$29>10000000,MAX(AM21-500000,0),0)),"")) ->  | AN30: =IF(AN$21="","",IF(AND(SUM(AN$22)<65,AN$21>=$AC30,AN$21<=$AD30),IF($O$31>20000000,MAX(AN21-400000,0),IF($O$31>10000000,MAX(AN21-500000,0),0)),"")) ->  | AO30: =IF(AO$21="","",IF(AND(SUM(AO$22)<65,AO$21>=$AC30,AO$21<=$AD30),IF($O$33>20000000,MAX(AO21-400000,0),IF($O$33>10000000,MAX(AO21-500000,0),0)),"")) ->  | AP30: =IF(AP$21="","",IF(AND(SUM(AP$22)<65,AP$21>=$AC30,AP$21<=$AD30),IF($O$35>20000000,MAX(AP21-400000,0),IF($O$35>10000000,MAX(AP21-500000,0),0)),"")) ->  | AQ30: =IF(AQ$21="","",IF(AND(SUM(AQ$22)<65,AQ$21>=$AC30,AQ$21<=$AD30),IF($O$37>20000000,MAX(AQ21-400000,0),IF($O$37>10000000,MAX(AQ21-500000,0),0)),"")) ->  | AR30: =IF(AR$21="","",IF(AND(SUM(AR$22)<65,AR$21>=$AC30,AR$21<=$AD30),IF($O$39>20000000,MAX(AR21-400000,0),IF($O$39>10000000,MAX(AR21-500000,0),0)),"")) -> 
A31: 6 | D31: 年金所得に係る 雑所得以外の 合計所得金額 | O31: =入力!DJ18 -> 0 | AC31: =SUM(AD30,1) -> 600001 | AD31: 1300000 | AE31: (Ａ)－600,000円〈500,000〉《400,000》 | AI31: =IF(AI$21="","",IF(AND(SUM(AI$22)<65,AI$21>=$AC31,AI$21<=$AD31),IF($O$21>20000000,MAX(AI21-400000,0),IF($O$21>10000000,MAX(AI21-500000,0),AI21-600000)),"")) ->  | AJ31: =IF(AJ$21="","",IF(AND(SUM(AJ$22)<65,AJ$21>=$AC31,AJ$21<=$AD31),IF($O$23>20000000,MAX(AJ21-400000,0),IF($O$23>10000000,MAX(AJ21-500000,0),AJ21-600000)),"")) ->  | AK31: =IF(AK$21="","",IF(AND(SUM(AK$22)<65,AK$21>=$AC31,AK$21<=$AD31),IF($O$25>20000000,MAX(AK21-400000,0),IF($O$25>10000000,MAX(AK21-500000,0),AK21-600000)),"")) ->  | AL31: =IF(AL$21="","",IF(AND(SUM(AL$22)<65,AL$21>=$AC31,AL$21<=$AD31),IF($O$27>20000000,MAX(AL21-400000,0),IF($O$27>10000000,MAX(AL21-500000,0),AL21-600000)),"")) ->  | AM31: =IF(AM$21="","",IF(AND(SUM(AM$22)<65,AM$21>=$AC31,AM$21<=$AD31),IF($O$29>20000000,MAX(AM21-400000,0),IF($O$29>10000000,MAX(AM21-500000,0),AM21-600000)),"")) ->  | AN31: =IF(AN$21="","",IF(AND(SUM(AN$22)<65,AN$21>=$AC31,AN$21<=$AD31),IF($O$31>20000000,MAX(AN21-400000,0),IF($O$31>10000000,MAX(AN21-500000,0),AN21-600000)),"")) ->  | AO31: =IF(AO$21="","",IF(AND(SUM(AO$22)<65,AO$21>=$AC31,AO$21<=$AD31),IF($O$33>20000000,MAX(AO21-400000,0),IF($O$33>10000000,MAX(AO21-500000,0),AO21-600000)),"")) ->  | AP31: =IF(AP$21="","",IF(AND(SUM(AP$22)<65,AP$21>=$AC31,AP$21<=$AD31),IF($O$35>20000000,MAX(AP21-400000,0),IF($O$35>10000000,MAX(AP21-500000,0),AP21-600000)),"")) ->  | AQ31: =IF(AQ$21="","",IF(AND(SUM(AQ$22)<65,AQ$21>=$AC31,AQ$21<=$AD31),IF($O$37>20000000,MAX(AQ21-400000,0),IF($O$37>10000000,MAX(AQ21-500000,0),AQ21-600000)),"")) ->  | AR31: =IF(AR$21="","",IF(AND(SUM(AR$22)<65,AR$21>=$AC31,AR$21<=$AD31),IF($O$39>20000000,MAX(AR21-400000,0),IF($O$39>10000000,MAX(AR21-500000,0),AR21-600000)),"")) -> 
AC32: =SUM(AD31,1) -> 1300001 | AD32: 4100000 | AE32: (Ａ)×75％－275,000円〈175,000〉《75,000》 | AI32: =IF(AI$21="","",IF(AND(SUM(AI$22)<65,AI$21>=$AC32,AI$21<=$AD32),IF($O$21>20000000,ROUNDDOWN(AI$21*75/100,0)-75000,IF($O$21>10000000,ROUNDDOWN(AI$21*75/100,0)-175000,ROUNDDOWN(AI$21*75/100,0)-275000)),"")) ->  | AJ32: =IF(AJ$21="","",IF(AND(SUM(AJ$22)<65,AJ$21>=$AC32,AJ$21<=$AD32),IF($O$23>20000000,ROUNDDOWN(AJ$21*75/100,0)-75000,IF($O$23>10000000,ROUNDDOWN(AJ$21*75/100,0)-175000,ROUNDDOWN(AJ$21*75/100,0)-275000)),"")) ->  | AK32: =IF(AK$21="","",IF(AND(SUM(AK$22)<65,AK$21>=$AC32,AK$21<=$AD32),IF($O$25>20000000,ROUNDDOWN(AK$21*75/100,0)-75000,IF($O$25>10000000,ROUNDDOWN(AK$21*75/100,0)-175000,ROUNDDOWN(AK$21*75/100,0)-275000)),"")) ->  | AL32: =IF(AL$21="","",IF(AND(SUM(AL$22)<65,AL$21>=$AC32,AL$21<=$AD32),IF($O$27>20000000,ROUNDDOWN(AL$21*75/100,0)-75000,IF($O$27>10000000,ROUNDDOWN(AL$21*75/100,0)-175000,ROUNDDOWN(AL$21*75/100,0)-275000)),"")) ->  | AM32: =IF(AM$21="","",IF(AND(SUM(AM$22)<65,AM$21>=$AC32,AM$21<=$AD32),IF($O$29>20000000,ROUNDDOWN(AM$21*75/100,0)-75000,IF($O$29>10000000,ROUNDDOWN(AM$21*75/100,0)-175000,ROUNDDOWN(AM$21*75/100,0)-275000)),"")) ->  | AN32: =IF(AN$21="","",IF(AND(SUM(AN$22)<65,AN$21>=$AC32,AN$21<=$AD32),IF($O$31>20000000,ROUNDDOWN(AN$21*75/100,0)-75000,IF($O$31>10000000,ROUNDDOWN(AN$21*75/100,0)-175000,ROUNDDOWN(AN$21*75/100,0)-275000)),"")) ->  | AO32: =IF(AO$21="","",IF(AND(SUM(AO$22)<65,AO$21>=$AC32,AO$21<=$AD32),IF($O$33>20000000,ROUNDDOWN(AO$21*75/100,0)-75000,IF($O$33>10000000,ROUNDDOWN(AO$21*75/100,0)-175000,ROUNDDOWN(AO$21*75/100,0)-275000)),"")) ->  | AP32: =IF(AP$21="","",IF(AND(SUM(AP$22)<65,AP$21>=$AC32,AP$21<=$AD32),IF($O$35>20000000,ROUNDDOWN(AP$21*75/100,0)-75000,IF($O$35>10000000,ROUNDDOWN(AP$21*75/100,0)-175000,ROUNDDOWN(AP$21*75/100,0)-275000)),"")) ->  | AQ32: =IF(AQ$21="","",IF(AND(SUM(AQ$22)<65,AQ$21>=$AC32,AQ$21<=$AD32),IF($O$37>20000000,ROUNDDOWN(AQ$21*75/100,0)-75000,IF($O$37>10000000,ROUNDDOWN(AQ$21*75/100,0)-175000,ROUNDDOWN(AQ$21*75/100,0)-275000)),"")) ->  | AR32: =IF(AR$21="","",IF(AND(SUM(AR$22)<65,AR$21>=$AC32,AR$21<=$AD32),IF($O$39>20000000,ROUNDDOWN(AR$21*75/100,0)-75000,IF($O$39>10000000,ROUNDDOWN(AR$21*75/100,0)-175000,ROUNDDOWN(AR$21*75/100,0)-275000)),"")) -> 
A33: 7 | D33: 年金所得に係る 雑所得以外の 合計所得金額 | O33: =入力!DJ19 -> 0 | AC33: =SUM(AD32,1) -> 4100001 | AD33: 7700000 | AE33: (Ａ)×85％－685,000円〈585,000〉《485,000》 | AI33: =IF(AI$21="","",IF(AND(SUM(AI$22)<65,AI$21>=$AC33,AI$21<=$AD33),IF($O$21>20000000,ROUNDDOWN(AI$21*85/100,0)-485000,IF($O$21>10000000,ROUNDDOWN(AI$21*85/100,0)-585000,ROUNDDOWN(AI$21*85/100,0)-685000)),"")) ->  | AJ33: =IF(AJ$21="","",IF(AND(SUM(AJ$22)<65,AJ$21>=$AC33,AJ$21<=$AD33),IF($O$23>20000000,ROUNDDOWN(AJ$21*85/100,0)-485000,IF($O$23>10000000,ROUNDDOWN(AJ$21*85/100,0)-585000,ROUNDDOWN(AJ$21*85/100,0)-685000)),"")) ->  | AK33: =IF(AK$21="","",IF(AND(SUM(AK$22)<65,AK$21>=$AC33,AK$21<=$AD33),IF($O$25>20000000,ROUNDDOWN(AK$21*85/100,0)-485000,IF($O$25>10000000,ROUNDDOWN(AK$21*85/100,0)-585000,ROUNDDOWN(AK$21*85/100,0)-685000)),"")) ->  | AL33: =IF(AL$21="","",IF(AND(SUM(AL$22)<65,AL$21>=$AC33,AL$21<=$AD33),IF($O$27>20000000,ROUNDDOWN(AL$21*85/100,0)-485000,IF($O$27>10000000,ROUNDDOWN(AL$21*85/100,0)-585000,ROUNDDOWN(AL$21*85/100,0)-685000)),"")) ->  | AM33: =IF(AM$21="","",IF(AND(SUM(AM$22)<65,AM$21>=$AC33,AM$21<=$AD33),IF($O$29>20000000,ROUNDDOWN(AM$21*85/100,0)-485000,IF($O$29>10000000,ROUNDDOWN(AM$21*85/100,0)-585000,ROUNDDOWN(AM$21*85/100,0)-685000)),"")) ->  | AN33: =IF(AN$21="","",IF(AND(SUM(AN$22)<65,AN$21>=$AC33,AN$21<=$AD33),IF($O$31>20000000,ROUNDDOWN(AN$21*85/100,0)-485000,IF($O$31>10000000,ROUNDDOWN(AN$21*85/100,0)-585000,ROUNDDOWN(AN$21*85/100,0)-685000)),"")) ->  | AO33: =IF(AO$21="","",IF(AND(SUM(AO$22)<65,AO$21>=$AC33,AO$21<=$AD33),IF($O$33>20000000,ROUNDDOWN(AO$21*85/100,0)-485000,IF($O$33>10000000,ROUNDDOWN(AO$21*85/100,0)-585000,ROUNDDOWN(AO$21*85/100,0)-685000)),"")) ->  | AP33: =IF(AP$21="","",IF(AND(SUM(AP$22)<65,AP$21>=$AC33,AP$21<=$AD33),IF($O$35>20000000,ROUNDDOWN(AP$21*85/100,0)-485000,IF($O$35>10000000,ROUNDDOWN(AP$21*85/100,0)-585000,ROUNDDOWN(AP$21*85/100,0)-685000)),"")) ->  | AQ33: =IF(AQ$21="","",IF(AND(SUM(AQ$22)<65,AQ$21>=$AC33,AQ$21<=$AD33),IF($O$37>20000000,ROUNDDOWN(AQ$21*85/100,0)-485000,IF($O$37>10000000,ROUNDDOWN(AQ$21*85/100,0)-585000,ROUNDDOWN(AQ$21*85/100,0)-685000)),"")) ->  | AR33: =IF(AR$21="","",IF(AND(SUM(AR$22)<65,AR$21>=$AC33,AR$21<=$AD33),IF($O$39>20000000,ROUNDDOWN(AR$21*85/100,0)-485000,IF($O$39>10000000,ROUNDDOWN(AR$21*85/100,0)-585000,ROUNDDOWN(AR$21*85/100,0)-685000)),"")) -> 
AC34: =SUM(AD33,1) -> 7700001 | AD34: 10000000 | AE34: (Ａ)×95％－1,455,000円〈1,355,000〉《1,255,000》 | AI34: =IF(AI$21="","",IF(AND(SUM(AI$22)<65,AI$21>=$AC34,AI$21<=$AD34),IF($O$21>20000000,ROUNDDOWN(AI$21*95/100,0)-1255000,IF($O$21>10000000,ROUNDDOWN(AI$21*95/100,0)-1355000,ROUNDDOWN(AI$21*95/100,0)-1455000)),"")) ->  | AJ34: =IF(AJ$21="","",IF(AND(SUM(AJ$22)<65,AJ$21>=$AC34,AJ$21<=$AD34),IF($O$23>20000000,ROUNDDOWN(AJ$21*95/100,0)-1255000,IF($O$23>10000000,ROUNDDOWN(AJ$21*95/100,0)-1355000,ROUNDDOWN(AJ$21*95/100,0)-1455000)),"")) ->  | AK34: =IF(AK$21="","",IF(AND(SUM(AK$22)<65,AK$21>=$AC34,AK$21<=$AD34),IF($O$25>20000000,ROUNDDOWN(AK$21*95/100,0)-1255000,IF($O$25>10000000,ROUNDDOWN(AK$21*95/100,0)-1355000,ROUNDDOWN(AK$21*95/100,0)-1455000)),"")) ->  | AL34: =IF(AL$21="","",IF(AND(SUM(AL$22)<65,AL$21>=$AC34,AL$21<=$AD34),IF($O$27>20000000,ROUNDDOWN(AL$21*95/100,0)-1255000,IF($O$27>10000000,ROUNDDOWN(AL$21*95/100,0)-1355000,ROUNDDOWN(AL$21*95/100,0)-1455000)),"")) ->  | AM34: =IF(AM$21="","",IF(AND(SUM(AM$22)<65,AM$21>=$AC34,AM$21<=$AD34),IF($O$29>20000000,ROUNDDOWN(AM$21*95/100,0)-1255000,IF($O$29>10000000,ROUNDDOWN(AM$21*95/100,0)-1355000,ROUNDDOWN(AM$21*95/100,0)-1455000)),"")) ->  | AN34: =IF(AN$21="","",IF(AND(SUM(AN$22)<65,AN$21>=$AC34,AN$21<=$AD34),IF($O$31>20000000,ROUNDDOWN(AN$21*95/100,0)-1255000,IF($O$31>10000000,ROUNDDOWN(AN$21*95/100,0)-1355000,ROUNDDOWN(AN$21*95/100,0)-1455000)),"")) ->  | AO34: =IF(AO$21="","",IF(AND(SUM(AO$22)<65,AO$21>=$AC34,AO$21<=$AD34),IF($O$33>20000000,ROUNDDOWN(AO$21*95/100,0)-1255000,IF($O$33>10000000,ROUNDDOWN(AO$21*95/100,0)-1355000,ROUNDDOWN(AO$21*95/100,0)-1455000)),"")) ->  | AP34: =IF(AP$21="","",IF(AND(SUM(AP$22)<65,AP$21>=$AC34,AP$21<=$AD34),IF($O$35>20000000,ROUNDDOWN(AP$21*95/100,0)-1255000,IF($O$35>10000000,ROUNDDOWN(AP$21*95/100,0)-1355000,ROUNDDOWN(AP$21*95/100,0)-1455000)),"")) ->  | AQ34: =IF(AQ$21="","",IF(AND(SUM(AQ$22)<65,AQ$21>=$AC34,AQ$21<=$AD34),IF($O$37>20000000,ROUNDDOWN(AQ$21*95/100,0)-1255000,IF($O$37>10000000,ROUNDDOWN(AQ$21*95/100,0)-1355000,ROUNDDOWN(AQ$21*95/100,0)-1455000)),"")) ->  | AR34: =IF(AR$21="","",IF(AND(SUM(AR$22)<65,AR$21>=$AC34,AR$21<=$AD34),IF($O$39>20000000,ROUNDDOWN(AR$21*95/100,0)-1255000,IF($O$39>10000000,ROUNDDOWN(AR$21*95/100,0)-1355000,ROUNDDOWN(AR$21*95/100,0)-1455000)),"")) -> 
A35: 8 | D35: 年金所得に係る 雑所得以外の 合計所得金額 | O35: =入力!DJ20 -> 0 | AC35: =SUM(AD34,1) -> 10000001 | AE35: (Ａ)－1,955,000円〈1,855,000〉《1,755,000》 | AI35: =IF(AI$21="","",IF(AND(SUM(AI$22)<65,AI$21>=$AC35),IF($O$21>20000000,MAX(AI21-1755000,0),IF($O$21>10000000,MAX(AI21-1855000,0),AI21-1955000)),"")) ->  | AJ35: =IF(AJ$21="","",IF(AND(SUM(AJ$22)<65,AJ$21>=$AC35),IF($O$23>20000000,MAX(AJ21-1755000,0),IF($O$23>10000000,MAX(AJ21-1855000,0),AJ21-1955000)),"")) ->  | AK35: =IF(AK$21="","",IF(AND(SUM(AK$22)<65,AK$21>=$AC35),IF($O$25>20000000,MAX(AK21-1755000,0),IF($O$25>10000000,MAX(AK21-1855000,0),AK21-1955000)),"")) ->  | AL35: =IF(AL$21="","",IF(AND(SUM(AL$22)<65,AL$21>=$AC35),IF($O$27>20000000,MAX(AL21-1755000,0),IF($O$27>10000000,MAX(AL21-1855000,0),AL21-1955000)),"")) ->  | AM35: =IF(AM$21="","",IF(AND(SUM(AM$22)<65,AM$21>=$AC35),IF($O$29>20000000,MAX(AM21-1755000,0),IF($O$29>10000000,MAX(AM21-1855000,0),AM21-1955000)),"")) ->  | AN35: =IF(AN$21="","",IF(AND(SUM(AN$22)<65,AN$21>=$AC35),IF($O$31>20000000,MAX(AN21-1755000,0),IF($O$31>10000000,MAX(AN21-1855000,0),AN21-1955000)),"")) ->  | AO35: =IF(AO$21="","",IF(AND(SUM(AO$22)<65,AO$21>=$AC35),IF($O$33>20000000,MAX(AO21-1755000,0),IF($O$33>10000000,MAX(AO21-1855000,0),AO21-1955000)),"")) ->  | AP35: =IF(AP$21="","",IF(AND(SUM(AP$22)<65,AP$21>=$AC35),IF($O$35>20000000,MAX(AP21-1755000,0),IF($O$35>10000000,MAX(AP21-1855000,0),AP21-1955000)),"")) ->  | AQ35: =IF(AQ$21="","",IF(AND(SUM(AQ$22)<65,AQ$21>=$AC35),IF($O$37>20000000,MAX(AQ21-1755000,0),IF($O$37>10000000,MAX(AQ21-1855000,0),AQ21-1955000)),"")) ->  | AR35: =IF(AR$21="","",IF(AND(SUM(AR$22)<65,AR$21>=$AC35),IF($O$39>20000000,MAX(AR21-1755000,0),IF($O$39>10000000,MAX(AR21-1855000,0),AR21-1955000)),"")) -> 
AB36: 軽減判定の際６５歳以上は，年金所得から１５万円引く ⇒ ⇒ ⇒ ⇒ ⇒ | AH36: =SUM(AI36:AR36) -> 0 | AI36: =IF(SUM(AI22)>=65,IF(SUM(AI23)>150000,150000,SUM(AI23)),"") ->  | AJ36: =IF(SUM(AJ22)>=65,IF(SUM(AJ23)>150000,150000,SUM(AJ23)),"") -> 
A37: 9 | D37: 年金所得に係る 雑所得以外の 合計所得金額 | O37: =入力!DJ21 -> 0
A39: 10 | D39: 年金所得に係る 雑所得以外の 合計所得金額 | O39: =入力!DJ22 -> 0

Sheet 軽減について (hidden)
B1: 軽減判定基準額（２・５・７割軽減）について
B2: １ 判定となる世帯の所得金額とは，擬主を含む世帯主，被保険者及び特定同一世帯所属者数の
B3: 所得の合計額
B4: ２ 国民健康保険に加入したまま，７５歳を迎えることにより後期高齢者医療制度へ移行した方
B5: を，特定同一世帯所属者と言います。
M6: 軽減判定対象 | S6: 所得割 計算対象 | V6: 備考
M8: 人数 | P8: 所得 | S8: 所得
D9: 世帯主（被保険者） | M9: ○ | P9: ○ | S9: ○
D11: 擬主 | M11: × | P11: ○ | S11: × | V11: 擬主は軽減判定の際，所得金額は関係するが，人数には入れない。
D13: その他被保険者 | M13: ○ | P13: ○ | S13: ○
D15: 特定同一世帯所属者 | M15: ○ | P15: ○ | S15: ×
D17: 専従者 給与（控除） | J17: 主 | M17: － | P17: ○ 収入 | S17: × | V17: 所得割：経費OR控除後 軽減：専従者給与収入金額を判定所得に入れる
J19: 専従者 | P19: × | S19: ○ | V19: 所得割：給与収入として給与所得が計算対象 軽減：対象外（対象所得に入れない）
D21: 損失の繰越控除 | J21: 純 | M21: － | P21: ○ | S21: × | V21: 所得割：繰越控除後，軽減：繰越控除後
J22: 雑 | P22: ○ | S22: ○ | V22: 所得割：繰越控除前，軽減：繰越控除後
B24: 特定世帯及び特定継続世帯の平等割額の軽減について
B25: １ 特定同一世帯所属者になられたことによって，国保加入者が一人になる世帯は，特定同一世
B26: 帯所属者になられた月から５年間，国民健康保険税のうち平等割額の２分の１が軽減されま
B27: す（特定世帯）。
B28: また，５年を経過した後も３年間，平等割額の４分の１が軽減されます（特定継続世帯）。
B30: 《２・５・７割軽減と特定世帯及び特定継続世帯の平等割額の軽減の例》
C31: 当年度 | L31: ８月
C32: 国保 | E32: Ａ 8月で75歳 | L32: 後期 高齢 | N32: Ａ | Q32: 特定同一世帯所属者 国民健康保険に加入したまま，７５歳を迎えることにより後期高齢者医療制度へ移行した方を，特定同一世帯所属者という。
E34: Ｂ 10月で74歳 | L34: 国保 | N34: Ｂ | Q34: ２・５・７割軽減の判定（4/1時点）～判定人数：Ａ・Ｂ・Ｃの３人 ※年度途中に特定同一世帯所属者が出ても再判定しない。 ※特定世帯及び特定継続世帯の平等割額の軽減にはならない。
E36: Ｃ 6月で60歳 | N36: Ｃ
E38: 年度当初は，３人が国保 | L38: ８月から２人が国保
C41: 次年度 | L41: 10月
C42: 国保 | E42: Ａ 8月で76歳 | L42: 後期 高齢 | N42: Ａ | Q42: 特定同一世帯所属者 国民健康保険に加入したまま，７５歳を迎えることにより後期高齢者医療制度へ移行した方を，特定同一世帯所属者という。
E44: Ｂ 10月で75歳 | N44: Ｂ
E46: Ｃ 6月で61歳 | L46: 国保 | N46: Ｃ | Q46: ２・５・７割軽減の判定（4/1時点）～判定人数：Ａ・Ｂ・Ｃの３人 ※年度途中に特定同一世帯所属者が出ても再判定しない。 Ａは昨年度に特定同一世帯所属者となったが，判定に含める。 ※特定世帯及び特定継続世帯の平等割額の軽減を受けることになる。
E48: 年度当初は，２人が国保，後期高齢は１人 | L48: １０月から１人のみ国保

Sheet 基礎控除 (hidden)
B2: 合計所得金額 | D2: 基礎控除額 | F2: 被保険者 | G2: 合計所得金額 | H2: 基礎控除額
B3: から | C3: まで | F3: 1 | G3: =IF(入力!DC13="","",入力!DC13) ->  | H3: =IF($G3="","",VLOOKUP($G3,$B$4:$D$7,3,TRUE)) -> 
B4: 0 | C4: 24000000 | D4: 430000 | F4: 2 | G4: =IF(入力!DC14="","",入力!DC14) ->  | H4: =IF($G4="","",VLOOKUP($G4,$B$4:$D$7,3,TRUE)) -> 
B5: =C4+1 -> 24000001 | C5: 24500000 | D5: 290000 | F5: 3 | G5: =IF(入力!DC15="","",入力!DC15) -> 
B6: =C5+1 -> 24500001 | C6: 25000000 | D6: 150000 | F6: 4 | G6: =IF(入力!DC16="","",入力!DC16) -> 
B7: =C6+1 -> 25000001 | D7: 0 | F7: 5 | G7: =IF(入力!DC17="","",入力!DC17) -> 
F8: 6 | G8: =IF(入力!DC18="","",入力!DC18) -> 
F9: 7 | G9: =IF(入力!DC19="","",入力!DC19) -> 
F10: 8 | G10: =IF(入力!DC20="","",入力!DC20) -> 
F11: 9 | G11: =IF(入力!DC21="","",入力!DC21) -> 
F12: 10 | G12: =IF(入力!DC22="","",入力!DC22) -> 

Sheet 未就学児 (hidden)
C2: =基本項目!E2 -> 年齢基準日 | D2: =基本項目!E3 -> 2027-04-01
B4: 被保険者 | C4: 生年月日 | D4: 年齢 直接 入力 | E4: 年齢判定 基準日の 年齢 | F4: 未就学児 判定 | G4: 18歳未満 判定
B6: 1 | C6: =IF(入力!K13="","",入力!K13) ->  | D6: =IF(入力!U13="","",入力!U13) ->  | E6: =IF(AND(C6="",D6=""),"",IF(C6<>"",DATEDIF(C6,$D$2,"y"),D6)) ->  | F6: =IF(E6="","",IF(E6<=6,1,"")) ->  | G6: =IF(E6="","",IF(E6<=18,1,"")) -> 
B7: 2 | C7: =IF(入力!K14="","",入力!K14) ->  | D7: =IF(入力!U14="","",入力!U14) ->  | E7: =IF(AND(C7="",D7=""),"",IF(C7<>"",DATEDIF(C7,$D$2,"y"),D7)) ->  | F7: =IF(E7="","",IF(E7<=6,1,"")) -> 
B8: 3 | C8: =IF(入力!K15="","",入力!K15) ->  | D8: =IF(入力!U15="","",入力!U15) ->  | F8: =IF(E8="","",IF(E8<=6,1,"")) -> 
B9: 4 | C9: =IF(入力!K16="","",入力!K16) ->  | D9: =IF(入力!U16="","",入力!U16) -> 
B10: 5 | C10: =IF(入力!K17="","",入力!K17) ->  | D10: =IF(入力!U17="","",入力!U17) -> 
B11: 6 | C11: =IF(入力!K18="","",入力!K18) ->  | D11: =IF(入力!U18="","",入力!U18) -> 
B12: 7 | C12: =IF(入力!K19="","",入力!K19) ->  | D12: =IF(入力!U19="","",入力!U19) -> 
B13: 8 | C13: =IF(入力!K20="","",入力!K20) ->  | D13: =IF(入力!U20="","",入力!U20) -> 
B14: 9 | C14: =IF(入力!K21="","",入力!K21) ->  | D14: =IF(入力!U21="","",入力!U21) -> 
B15: 10 | C15: =IF(入力!K22="","",入力!K22) ->  | D15: =IF(入力!U22="","",入力!U22) -> 
